Department family,Entity,Date,Expense Type,Expense area,Supplier,Transation number,Amount,Narrative
Department for Culture Media and Sport,Department for Culture Media and Sport,13/04/2011,Reimbursement of Agreed Costs,GOE managed programme costs,Advantage West Midlands,0030022042,"40,000.00",Grant Contribution
Department for Culture Media and Sport,Department for Culture Media and Sport,16/11/2011,Reimbursement of Agreed Costs,GOE managed programme costs,Advantage West Midlands,0030024309,"36,572.00",Grant Contribution
Department for Culture Media and Sport,Department for Culture Media and Sport,22/06/2011,Office Accommodation Rent,Estates & Property Services,AMAS Ltd C/O Jones Lang Lasalle,0030022447,"1,205,250.00",Rent
Department for Culture Media and Sport,Department for Culture Media and Sport,23/09/2011,Office Accommodation Rent,Estates & Property Services,AMAS Ltd C/O Jones Lang Lasalle,0030023474,"1,206,750.00",Rent
Department for Culture Media and Sport,Department for Culture Media and Sport,21/12/2011,Office Accommodation Rent,Estates & Property Services,AMAS Ltd C/O Jones Lang Lasalle,0030024344,"1,206,750.00",Rent
Department for Culture Media and Sport,Department for Culture Media and Sport,16/12/2011,Office Accommodation Rent,Estates & Property Services,AMAS Ltd C/O Jones Lang Lasalle,0030024632,"42,532.17",Insurance 
Department for Culture Media and Sport,Department for Culture Media and Sport,20/03/2012,Office Accommodation Rent,Estates & Property Services,AMAS Ltd C/O Jones Lang Lasalle,0030025438,"1,206,750.00",Rent
Department for Culture Media and Sport,Department for Culture Media and Sport,05/08/2011,Temp staff Interim managers,Broadband Delivery UK (Admin),Analysys Mason Ltd,0030023238,"67,920.00",Data Modelling
Department for Culture Media and Sport,Department for Culture Media and Sport,18/05/2011,VAT Recoverable Business Activ,Misc Balance Sheet,Arena Structures,0030022388,"10,563.81",Installation of Media Management
Department for Culture Media and Sport,Department for Culture Media and Sport,18/05/2011,VAT Recoverable Business Activ,Misc Balance Sheet,Arena Structures,0030022389,"16,943.70",VAT re Camera Platforms
Department for Culture Media and Sport,Department for Culture Media and Sport,27/06/2011,VAT Recoverable Business Activ,Misc Balance Sheet,Arena Structures,0030022797,"17,286.18",VAT re Media Village 
Department for Culture Media and Sport,Department for Culture Media and Sport,01/07/2011,VAT Recoverable Business Activ,Misc Balance Sheet,Arena Structures,0030022843,"23,771.42",VAT re Media Stands 
Department for Culture Media and Sport,Department for Culture Media and Sport,18/05/2011,Ceremonial Event Costs,State Ceremonials Prog Costs,Arena Structures,0030022389,"84,718.50",Camera Platforms 
Department for Culture Media and Sport,Department for Culture Media and Sport,01/07/2011,Ceremonial Event Costs,State Ceremonials Prog Costs,Arena Structures,0030022843,"118,857.12",Media Stands
Department for Culture Media and Sport,Department for Culture Media and Sport,30/06/2011,Ceremonials - Other Costs,State Ceremonials Prog Costs,Arena Structures,0030022838,"21,017.30",Media Stands & Waste Management re State Visit 2011
Department for Culture Media and Sport,Department for Culture Media and Sport,20/10/2011,Ceremonials - Other Costs,State Ceremonials Prog Costs,Arena Structures,0030023990,"53,333.33","Hire, Storage of Pavillions re State Visit 2011"
Department for Culture Media and Sport,Department for Culture Media and Sport,14/12/2011,Ceremonials - Other Costs,State Ceremonials Prog Costs,Arena Structures,0030024642,"34,252.50",Hire of Tentage for State Visit 
Department for Culture Media and Sport,Department for Culture Media and Sport,14/12/2011,Ceremonials - Other Costs,State Ceremonials Prog Costs,Arena Structures,0030024643,"79,922.50",Hire of Tentage for State Visit 
Department for Culture Media and Sport,Department for Culture Media and Sport,18/05/2011,Host Management Services,State Ceremonials Prog Costs,Arena Structures,0030022388,"52,819.06","Supply, Install & dismantle Media Management"
Department for Culture Media and Sport,Department for Culture Media and Sport,27/06/2011,Host Management Services,State Ceremonials Prog Costs,Arena Structures,0030022797,"86,430.90",Media Village
Department for Culture Media and Sport,Department for Culture Media and Sport,10/06/2011,Current Grants Private Sector,Own Art and Take It Away,ArtCo Trading Ltd,0030022619,"163,125.00",Grant re Own Art & Take It Away
Department for Culture Media and Sport,Department for Culture Media and Sport,04/08/2011,Current Grants Private Sector,Own Art and Take It Away,ArtCo Trading Ltd,0030023208,"145,677.99",Grant re Own Art 
Department for Culture Media and Sport,Department for Culture Media and Sport,09/11/2011,Current Grants Private Sector,Own Art and Take It Away,ArtCo Trading Ltd,0030024223,"174,466.42",Grant re Own Art 
Department for Culture Media and Sport,Department for Culture Media and Sport,23/02/2012,Current Grants Private Sector,Own Art and Take It Away,ArtCo Trading Ltd,0030025381,"241,730.59",Grant re Own Art 
Department for Culture Media and Sport,Department for Culture Media and Sport,19/09/2011,Reimbursement of Agreed Costs,Arts Support in Culture Team,Arts Council of England,0030023629,"523,000.00",Annual Contribution 2011-12 re Creative Programmers Project
Department for Culture Media and Sport,Department for Culture Media and Sport,01/04/2011,Grant-in-Aid (DCMS NDPBs),GIA Arts bodies,Arts Council of England,0030021830,"58,000,000.00",Grant in Aid payment to a DCMS sponsored Non Departmental Public Body
Department for Culture Media and Sport,Department for Culture Media and Sport,03/05/2011,Grant-in-Aid (DCMS NDPBs),GIA Arts bodies,Arts Council of England,0030022187,"20,414,306.00",Grant in Aid payment to a DCMS sponsored Non Departmental Public Body
Department for Culture Media and Sport,Department for Culture Media and Sport,01/06/2011,Grant-in-Aid (DCMS NDPBs),GIA Arts bodies,Arts Council of England,0030022479,"18,951,306.00",Grant in Aid payment to a DCMS sponsored Non Departmental Public Body
Department for Culture Media and Sport,Department for Culture Media and Sport,01/07/2011,Grant-in-Aid (DCMS NDPBs),GIA Arts bodies,Arts Council of England,0030022789,"54,166,883.00",Grant in Aid payment to a DCMS sponsored Non Departmental Public Body
Department for Culture Media and Sport,Department for Culture Media and Sport,01/08/2011,Grant-in-Aid (DCMS NDPBs),GIA Arts bodies,Arts Council of England,0030023113,"18,950,306.00",Grant in Aid payment to a DCMS sponsored Non Departmental Public Body
Department for Culture Media and Sport,Department for Culture Media and Sport,01/09/2011,Grant-in-Aid (DCMS NDPBs),GIA Arts bodies,Arts Council of England,0030023376,"18,951,306.00",Grant in Aid payment to a DCMS sponsored Non Departmental Public Body
Department for Culture Media and Sport,Department for Culture Media and Sport,03/10/2011,Grant-in-Aid (DCMS NDPBs),GIA Arts bodies,Arts Council of England,0030023744,"60,822,883.00",Grant in Aid payment to a DCMS sponsored Non Departmental Public Body
Department for Culture Media and Sport,Department for Culture Media and Sport,01/11/2011,Grant-in-Aid (DCMS NDPBs),GIA Arts bodies,Arts Council of England,0030024092,"19,156,306.00",Grant in Aid payment to a DCMS sponsored Non Departmental Public Body
Department for Culture Media and Sport,Department for Culture Media and Sport,01/12/2011,Grant-in-Aid (DCMS NDPBs),GIA Arts bodies,Arts Council of England,0030024411,"18,957,306.00",Grant in Aid payment to a DCMS sponsored Non Departmental Public Body
Department for Culture Media and Sport,Department for Culture Media and Sport,03/01/2012,Grant-in-Aid (DCMS NDPBs),GIA Arts bodies,Arts Council of England,0030024771,"53,972,883.00",Grant in Aid payment to a DCMS sponsored Non Departmental Public Body
Department for Culture Media and Sport,Department for Culture Media and Sport,01/02/2012,Grant-in-Aid (DCMS NDPBs),GIA Arts bodies,Arts Council of England,0030025072,"18,756,339.00",Grant in Aid payment to a DCMS sponsored Non Departmental Public Body
Department for Culture Media and Sport,Department for Culture Media and Sport,13/04/2011,IT Capital Additions,Information Services,Atos IT Services UK Limited,0030022026,"191,559.67",Database Redevelopement
Department for Culture Media and Sport,Department for Culture Media and Sport,27/06/2011,IT Capital Additions,Information Services,Atos IT Services UK Limited,0030022618,"36,603.76",Work on IT software
Department for Culture Media and Sport,Department for Culture Media and Sport,27/06/2011,IT Maintenance,Information Services,Atos IT Services UK Limited,0030022693,"153,143.77",Database developement
Department for Culture Media and Sport,Department for Culture Media and Sport,20/07/2011,IT Maintenance,Information Services,Atos IT Services UK Limited,0030023029,"174,403.81",Procurement & Sales Ledger Projects
Department for Culture Media and Sport,Department for Culture Media and Sport,13/09/2011,IT Maintenance,Information Services,Atos IT Services UK Limited,0030023566,"112,607.60",Procurement & Sales Ledger Projects & DCMS News Service
Department for Culture Media and Sport,Department for Culture Media and Sport,14/10/2011,IT Maintenance,Information Services,Atos IT Services UK Limited,0030023912,"180,392.20",Procurement & Sales Ledger Projects & DCMS News Service
Department for Culture Media and Sport,Department for Culture Media and Sport,14/12/2011,IT Maintenance,Information Services,Atos IT Services UK Limited,0030024589,"112,039.47",Procurement & Sales Ledger Projects
Department for Culture Media and Sport,Department for Culture Media and Sport,17/01/2012,IT Maintenance,Information Services,Atos IT Services UK Limited,0030024955,"60,023.60",Procurement & CABE Projects
Department for Culture Media and Sport,Department for Culture Media and Sport,03/05/2011,IT Support,Information Services,Atos IT Services UK Limited,0030022206,"110,198.20",Procurement 
Department for Culture Media and Sport,Department for Culture Media and Sport,17/05/2011,IT Support,Information Services,Atos IT Services UK Limited,0030022339,"718,727.32",Quarterly Charge for services
Department for Culture Media and Sport,Department for Culture Media and Sport,19/08/2011,IT Support,Information Services,Atos IT Services UK Limited,0030023374,"754,595.48",Quarterly Charge for services
Department for Culture Media and Sport,Department for Culture Media and Sport,15/11/2011,IT Support,Information Services,Atos IT Services UK Limited,0030024297,"619,966.44",Quarterly Charge for services
Department for Culture Media and Sport,Department for Culture Media and Sport,14/02/2012,IT Support,Information Services,Atos IT Services UK Limited,0030025278,"652,356.90",Quarterly Charge for services
Department for Culture Media and Sport,Department for Culture Media and Sport,19/03/2012,IT Support,Information Services,Atos IT Services UK Limited,0030025617,"171,678.09",Database development
Department for Culture Media and Sport,Department for Culture Media and Sport,04/05/2011,Government Procurement Card,Procurement,Barclays Bank plc,0030022222,"33,047.12",Government Procurement Card   March     2011
Department for Culture Media and Sport,Department for Culture Media and Sport,05/05/2011,Government Procurement Card,Procurement,Barclays Bank plc,0030022241,"25,759.63",Government Procurement Card   April     2011
Department for Culture Media and Sport,Department for Culture Media and Sport,06/07/2011,Government Procurement Card,Procurement,Barclays Bank plc,0030022885,"49,857.06",Government Procurement Card   June     2012
Department for Culture Media and Sport,Department for Culture Media and Sport,17/02/2012,Government Procurement Card,Procurement,Barclays Bank plc,0030025305,"30,374.18",Government Procurement Card   January 2012
Department for Culture Media and Sport,Department for Culture Media and Sport,09/02/2012,External Legal Costs - Other,Legal Advisers to DCMS (TSOL),BIS,0030025165,"30,419.59", Fees
Department for Culture Media and Sport,Department for Culture Media and Sport,19/07/2011,Accommodation Management Fees,Estates & Property Services,BNP Paribas Real Estate,0030022898,"28,298.00",Rating Revaluation 
Department for Culture Media and Sport,Department for Culture Media and Sport,16/08/2011,Accommodation Management Fees,Estates & Property Services,BNP Paribas Real Estate,0030023291,"38,570.00",Rent Review 
Department for Culture Media and Sport,Department for Culture Media and Sport,03/01/2012,Accommodation Management Fees,Estates & Property Services,BNP Paribas Real Estate,0030024813,"92,099.24",Letting Fee Review
Department for Culture Media and Sport,Department for Culture Media and Sport,19/03/2012,Capital Grant Private Sector,Other Heritage Programme Costs,Bomber Command Association,0030025667,"796,000.00",Grant re Memorial in Green Park 
Department for Culture Media and Sport,Department for Culture Media and Sport,01/04/2011,Payments by Broadcasters,BIS programmes,British Broadcasting Corporation,0030021878,"2,900,000.00",BIS Refund 2010-11
Department for Culture Media and Sport,Department for Culture Media and Sport,01/04/2011,Grant to BBC:Home Broadcasting,Home Broadcasting:Grant to BBC,British Broadcasting Corporation,0030021737,"35,073,000.00",Grant payment to BBC - schedule reflects planned TV licence fee collection less concessionary licences funded by DWP
Department for Culture Media and Sport,Department for Culture Media and Sport,07/04/2011,Grant to BBC:Home Broadcasting,Home Broadcasting:Grant to BBC,British Broadcasting Corporation,0030021738,"35,073,000.00",Grant payment to BBC - schedule reflects planned TV licence fee collection less concessionary licences funded by DWP
Department for Culture Media and Sport,Department for Culture Media and Sport,13/04/2011,Grant to BBC:Home Broadcasting,Home Broadcasting:Grant to BBC,British Broadcasting Corporation,0030021739,"140,292,000.00",Grant payment to BBC - schedule reflects planned TV licence fee collection less concessionary licences funded by DWP
Department for Culture Media and Sport,Department for Culture Media and Sport,19/04/2011,Grant to BBC:Home Broadcasting,Home Broadcasting:Grant to BBC,British Broadcasting Corporation,0030021740,"35,073,000.00",Grant payment to BBC - schedule reflects planned TV licence fee collection less concessionary licences funded by DWP
Department for Culture Media and Sport,Department for Culture Media and Sport,20/04/2011,Grant to BBC:Home Broadcasting,Home Broadcasting:Grant to BBC,British Broadcasting Corporation,0030021741,"35,073,000.00",Grant payment to BBC - schedule reflects planned TV licence fee collection less concessionary licences funded by DWP
Department for Culture Media and Sport,Department for Culture Media and Sport,03/05/2011,Grant to BBC:Home Broadcasting,Home Broadcasting:Grant to BBC,British Broadcasting Corporation,0030022125,"35,073,000.00",Grant payment to BBC - schedule reflects planned TV licence fee collection less concessionary licences funded by DWP
Department for Culture Media and Sport,Department for Culture Media and Sport,05/05/2011,Grant to BBC:Home Broadcasting,Home Broadcasting:Grant to BBC,British Broadcasting Corporation,0030022126,"35,073,000.00",Grant payment to BBC - schedule reflects planned TV licence fee collection less concessionary licences funded by DWP
Department for Culture Media and Sport,Department for Culture Media and Sport,11/05/2011,Grant to BBC:Home Broadcasting,Home Broadcasting:Grant to BBC,British Broadcasting Corporation,0030022127,"140,292,000.00",Grant payment to BBC - schedule reflects planned TV licence fee collection less concessionary licences funded by DWP
Department for Culture Media and Sport,Department for Culture Media and Sport,18/05/2011,Grant to BBC:Home Broadcasting,Home Broadcasting:Grant to BBC,British Broadcasting Corporation,0030022128,"35,073,000.00",Grant payment to BBC - schedule reflects planned TV licence fee collection less concessionary licences funded by DWP
Department for Culture Media and Sport,Department for Culture Media and Sport,23/05/2011,Grant to BBC:Home Broadcasting,Home Broadcasting:Grant to BBC,British Broadcasting Corporation,0030022129,"35,073,000.00",Grant payment to BBC - schedule reflects planned TV licence fee collection less concessionary licences funded by DWP
Department for Culture Media and Sport,Department for Culture Media and Sport,02/06/2011,Grant to BBC:Home Broadcasting,Home Broadcasting:Grant to BBC,British Broadcasting Corporation,0030022377,"35,073,000.00",Grant payment to BBC - schedule reflects planned TV licence fee collection less concessionary licences funded by DWP
Department for Culture Media and Sport,Department for Culture Media and Sport,08/06/2011,Grant to BBC:Home Broadcasting,Home Broadcasting:Grant to BBC,British Broadcasting Corporation,0030022378,"35,073,000.00",Grant payment to BBC - schedule reflects planned TV licence fee collection less concessionary licences funded by DWP
Department for Culture Media and Sport,Department for Culture Media and Sport,13/06/2011,Grant to BBC:Home Broadcasting,Home Broadcasting:Grant to BBC,British Broadcasting Corporation,0030022379,"140,292,000.00",Grant payment to BBC - schedule reflects planned TV licence fee collection less concessionary licences funded by DWP
Department for Culture Media and Sport,Department for Culture Media and Sport,17/06/2011,Grant to BBC:Home Broadcasting,Home Broadcasting:Grant to BBC,British Broadcasting Corporation,0030022380,"35,073,000.00",Grant payment to BBC - schedule reflects planned TV licence fee collection less concessionary licences funded by DWP
Department for Culture Media and Sport,Department for Culture Media and Sport,23/06/2011,Grant to BBC:Home Broadcasting,Home Broadcasting:Grant to BBC,British Broadcasting Corporation,0030022381,"35,073,000.00",Grant payment to BBC - schedule reflects planned TV licence fee collection less concessionary licences funded by DWP
Department for Culture Media and Sport,Department for Culture Media and Sport,01/07/2011,Grant to BBC:Home Broadcasting,Home Broadcasting:Grant to BBC,British Broadcasting Corporation,0030022767,"35,073,000.00",Grant payment to BBC - schedule reflects planned TV licence fee collection less concessionary licences funded by DWP
Department for Culture Media and Sport,Department for Culture Media and Sport,07/07/2011,Grant to BBC:Home Broadcasting,Home Broadcasting:Grant to BBC,British Broadcasting Corporation,0030022768,"35,073,000.00",Grant payment to BBC - schedule reflects planned TV licence fee collection less concessionary licences funded by DWP
Department for Culture Media and Sport,Department for Culture Media and Sport,13/07/2011,Grant to BBC:Home Broadcasting,Home Broadcasting:Grant to BBC,British Broadcasting Corporation,0030022769,"140,292,000.00",Grant payment to BBC - schedule reflects planned TV licence fee collection less concessionary licences funded by DWP
Department for Culture Media and Sport,Department for Culture Media and Sport,18/07/2011,Grant to BBC:Home Broadcasting,Home Broadcasting:Grant to BBC,British Broadcasting Corporation,0030022770,"35,073,000.00",Grant payment to BBC - schedule reflects planned TV licence fee collection less concessionary licences funded by DWP
Department for Culture Media and Sport,Department for Culture Media and Sport,25/07/2011,Grant to BBC:Home Broadcasting,Home Broadcasting:Grant to BBC,British Broadcasting Corporation,0030022771,"35,073,000.00",Grant payment to BBC - schedule reflects planned TV licence fee collection less concessionary licences funded by DWP
Department for Culture Media and Sport,Department for Culture Media and Sport,02/08/2011,Grant to BBC:Home Broadcasting,Home Broadcasting:Grant to BBC,British Broadcasting Corporation,0030022971,"35,073,000.00",Grant payment to BBC - schedule reflects planned TV licence fee collection less concessionary licences funded by DWP
Department for Culture Media and Sport,Department for Culture Media and Sport,08/08/2011,Grant to BBC:Home Broadcasting,Home Broadcasting:Grant to BBC,British Broadcasting Corporation,0030022972,"35,073,000.00",Grant payment to BBC - schedule reflects planned TV licence fee collection less concessionary licences funded by DWP
Department for Culture Media and Sport,Department for Culture Media and Sport,11/08/2011,Grant to BBC:Home Broadcasting,Home Broadcasting:Grant to BBC,British Broadcasting Corporation,0030022973,"140,292,000.00",Grant payment to BBC - schedule reflects planned TV licence fee collection less concessionary licences funded by DWP
Department for Culture Media and Sport,Department for Culture Media and Sport,18/08/2011,Grant to BBC:Home Broadcasting,Home Broadcasting:Grant to BBC,British Broadcasting Corporation,0030022974,"35,073,000.00",Grant payment to BBC - schedule reflects planned TV licence fee collection less concessionary licences funded by DWP
Department for Culture Media and Sport,Department for Culture Media and Sport,24/08/2011,Grant to BBC:Home Broadcasting,Home Broadcasting:Grant to BBC,British Broadcasting Corporation,0030022975,"35,073,000.00",Grant payment to BBC - schedule reflects planned TV licence fee collection less concessionary licences funded by DWP
Department for Culture Media and Sport,Department for Culture Media and Sport,01/09/2011,Grant to BBC:Home Broadcasting,Home Broadcasting:Grant to BBC,British Broadcasting Corporation,0030023340,"34,889,000.00",Grant payment to BBC - schedule reflects planned TV licence fee collection less concessionary licences funded by DWP
Department for Culture Media and Sport,Department for Culture Media and Sport,08/09/2011,Grant to BBC:Home Broadcasting,Home Broadcasting:Grant to BBC,British Broadcasting Corporation,0030023341,"34,889,000.00",Grant payment to BBC - schedule reflects planned TV licence fee collection less concessionary licences funded by DWP
Department for Culture Media and Sport,Department for Culture Media and Sport,13/09/2011,Grant to BBC:Home Broadcasting,Home Broadcasting:Grant to BBC,British Broadcasting Corporation,0030023342,"139,557,000.00",Grant payment to BBC - schedule reflects planned TV licence fee collection less concessionary licences funded by DWP
Department for Culture Media and Sport,Department for Culture Media and Sport,19/09/2011,Grant to BBC:Home Broadcasting,Home Broadcasting:Grant to BBC,British Broadcasting Corporation,0030023343,"34,889,000.00",Grant payment to BBC - schedule reflects planned TV licence fee collection less concessionary licences funded by DWP
Department for Culture Media and Sport,Department for Culture Media and Sport,22/09/2011,Grant to BBC:Home Broadcasting,Home Broadcasting:Grant to BBC,British Broadcasting Corporation,0030023344,"34,889,000.00",Grant payment to BBC - schedule reflects planned TV licence fee collection less concessionary licences funded by DWP
Department for Culture Media and Sport,Department for Culture Media and Sport,03/10/2011,Grant to BBC:Home Broadcasting,Home Broadcasting:Grant to BBC,British Broadcasting Corporation,0030023670,"34,889,000.00",Grant payment to BBC - schedule reflects planned TV licence fee collection less concessionary licences funded by DWP
Department for Culture Media and Sport,Department for Culture Media and Sport,07/10/2011,Grant to BBC:Home Broadcasting,Home Broadcasting:Grant to BBC,British Broadcasting Corporation,0030023671,"34,889,000.00",Grant payment to BBC - schedule reflects planned TV licence fee collection less concessionary licences funded by DWP
Department for Culture Media and Sport,Department for Culture Media and Sport,12/10/2011,Grant to BBC:Home Broadcasting,Home Broadcasting:Grant to BBC,British Broadcasting Corporation,0030023672,"139,557,000.00",Grant payment to BBC - schedule reflects planned TV licence fee collection less concessionary licences funded by DWP
Department for Culture Media and Sport,Department for Culture Media and Sport,18/10/2011,Grant to BBC:Home Broadcasting,Home Broadcasting:Grant to BBC,British Broadcasting Corporation,0030023673,"34,889,000.00",Grant payment to BBC - schedule reflects planned TV licence fee collection less concessionary licences funded by DWP
Department for Culture Media and Sport,Department for Culture Media and Sport,24/10/2011,Grant to BBC:Home Broadcasting,Home Broadcasting:Grant to BBC,British Broadcasting Corporation,0030023674,"34,889,000.00",Grant payment to BBC - schedule reflects planned TV licence fee collection less concessionary licences funded by DWP
Department for Culture Media and Sport,Department for Culture Media and Sport,02/11/2011,Grant to BBC:Home Broadcasting,Home Broadcasting:Grant to BBC,British Broadcasting Corporation,0030023986,"32,000,000.00",Grant payment to BBC - schedule reflects planned TV licence fee collection less concessionary licences funded by DWP
Department for Culture Media and Sport,Department for Culture Media and Sport,07/11/2011,Grant to BBC:Home Broadcasting,Home Broadcasting:Grant to BBC,British Broadcasting Corporation,0030023987,"8,000,000.00",Grant payment to BBC - schedule reflects planned TV licence fee collection less concessionary licences funded by DWP
Department for Culture Media and Sport,Department for Culture Media and Sport,01/12/2011,Grant to BBC:Home Broadcasting,Home Broadcasting:Grant to BBC,British Broadcasting Corporation,0030024285,"34,889,000.00",Grant payment to BBC - schedule reflects planned TV licence fee collection less concessionary licences funded by DWP
Department for Culture Media and Sport,Department for Culture Media and Sport,08/12/2011,Grant to BBC:Home Broadcasting,Home Broadcasting:Grant to BBC,British Broadcasting Corporation,0030024286,"34,889,000.00",Grant payment to BBC - schedule reflects planned TV licence fee collection less concessionary licences funded by DWP
Department for Culture Media and Sport,Department for Culture Media and Sport,13/12/2011,Grant to BBC:Home Broadcasting,Home Broadcasting:Grant to BBC,British Broadcasting Corporation,0030024287,"139,557,000.00",Grant payment to BBC - schedule reflects planned TV licence fee collection less concessionary licences funded by DWP
Department for Culture Media and Sport,Department for Culture Media and Sport,19/12/2011,Grant to BBC:Home Broadcasting,Home Broadcasting:Grant to BBC,British Broadcasting Corporation,0030024288,"34,889,000.00",Grant payment to BBC - schedule reflects planned TV licence fee collection less concessionary licences funded by DWP
Department for Culture Media and Sport,Department for Culture Media and Sport,21/12/2011,Grant to BBC:Home Broadcasting,Home Broadcasting:Grant to BBC,British Broadcasting Corporation,0030024289,"34,889,000.00",Grant payment to BBC - schedule reflects planned TV licence fee collection less concessionary licences funded by DWP
Department for Culture Media and Sport,Department for Culture Media and Sport,03/01/2012,Grant to BBC:Home Broadcasting,Home Broadcasting:Grant to BBC,British Broadcasting Corporation,0030024619,"34,889,000.00",Grant payment to BBC - schedule reflects planned TV licence fee collection less concessionary licences funded by DWP
Department for Culture Media and Sport,Department for Culture Media and Sport,06/01/2012,Grant to BBC:Home Broadcasting,Home Broadcasting:Grant to BBC,British Broadcasting Corporation,0030024620,"34,889,000.00",Grant payment to BBC - schedule reflects planned TV licence fee collection less concessionary licences funded by DWP
Department for Culture Media and Sport,Department for Culture Media and Sport,11/01/2012,Grant to BBC:Home Broadcasting,Home Broadcasting:Grant to BBC,British Broadcasting Corporation,0030024621,"139,557,000.00",Grant payment to BBC - schedule reflects planned TV licence fee collection less concessionary licences funded by DWP
Department for Culture Media and Sport,Department for Culture Media and Sport,18/01/2012,Grant to BBC:Home Broadcasting,Home Broadcasting:Grant to BBC,British Broadcasting Corporation,0030024622,"34,889,000.00",Grant payment to BBC - schedule reflects planned TV licence fee collection less concessionary licences funded by DWP
Department for Culture Media and Sport,Department for Culture Media and Sport,23/01/2012,Grant to BBC:Home Broadcasting,Home Broadcasting:Grant to BBC,British Broadcasting Corporation,0030024623,"34,889,000.00",Grant payment to BBC - schedule reflects planned TV licence fee collection less concessionary licences funded by DWP
Department for Culture Media and Sport,Department for Culture Media and Sport,02/02/2012,Grant to BBC:Home Broadcasting,Home Broadcasting:Grant to BBC,British Broadcasting Corporation,0030024957,"34,889,000.00",Grant payment to BBC - schedule reflects planned TV licence fee collection less concessionary licences funded by DWP
Department for Culture Media and Sport,Department for Culture Media and Sport,08/02/2012,Grant to BBC:Home Broadcasting,Home Broadcasting:Grant to BBC,British Broadcasting Corporation,0030024958,"34,889,000.00",Grant payment to BBC - schedule reflects planned TV licence fee collection less concessionary licences funded by DWP
Department for Culture Media and Sport,Department for Culture Media and Sport,13/02/2012,Grant to BBC:Home Broadcasting,Home Broadcasting:Grant to BBC,British Broadcasting Corporation,0030024959,"139,557,000.00",Grant payment to BBC - schedule reflects planned TV licence fee collection less concessionary licences funded by DWP
Department for Culture Media and Sport,Department for Culture Media and Sport,22/02/2012,Grant to BBC:Home Broadcasting,Home Broadcasting:Grant to BBC,British Broadcasting Corporation,0030024960,"34,889,000.00",Grant payment to BBC - schedule reflects planned TV licence fee collection less concessionary licences funded by DWP
Department for Culture Media and Sport,Department for Culture Media and Sport,22/02/2012,Grant to BBC:Home Broadcasting,Home Broadcasting:Grant to BBC,British Broadcasting Corporation,0030024961,"34,889,000.00",Grant payment to BBC - schedule reflects planned TV licence fee collection less concessionary licences funded by DWP
Department for Culture Media and Sport,Department for Culture Media and Sport,08/04/2011,Grant-in-Aid (DCMS NDPBs),GIA British Film Institute,British Film Institute,0030021964,"4,737,987.00",Grant in Aid payment to a DCMS sponsored Non Departmental Public Body
Department for Culture Media and Sport,Department for Culture Media and Sport,03/05/2011,Grant-in-Aid (DCMS NDPBs),GIA British Film Institute,British Film Institute,0030022204,"3,425,924.00",Grant in Aid payment to a DCMS sponsored Non Departmental Public Body
Department for Culture Media and Sport,Department for Culture Media and Sport,01/06/2011,Grant-in-Aid (DCMS NDPBs),GIA British Film Institute,British Film Institute,0030022480,"3,462,696.00",Grant in Aid payment to a DCMS sponsored Non Departmental Public Body
Department for Culture Media and Sport,Department for Culture Media and Sport,26/09/2011,Grant-in-Aid (DCMS NDPBs),GIA British Film Institute,British Film Institute,0030023741,"3,167,406.00",Grant in Aid payment to a DCMS sponsored Non Departmental Public Body
Department for Culture Media and Sport,Department for Culture Media and Sport,03/10/2011,Grant-in-Aid (DCMS NDPBs),GIA British Film Institute,British Film Institute,0030023766,"6,499,419.00",Grant in Aid payment to a DCMS sponsored Non Departmental Public Body
Department for Culture Media and Sport,Department for Culture Media and Sport,01/11/2011,Grant-in-Aid (DCMS NDPBs),GIA British Film Institute,British Film Institute,0030024059,"3,249,570.00",Grant in Aid payment to a DCMS sponsored Non Departmental Public Body
Department for Culture Media and Sport,Department for Culture Media and Sport,01/12/2011,Grant-in-Aid (DCMS NDPBs),GIA British Film Institute,British Film Institute,0030024389,"3,535,842.00",Grant in Aid payment to a DCMS sponsored Non Departmental Public Body
Department for Culture Media and Sport,Department for Culture Media and Sport,03/01/2012,Grant-in-Aid (DCMS NDPBs),GIA British Film Institute,British Film Institute,0030024801,"2,907,843.00",Grant in Aid payment to a DCMS sponsored Non Departmental Public Body
Department for Culture Media and Sport,Department for Culture Media and Sport,01/02/2012,Grant-in-Aid (DCMS NDPBs),GIA British Film Institute,British Film Institute,0030025027,"1,458,669.00",Grant in Aid payment to a DCMS sponsored Non Departmental Public Body
Department for Culture Media and Sport,Department for Culture Media and Sport,01/04/2011,Grant-in-Aid (DCMS NDPBs),GIA Libraries bodies,British Library,0030021815,"7,420,000.00",Grant in Aid payment to a DCMS sponsored Non Departmental Public Body
Department for Culture Media and Sport,Department for Culture Media and Sport,03/05/2011,Grant-in-Aid (DCMS NDPBs),GIA Libraries bodies,British Library,0030022149,"6,694,090.00",Grant in Aid payment to a DCMS sponsored Non Departmental Public Body
Department for Culture Media and Sport,Department for Culture Media and Sport,01/06/2011,Grant-in-Aid (DCMS NDPBs),GIA Libraries bodies,British Library,0030022452,"4,956,413.00",Grant in Aid payment to a DCMS sponsored Non Departmental Public Body
Department for Culture Media and Sport,Department for Culture Media and Sport,01/07/2011,Grant-in-Aid (DCMS NDPBs),GIA Libraries bodies,British Library,0030022750,"7,538,543.00",Grant in Aid payment to a DCMS sponsored Non Departmental Public Body
Department for Culture Media and Sport,Department for Culture Media and Sport,01/08/2011,Grant-in-Aid (DCMS NDPBs),GIA Libraries bodies,British Library,0030023057,"6,621,560.00",Grant in Aid payment to a DCMS sponsored Non Departmental Public Body
Department for Culture Media and Sport,Department for Culture Media and Sport,01/09/2011,Grant-in-Aid (DCMS NDPBs),GIA Libraries bodies,British Library,0030023337,"7,970,665.00",Grant in Aid payment to a DCMS sponsored Non Departmental Public Body
Department for Culture Media and Sport,Department for Culture Media and Sport,03/10/2011,Grant-in-Aid (DCMS NDPBs),GIA Libraries bodies,British Library,0030023636,"9,221,527.00",Grant in Aid payment to a DCMS sponsored Non Departmental Public Body
Department for Culture Media and Sport,Department for Culture Media and Sport,01/11/2011,Grant-in-Aid (DCMS NDPBs),GIA Libraries bodies,British Library,0030024048,"10,255,774.00",Grant in Aid payment to a DCMS sponsored Non Departmental Public Body
Department for Culture Media and Sport,Department for Culture Media and Sport,01/12/2011,Grant-in-Aid (DCMS NDPBs),GIA Libraries bodies,British Library,0030024467,"8,600,732.00",Grant in Aid payment to a DCMS sponsored Non Departmental Public Body
Department for Culture Media and Sport,Department for Culture Media and Sport,03/01/2012,Grant-in-Aid (DCMS NDPBs),GIA Libraries bodies,British Library,0030024750,"6,696,564.00",Grant in Aid payment to a DCMS sponsored Non Departmental Public Body
Department for Culture Media and Sport,Department for Culture Media and Sport,01/02/2012,Grant-in-Aid (DCMS NDPBs),GIA Libraries bodies,British Library,0030025040,"7,511,839.00",Grant in Aid payment to a DCMS sponsored Non Departmental Public Body
Department for Culture Media and Sport,Department for Culture Media and Sport,21/04/2011,Grant-in-Aid (DCMS NDPBs),GIA Mus Libs Archives x-sector,British Library,0030022135,"61,527.00",Grant in Aid payment to a DCMS sponsored Non Departmental Public Body
Department for Culture Media and Sport,Department for Culture Media and Sport,19/04/2011,Grant-in-Aid (DCMS NDPBs),GIA Mus Libs Archives x-sector,British Museum,0030022114,"81,998.20",Grant in Aid payment to a DCMS sponsored Non Departmental Public Body
Department for Culture Media and Sport,Department for Culture Media and Sport,01/04/2011,Grant-in-Aid (DCMS NDPBs),GIA Museums & Galleries,British Museum,0030021827,"4,852,899.00",Grant in Aid payment to a DCMS sponsored Non Departmental Public Body
Department for Culture Media and Sport,Department for Culture Media and Sport,03/05/2011,Grant-in-Aid (DCMS NDPBs),GIA Museums & Galleries,British Museum,0030022133,"5,052,899.00",Grant in Aid payment to a DCMS sponsored Non Departmental Public Body
Department for Culture Media and Sport,Department for Culture Media and Sport,01/06/2011,Grant-in-Aid (DCMS NDPBs),GIA Museums & Galleries,British Museum,0030022451,"5,352,899.00",Grant in Aid payment to a DCMS sponsored Non Departmental Public Body
Department for Culture Media and Sport,Department for Culture Media and Sport,01/07/2011,Grant-in-Aid (DCMS NDPBs),GIA Museums & Galleries,British Museum,0030022756,"4,514,435.00",Grant in Aid payment to a DCMS sponsored Non Departmental Public Body
Department for Culture Media and Sport,Department for Culture Media and Sport,01/08/2011,Grant-in-Aid (DCMS NDPBs),GIA Museums & Galleries,British Museum,0030023055,"5,874,956.00",Grant in Aid payment to a DCMS sponsored Non Departmental Public Body
Department for Culture Media and Sport,Department for Culture Media and Sport,05/09/2011,Grant-in-Aid (DCMS NDPBs),GIA Museums & Galleries,British Museum,0030023349,"5,822,048.00",Grant in Aid payment to a DCMS sponsored Non Departmental Public Body
Department for Culture Media and Sport,Department for Culture Media and Sport,03/10/2011,Grant-in-Aid (DCMS NDPBs),GIA Museums & Galleries,British Museum,0030023653,"2,793,114.00",Grant in Aid payment to a DCMS sponsored Non Departmental Public Body
Department for Culture Media and Sport,Department for Culture Media and Sport,03/11/2011,Grant-in-Aid (DCMS NDPBs),GIA Museums & Galleries,British Museum,0030023983,"4,267,250.00",Grant in Aid payment to a DCMS sponsored Non Departmental Public Body
Department for Culture Media and Sport,Department for Culture Media and Sport,05/12/2011,Grant-in-Aid (DCMS NDPBs),GIA Museums & Galleries,British Museum,0030024336,"4,228,000.00",Grant in Aid payment to a DCMS sponsored Non Departmental Public Body
Department for Culture Media and Sport,Department for Culture Media and Sport,05/01/2012,Grant-in-Aid (DCMS NDPBs),GIA Museums & Galleries,British Museum,0030024708,"4,500,000.00",Grant in Aid payment to a DCMS sponsored Non Departmental Public Body
Department for Culture Media and Sport,Department for Culture Media and Sport,03/02/2012,Grant-in-Aid (DCMS NDPBs),GIA Museums & Galleries,British Museum,0030025041,"4,450,000.00",Grant in Aid payment to a DCMS sponsored Non Departmental Public Body
Department for Culture Media and Sport,Department for Culture Media and Sport,01/08/2011,VAT Recoverable Business Activ,Misc Balance Sheet,Brophy Grounds Maintenance Ltd,0030023143,"3,733.84",Scheduled Sales  April
Department for Culture Media and Sport,Department for Culture Media and Sport,01/08/2011,VAT Recoverable Business Activ,Misc Balance Sheet,Brophy Grounds Maintenance Ltd,0030023144,929.80,Scheduled Sales   May
Department for Culture Media and Sport,Department for Culture Media and Sport,18/01/2012,Ceremonial Event Costs,State Ceremonials Prog Costs,Brophy Grounds Maintenance Ltd,0030024971,"26,289.96",Scheduled Works - Rememberance Sunday 2011
Department for Culture Media and Sport,Department for Culture Media and Sport,13/04/2011,Flag Flying,State Ceremonials Prog Costs,Brophy Grounds Maintenance Ltd,0030022015,"26,189.48",Ceremonial Expenses
Department for Culture Media and Sport,Department for Culture Media and Sport,01/08/2011,Flag Flying,State Ceremonials Prog Costs,Brophy Grounds Maintenance Ltd,0030023143,"30,246.68",Scheduled Sales  April
Department for Culture Media and Sport,Department for Culture Media and Sport,01/08/2011,Flag Flying,State Ceremonials Prog Costs,Brophy Grounds Maintenance Ltd,0030023144,"24,235.18",Scheduled Sales   May
Department for Culture Media and Sport,Department for Culture Media and Sport,02/09/2011,Flag Flying,State Ceremonials Prog Costs,Brophy Grounds Maintenance Ltd,0030023497,"25,305.61",Scheduled Work - June
Department for Culture Media and Sport,Department for Culture Media and Sport,20/10/2011,Flag Flying,State Ceremonials Prog Costs,Brophy Grounds Maintenance Ltd,0030023989,"21,661.71",Scheduled Work - August
Department for Culture Media and Sport,Department for Culture Media and Sport,18/01/2012,Flag Flying,State Ceremonials Prog Costs,Brophy Grounds Maintenance Ltd,0030024970,"26,381.63",Scheduled Sales - Nov 
Department for Culture Media and Sport,Department for Culture Media and Sport,08/03/2012,Research,CASE Joint Research Projects,Burns Owens Partnership Ltd,0030025519,"24,165.00",Sustainability
Department for Culture Media and Sport,Department for Culture Media and Sport,05/10/2011,Parliamentary Counsel Costs,Legal Advisers to DCMS (TSOL),Cabinet Office,0030023778,"54,458.00",OPC Funding Charges 
Department for Culture Media and Sport,Department for Culture Media and Sport,01/11/2011,CIU Mapping Doc 2000,Misc Balance Sheet,Cabinet Office (CS Superannuation),0030024124,"561,003.00",CABE Closure 
Department for Culture Media and Sport,Department for Culture Media and Sport,08/04/2011,Office Accomm Service Charges,Estates & Property Services,Carillion Services Limited,0030021943,"172,467.88",Service Charge
Department for Culture Media and Sport,Department for Culture Media and Sport,27/01/2012,Office Accomm Service Charges,Estates & Property Services,Carillion Services Limited,0030025068,"172,467.88",Service Charge
Department for Culture Media and Sport,Department for Culture Media and Sport,14/10/2011,Office Accommodation Rent,Estates & Property Services,Carillion Services Limited,0030023873,"109,964.60",Service Charge
Department for Culture Media and Sport,Department for Culture Media and Sport,13/05/2011,Building Maintenance,Estates & Property Services,Carillion Services Ltd,0030022281,"34,598.49",Fixed Costs - May 2011
Department for Culture Media and Sport,Department for Culture Media and Sport,13/06/2011,Building Maintenance,Estates & Property Services,Carillion Services Ltd,0030022657,"56,938.55",Approved Additional Work - May 2011
Department for Culture Media and Sport,Department for Culture Media and Sport,20/12/2011,Building Maintenance,Estates & Property Services,Carillion Services Ltd,0030024712,"36,283.06",Variable Costs 2010/11
Department for Culture Media and Sport,Department for Culture Media and Sport,18/05/2011,Security,Estates & Property Services,Carillion Services Ltd,0030022318,"67,640.54",Fixed Costs - March 2011
Department for Culture Media and Sport,Department for Culture Media and Sport,18/05/2011,Security,Estates & Property Services,Carillion Services Ltd,0030022333,"57,684.58",Fixed Costs - April 2011
Department for Culture Media and Sport,Department for Culture Media and Sport,13/06/2011,Security,Estates & Property Services,Carillion Services Ltd,0030022631,"57,684.58",Fixed Costs - May 2011
Department for Culture Media and Sport,Department for Culture Media and Sport,19/07/2011,Security,Estates & Property Services,Carillion Services Ltd,0030022915,"57,684.58",Fixed Costs - June 2011
Department for Culture Media and Sport,Department for Culture Media and Sport,08/08/2011,Security,Estates & Property Services,Carillion Services Ltd,0030023244,"57,684.58",Fixed Costs - July  2011
Department for Culture Media and Sport,Department for Culture Media and Sport,07/09/2011,Security,Estates & Property Services,Carillion Services Ltd,0030023531,"57,684.58",Fixed Costs - August  2011
Department for Culture Media and Sport,Department for Culture Media and Sport,20/09/2011,Security,Estates & Property Services,Carillion Services Ltd,0030023583,"80,112.80",Variable Costs - August 11
Department for Culture Media and Sport,Department for Culture Media and Sport,14/10/2011,Security,Estates & Property Services,Carillion Services Ltd,0030023834,"58,743.39",Fixed Costs - September   2011
Department for Culture Media and Sport,Department for Culture Media and Sport,16/12/2011,Security,Estates & Property Services,Carillion Services Ltd,0030024194,"57,847.79",Variable Costs - October 11
Department for Culture Media and Sport,Department for Culture Media and Sport,05/12/2011,Security,Estates & Property Services,Carillion Services Ltd,0030024529,"24,340.90",Variable Costs 2011/12
Department for Culture Media and Sport,Department for Culture Media and Sport,20/12/2011,Security,Estates & Property Services,Carillion Services Ltd,0030024663,"57,847.79",Fixed Costs - November  2011
Department for Culture Media and Sport,Department for Culture Media and Sport,03/01/2012,Security,Estates & Property Services,Carillion Services Ltd,0030024788,"59,004.60",Fixed Costs - December  2012
Department for Culture Media and Sport,Department for Culture Media and Sport,01/03/2012,Security,Estates & Property Services,Carillion Services Ltd,0030025434,"58,232.05",Fixed Costs - January   2012
Department for Culture Media and Sport,Department for Culture Media and Sport,07/03/2012,Security,Estates & Property Services,Carillion Services Ltd,0030025502,"59,695.68",Fixed Costs - February  2012
Department for Culture Media and Sport,Department for Culture Media and Sport,07/03/2012,Security,Estates & Property Services,Carillion Services Ltd,0030025503,"49,396.71",Variable Cost - Feb 2012
Department for Culture Media and Sport,Department for Culture Media and Sport,06/05/2011,Current Grants Private Sector,GIA Architecture+Heritage,Chatham Historic Dockyard Trust,0030022205,"69,500.00",Grant for preservation of heritage site
Department for Culture Media and Sport,Department for Culture Media and Sport,15/07/2011,Current Grants Private Sector,GIA Architecture+Heritage,Chatham Historic Dockyard Trust,0030022999,"69,500.00",Grant for preservation of heritage site
Department for Culture Media and Sport,Department for Culture Media and Sport,21/10/2011,Current Grants Private Sector,GIA Architecture+Heritage,Chatham Historic Dockyard Trust,0030024012,"69,500.00",Grant to non-national museum under current Funding Agreement
Department for Culture Media and Sport,Department for Culture Media and Sport,16/01/2012,Current Grants Private Sector,GIA Architecture+Heritage,Chatham Historic Dockyard Trust,0030024876,"69,500.00",Grant for preservation of heritage site
Department for Culture Media and Sport,Department for Culture Media and Sport,01/04/2011,Grant-in-Aid (DCMS NDPBs),GIA Architecture+Heritage,Churches Conservation Trust,0030021829,"550,000.00",Grant in Aid payment to a DCMS sponsored Non Departmental Public Body
Department for Culture Media and Sport,Department for Culture Media and Sport,01/07/2011,Grant-in-Aid (DCMS NDPBs),GIA Architecture+Heritage,Churches Conservation Trust,0030022731,"850,000.00",Grant in Aid payment to a DCMS sponsored Non Departmental Public Body
Department for Culture Media and Sport,Department for Culture Media and Sport,03/10/2011,Grant-in-Aid (DCMS NDPBs),GIA Architecture+Heritage,Churches Conservation Trust,0030023620,"450,000.00",Grant in Aid payment to a DCMS sponsored Non Departmental Public Body
Department for Culture Media and Sport,Department for Culture Media and Sport,03/01/2012,Grant-in-Aid (DCMS NDPBs),GIA Architecture+Heritage,Churches Conservation Trust,0030024713,"1,076,000.00",Grant in Aid payment to a DCMS sponsored Non Departmental Public Body
Department for Culture Media and Sport,Department for Culture Media and Sport,13/10/2011,CIU Mapping Doc 2000,Misc Balance Sheet,Civil Aviation Authority,0030023901,"57,975.45",Service Charge re CABE
Department for Culture Media and Sport,Department for Culture Media and Sport,12/09/2011,Publicity,Communications,COI Communication,0030023584,"23,904.25",Great campaign
Department for Culture Media and Sport,Department for Culture Media and Sport,12/09/2011,Publicity,GOE Admin Costs,COI Communication,0030023584,"376,095.75",Great campaign
Department for Culture Media and Sport,Department for Culture Media and Sport,22/02/2012,Publicity,GOE Admin Costs,COI Communication,0030025360,"100,000.00",Great campaign
Department for Culture Media and Sport,Department for Culture Media and Sport,20/05/2011,COI Services,Press Office,COI Communication,0030022390,"40,000.00",MMU Subscriptions 2011/12
Department for Culture Media and Sport,Department for Culture Media and Sport,03/05/2011,Grant-in-Aid (DCMS NDPBs),GIA Architecture+Heritage,Comm.for Architecture & the Built Envir.,0030022221,"1,126,065.00",Grant in Aid payment to a DCMS sponsored Non Departmental Public Body
Department for Culture Media and Sport,Department for Culture Media and Sport,09/06/2011,Grant-in-Aid (DCMS NDPBs),GIA Architecture+Heritage,Comm.for Architecture & the Built Envir.,0030022560,"810,393.00",Grant in Aid payment to a DCMS sponsored Non Departmental Public Body
Department for Culture Media and Sport,Department for Culture Media and Sport,01/07/2011,Grant-in-Aid (DCMS NDPBs),GIA Architecture+Heritage,Comm.for Architecture & the Built Envir.,0030022694,"255,460.00",Grant in Aid payment to a DCMS sponsored Non Departmental Public Body
Department for Culture Media and Sport,Department for Culture Media and Sport,22/06/2011,Grant-in-Aid (DCMS NDPBs),GIA Architecture+Heritage,Comm.for Architecture & the Built Envir.,0030022777,"300,000.00",Grant in Aid payment to a DCMS sponsored Non Departmental Public Body
Department for Culture Media and Sport,Department for Culture Media and Sport,24/06/2011,Grant-in-Aid (DCMS NDPBs),GIA Architecture+Heritage,Comm.for Architecture & the Built Envir.,0030022794,"50,000.00",Grant in Aid payment to a DCMS sponsored Non Departmental Public Body
Department for Culture Media and Sport,Department for Culture Media and Sport,01/08/2011,Grant-in-Aid (DCMS NDPBs),GIA Architecture+Heritage,Comm.for Architecture & the Built Envir.,0030022950,"187,530.00",Grant in Aid payment to a DCMS sponsored Non Departmental Public Body
Department for Culture Media and Sport,Department for Culture Media and Sport,01/09/2011,Grant-in-Aid (DCMS NDPBs),GIA Architecture+Heritage,Comm.for Architecture & the Built Envir.,0030023380,"200,000.00",Grant in Aid payment to a DCMS sponsored Non Departmental Public Body
Department for Culture Media and Sport,Department for Culture Media and Sport,30/03/2012,Publicity,GOE Admin Costs,Creative Choice,0030025847,"26,000.00",Disability Sports Summit - Creative Choice Commission
Department for Culture Media and Sport,Department for Culture Media and Sport,21/12/2011,Current Grants Private Sector,LPW Programme Costs,Croix Rouge Farm Memorial Foundation,0030024734,"44,190.00",Croix Rouge Memorial - construction & sculpting
Department for Culture Media and Sport,Department for Culture Media and Sport,22/06/2011,Office Accommodation Rent,Estates & Property Services,Cushman & Wakefield,0030022574,"190,620.00",Rent
Department for Culture Media and Sport,Department for Culture Media and Sport,23/09/2011,Office Accommodation Rent,Estates & Property Services,Cushman & Wakefield,0030023445,"190,620.00",Rent
Department for Culture Media and Sport,Department for Culture Media and Sport,21/12/2011,Office Accommodation Rent,Estates & Property Services,Cushman & Wakefield,0030024563,"190,620.00",Rent
Department for Culture Media and Sport,Department for Culture Media and Sport,21/03/2012,Office Accommodation Rent,Estates & Property Services,Cushman & Wakefield,0030025532,"190,620.00",Rent
Department for Culture Media and Sport,Department for Culture Media and Sport,13/04/2011,Grant to OGD (Resource),DCMS contribution toPFI grants,Dept for Communities & Local Govt,0030022043,"1,538,516.58",PFI Project Grant (Area Based Contribution)
Department for Culture Media and Sport,Department for Culture Media and Sport,06/05/2011,Grant to OGD (Resource),DCMS contribution toPFI grants,Dept for Communities & Local Govt,0030022242,"1,538,516.58",PFI Project Grant (Area Based Contribution)
Department for Culture Media and Sport,Department for Culture Media and Sport,12/05/2011,Grant to OGD (Resource),DCMS contribution toPFI grants,Dept for Communities & Local Govt,0030022284,"1,538,516.58",PFI Project Grant (Area Based Contribution)
Department for Culture Media and Sport,Department for Culture Media and Sport,10/06/2011,Grant to OGD (Resource),DCMS contribution toPFI grants,Dept for Communities & Local Govt,0030022548,"1,538,516.58",PFI Project Grant (Area Based Contribution)
Department for Culture Media and Sport,Department for Culture Media and Sport,13/09/2011,Grant to OGD (Resource),DCMS contribution toPFI grants,Dept for Communities & Local Govt,0030023465,"4,615,550.00",PFI Project Grant (Area Based Contribution)
Department for Culture Media and Sport,Department for Culture Media and Sport,13/12/2011,Grant to OGD (Resource),DCMS contribution toPFI grants,Dept for Communities & Local Govt,0030024608,"4,615,550.00",PFI Project Grant (Area Based Contribution)
Department for Culture Media and Sport,Department for Culture Media and Sport,19/03/2012,Grant to OGD (Resource),DCMS contribution toPFI grants,Dept for Communities & Local Govt,0030025656,"6,363,441.26",PFI Project Grant (Area Based Contribution)
Department for Culture Media and Sport,Department for Culture Media and Sport,19/04/2011,Internal Audit Service CLG fee,Director of Finance,Dept for Communities & Local Govt,0030022083,"43,224.85",Internal Audit Service Charges
Department for Culture Media and Sport,Department for Culture Media and Sport,16/08/2011,Internal Audit Service CLG fee,Director of Finance,Dept for Communities & Local Govt,0030023295,"31,844.90",Internal Audit Service Charges
Department for Culture Media and Sport,Department for Culture Media and Sport,11/11/2011,Internal Audit Service CLG fee,Director of Finance,Dept for Communities & Local Govt,0030024115,"33,859.40",Internal Audit Service Charges
Department for Culture Media and Sport,Department for Culture Media and Sport,14/02/2012,Internal Audit Service CLG fee,Director of Finance,Dept for Communities & Local Govt,0030025244,"31,979.20",Internal Audit Service Charges
Department for Culture Media and Sport,Department for Culture Media and Sport,14/07/2011,Grant to OGD (Resource),GIA Architecture+Heritage,Dept for Communities & Local Govt,0030022986,"2,000,000.00",Contribution towards closure costs of Commission for Architecture and the Built Environment
Department for Culture Media and Sport,Department for Culture Media and Sport,12/01/2012,Reimbursement of Agreed Costs,GOE managed programme costs,Dept for Culture Arts & Leisure,0030024920,"30,000.00",NI Inspire Programme
Department for Culture Media and Sport,Department for Culture Media and Sport,14/02/2012,Current Grants Private Sector,Spectrum + Broadband prog cost,Disabled Living Foundation,0030025281,"27,350.00",One Stop Shop Grant
Department for Culture Media and Sport,Department for Culture Media and Sport,24/05/2011,VAT Recoverable Business Activ,Misc Balance Sheet,E C Harris LLP,0030022458,"6,536.20",VAT re Ceremonial Services 
Department for Culture Media and Sport,Department for Culture Media and Sport,07/06/2011,VAT Recoverable Business Activ,Misc Balance Sheet,E C Harris LLP,0030022529,"24,616.68",VAT re Ceremonial Services 
Department for Culture Media and Sport,Department for Culture Media and Sport,24/05/2011,Works Manager Fees,State Ceremonials Prog Costs,E C Harris LLP,0030022458,"32,681.00",Ceremonial Services 
Department for Culture Media and Sport,Department for Culture Media and Sport,07/06/2011,Works Manager Fees,State Ceremonials Prog Costs,E C Harris LLP,0030022529,"123,083.41",Ceremonial Services 
Department for Culture Media and Sport,Department for Culture Media and Sport,21/04/2011,Research,Digital Switchover Programme,eaga plc Switchover Help Scheme,0030021950,"66,444.10",Charges
Department for Culture Media and Sport,Department for Culture Media and Sport,21/04/2011,VAT Recoverable Business Activ,Misc Balance Sheet,eaga plc Switchover Help Scheme,0030021950,"13,288.82",Charges
Department for Culture Media and Sport,Department for Culture Media and Sport,16/01/2012,Reimbursement of Agreed Costs,GOE managed programme costs,East Midlands Development Agency,0030024948,"50,000.00",Olympics 
Department for Culture Media and Sport,Department for Culture Media and Sport,17/02/2012,Reimbursement of Agreed Costs,GOE managed programme costs,EEDA,0030025350,"50,000.00",Olympics 
Department for Culture Media and Sport,Department for Culture Media and Sport,22/03/2012,Learning & Development,Central Learning & Development,Eliesha Training Ltd,0030025694,"44,955.00",Training Provider 
Department for Culture Media and Sport,Department for Culture Media and Sport,01/04/2011,Grant-in-Aid (DCMS NDPBs),GIA Architecture+Heritage,English Heritage,0030021828,"12,000,000.00",Grant in Aid payment to a DCMS sponsored Non Departmental Public Body
Department for Culture Media and Sport,Department for Culture Media and Sport,03/05/2011,Grant-in-Aid (DCMS NDPBs),GIA Architecture+Heritage,English Heritage,0030022185,"11,000,000.00",Grant in Aid payment to a DCMS sponsored Non Departmental Public Body
Department for Culture Media and Sport,Department for Culture Media and Sport,01/06/2011,Grant-in-Aid (DCMS NDPBs),GIA Architecture+Heritage,English Heritage,0030022478,"9,000,000.00",Grant in Aid payment to a DCMS sponsored Non Departmental Public Body
Department for Culture Media and Sport,Department for Culture Media and Sport,01/07/2011,Grant-in-Aid (DCMS NDPBs),GIA Architecture+Heritage,English Heritage,0030022788,"8,000,000.00",Grant in Aid payment to a DCMS sponsored Non Departmental Public Body
Department for Culture Media and Sport,Department for Culture Media and Sport,01/08/2011,Grant-in-Aid (DCMS NDPBs),GIA Architecture+Heritage,English Heritage,0030023093,"8,000,000.00",Grant in Aid payment to a DCMS sponsored Non Departmental Public Body
Department for Culture Media and Sport,Department for Culture Media and Sport,03/10/2011,Grant-in-Aid (DCMS NDPBs),GIA Architecture+Heritage,English Heritage,0030023681,"10,000,000.00",Grant in Aid payment to a DCMS sponsored Non Departmental Public Body
Department for Culture Media and Sport,Department for Culture Media and Sport,01/11/2011,Grant-in-Aid (DCMS NDPBs),GIA Architecture+Heritage,English Heritage,0030024058,"10,000,000.00",Grant in Aid payment to a DCMS sponsored Non Departmental Public Body
Department for Culture Media and Sport,Department for Culture Media and Sport,05/01/2012,Grant-in-Aid (DCMS NDPBs),GIA Architecture+Heritage,English Heritage,0030024802,"15,000,000.00",Grant in Aid payment to a DCMS sponsored Non Departmental Public Body
Department for Culture Media and Sport,Department for Culture Media and Sport,03/02/2012,Grant-in-Aid (DCMS NDPBs),GIA Architecture+Heritage,English Heritage,0030025026,"18,000,000.00",Grant in Aid payment to a DCMS sponsored Non Departmental Public Body
Department for Culture Media and Sport,Department for Culture Media and Sport,14/04/2011,Oth Professional Services Prog,Asset sale,Ernst & Young LLP,0030022031,"341,300.00",Advice on asset sale
Department for Culture Media and Sport,Department for Culture Media and Sport,21/06/2011,Oth Professional Services Prog,Asset sale,Ernst & Young LLP,0030022685,"318,600.00",Advice on asset sale
Department for Culture Media and Sport,Department for Culture Media and Sport,21/06/2011,Oth Professional Services Prog,Asset sale,Ernst & Young LLP,0030022686,"46,481.10",Advice on asset sale
Department for Culture Media and Sport,Department for Culture Media and Sport,25/07/2011,Oth Professional Services Prog,Asset sale,Ernst & Young LLP,0030023059,"125,000.00",Advice on asset sale
Department for Culture Media and Sport,Department for Culture Media and Sport,02/09/2011,Oth Professional Services Prog,Asset sale,Ernst & Young LLP,0030023495,"77,740.71",Advice on asset sale
Department for Culture Media and Sport,Department for Culture Media and Sport,22/12/2011,Oth Professional Services Prog,Asset sale,Ernst & Young LLP,0030024758,"154,352.07",Advice on asset sale
Department for Culture Media and Sport,Department for Culture Media and Sport,05/07/2011,International Subscriptions,Media - Programme Costs,European Audiovisual Observatory,0030022816,"154,601.95",Contribution to European Audio Visual Observatory 2011
Department for Culture Media and Sport,Department for Culture Media and Sport,24/01/2012,International Subscriptions,Media - Programme Costs,European Audiovisual Observatory,0030024995,"71,725.50",Contribution to European Audio Visual Observatory 2012
Department for Culture Media and Sport,Department for Culture Media and Sport,07/09/2011,Research,EAU Policy Research + Eval,Frontier Economics Ltd,0030023546,"34,680.00",Contribution of the Communication Sector to Growth Project
Department for Culture Media and Sport,Department for Culture Media and Sport,26/03/2012,Payments under GIS Indemnity,Museums+Cultural PropertyProgs,Fundacio Joan Miro,0030025756,"208,313.00",Government Indemnity Scheme
Department for Culture Media and Sport,Department for Culture Media and Sport,01/04/2011,Grant-in-Aid (DCMS NDPBs),GIA Museums & Galleries,Geffrye Museum,0030021791,"253,000.00",Grant in Aid payment to a DCMS sponsored Non Departmental Public Body
Department for Culture Media and Sport,Department for Culture Media and Sport,03/05/2011,Grant-in-Aid (DCMS NDPBs),GIA Museums & Galleries,Geffrye Museum,0030022201,"155,000.00",Grant in Aid payment to a DCMS sponsored Non Departmental Public Body
Department for Culture Media and Sport,Department for Culture Media and Sport,01/06/2011,Grant-in-Aid (DCMS NDPBs),GIA Museums & Galleries,Geffrye Museum,0030022417,"150,000.00",Grant in Aid payment to a DCMS sponsored Non Departmental Public Body
Department for Culture Media and Sport,Department for Culture Media and Sport,01/07/2011,Grant-in-Aid (DCMS NDPBs),GIA Museums & Galleries,Geffrye Museum,0030022744,"124,000.00",Grant in Aid payment to a DCMS sponsored Non Departmental Public Body
Department for Culture Media and Sport,Department for Culture Media and Sport,01/08/2011,Grant-in-Aid (DCMS NDPBs),GIA Museums & Galleries,Geffrye Museum,0030022992,"124,000.00",Grant in Aid payment to a DCMS sponsored Non Departmental Public Body
Department for Culture Media and Sport,Department for Culture Media and Sport,01/09/2011,Grant-in-Aid (DCMS NDPBs),GIA Museums & Galleries,Geffrye Museum,0030023242,"124,000.00",Grant in Aid payment to a DCMS sponsored Non Departmental Public Body
Department for Culture Media and Sport,Department for Culture Media and Sport,03/10/2011,Grant-in-Aid (DCMS NDPBs),GIA Museums & Galleries,Geffrye Museum,0030023632,"124,000.00",Grant in Aid payment to a DCMS sponsored Non Departmental Public Body
Department for Culture Media and Sport,Department for Culture Media and Sport,01/11/2011,Grant-in-Aid (DCMS NDPBs),GIA Museums & Galleries,Geffrye Museum,0030023962,"124,000.00",Grant in Aid payment to a DCMS sponsored Non Departmental Public Body
Department for Culture Media and Sport,Department for Culture Media and Sport,01/12/2011,Grant-in-Aid (DCMS NDPBs),GIA Museums & Galleries,Geffrye Museum,0030024302,"124,000.00",Grant in Aid payment to a DCMS sponsored Non Departmental Public Body
Department for Culture Media and Sport,Department for Culture Media and Sport,03/01/2012,Grant-in-Aid (DCMS NDPBs),GIA Museums & Galleries,Geffrye Museum,0030024685,"124,000.00",Grant in Aid payment to a DCMS sponsored Non Departmental Public Body
Department for Culture Media and Sport,Department for Culture Media and Sport,01/02/2012,Grant-in-Aid (DCMS NDPBs),GIA Museums & Galleries,Geffrye Museum,0030025003,"124,000.00",Grant in Aid payment to a DCMS sponsored Non Departmental Public Body
Department for Culture Media and Sport,Department for Culture Media and Sport,01/03/2012,Grant-in-Aid (DCMS NDPBs),GIA Museums & Galleries,Geffrye Museum,0030025313,"124,000.00",Grant in Aid payment to a DCMS sponsored Non Departmental Public Body
Department for Culture Media and Sport,Department for Culture Media and Sport,11/05/2011,Other Telephone Charges,Information Services,Government Procurement Services,0030022297,"51,280.92",Telephone charges
Department for Culture Media and Sport,Department for Culture Media and Sport,08/08/2011,Other Telephone Charges,Information Services,Government Procurement Services,0030023235,"51,505.04",Telephone charges
Department for Culture Media and Sport,Department for Culture Media and Sport,08/11/2011,Other Telephone Charges,Information Services,Government Procurement Services,0030024188,"50,590.09",Telephone charges
Department for Culture Media and Sport,Department for Culture Media and Sport,04/04/2011,Research,EAU Policy Research + Eval,Grant Thornton UK LLP,0030021857,"60,000.00",Impact & Legacy of London 2012
Department for Culture Media and Sport,Department for Culture Media and Sport,01/04/2011,Research,EAU Policy Research + Eval,Grant Thornton UK LLP,0030021860,"25,000.00",Impact & Legacy of London 2012
Department for Culture Media and Sport,Department for Culture Media and Sport,01/04/2011,Research,EAU Policy Research + Eval,Grant Thornton UK LLP,0030021862,"30,000.00",Impact & Legacy of London 2012
Department for Culture Media and Sport,Department for Culture Media and Sport,01/04/2011,Research,EAU Policy Research + Eval,Grant Thornton UK LLP,0030021863,"40,000.00",Impact & Legacy of London 2012
Department for Culture Media and Sport,Department for Culture Media and Sport,30/09/2011,Research,EAU Policy Research + Eval,Grant Thornton UK LLP,0030023772,"50,000.00",Impact & Legacy of London 2012
Department for Culture Media and Sport,Department for Culture Media and Sport,05/01/2012,Research,EAU Policy Research + Eval,Grant Thornton UK LLP,0030024825,"50,000.00",Impact & Legacy of London 2012
Department for Culture Media and Sport,Department for Culture Media and Sport,05/01/2012,Research,EAU Policy Research + Eval,Grant Thornton UK LLP,0030024828,"50,000.00",Impact & Legacy of London 2012
Department for Culture Media and Sport,Department for Culture Media and Sport,29/03/2012,Research,EAU Policy Research + Eval,Grant Thornton UK LLP,0030025774,"35,000.00",Impact & Legacy of London 2012
Department for Culture Media and Sport,Department for Culture Media and Sport,29/03/2012,Research,EAU Policy Research + Eval,Grant Thornton UK LLP,0030025779,"25,000.00",Impact & Legacy of London 2012
Department for Culture Media and Sport,Department for Culture Media and Sport,29/03/2012,Research,EAU Policy Research + Eval,Grant Thornton UK LLP,0030025780,"27,000.00",Impact & Legacy of London 2012
Department for Culture Media and Sport,Department for Culture Media and Sport,25/11/2011,Digital Preservation Fund,GOE Admin Costs,Greater London Authority (LDA Tourism),0030024444,"36,729.00",Funding for Commission for Sustainable London 2012
Department for Culture Media and Sport,Department for Culture Media and Sport,21/09/2011,VAT Recoverable Business Activ,Misc Balance Sheet,Greater London Authority (LDA Tourism),0030023688,"175,534.39",Event Management Cost
Department for Culture Media and Sport,Department for Culture Media and Sport,21/09/2011,Ceremonials - Other Costs,State Ceremonials Prog Costs,Greater London Authority (LDA Tourism),0030023688,"877,671.96",Event Management Cost
Department for Culture Media and Sport,Department for Culture Media and Sport,11/10/2011,Current Grants Private Sector,GIA Architecture+Heritage,Greenwich Foundation for the RN College,0030023864,"694,000.00",Grant for preservation of heritage site
Department for Culture Media and Sport,Department for Culture Media and Sport,19/04/2011,Grant-in-Aid (DCMS NDPBs),Mus+Libs-Other Programme Spend,Greenwich Foundation for the RN College,0030022109,"694,000.00",Grant in Aid payment to a DCMS sponsored Non Departmental Public Body
Department for Culture Media and Sport,Department for Culture Media and Sport,08/03/2012,Management Consultants,Broadband Delivery UK (Admin),Herefordshire County Council,0030025499,"91,431.09",Grant Contribution re Borders Broadband Team
Department for Culture Media and Sport,Department for Culture Media and Sport,17/10/2011,Grant to OGD (Resource),GOE managed programme costs,Home Office ,0030023952,"5,250,000.00",GOE Contribution 
Department for Culture Media and Sport,Department for Culture Media and Sport,14/12/2011,Grant to OGD (Resource),GOE managed programme costs,Home Office ,0030024657,"2,625,000.00",GOE Contribution 
Department for Culture Media and Sport,Department for Culture Media and Sport,22/12/2011,Grant to OGD (Resource),GOE managed programme costs,Home Office ,0030024766,"1,350,000.00",GOE Contribution 
Department for Culture Media and Sport,Department for Culture Media and Sport,28/03/2012,Grant to OGD (Resource),GOE managed programme costs,Home Office ,0030025801,"4,571,000.00",GOE Contribution 
Department for Culture Media and Sport,Department for Culture Media and Sport,25/07/2011,Grant to OGD (Resource),Other Sports Support(excl ISB),Home Office ,0030023089,"300,000.00",DCMS  Contribution - to the work of the Hillsborough Panel
Department for Culture Media and Sport,Department for Culture Media and Sport,01/04/2011,Grant-in-Aid (DCMS NDPBs),GIA Museums & Galleries,Horniman Museum,0030021790,"325,667.00",Grant in Aid payment to a DCMS sponsored Non Departmental Public Body
Department for Culture Media and Sport,Department for Culture Media and Sport,03/05/2011,Grant-in-Aid (DCMS NDPBs),GIA Museums & Galleries,Horniman Museum,0030022197,"311,666.00",Grant in Aid payment to a DCMS sponsored Non Departmental Public Body
Department for Culture Media and Sport,Department for Culture Media and Sport,01/06/2011,Grant-in-Aid (DCMS NDPBs),GIA Museums & Galleries,Horniman Museum,0030022456,"334,304.00",Grant in Aid payment to a DCMS sponsored Non Departmental Public Body
Department for Culture Media and Sport,Department for Culture Media and Sport,01/07/2011,Grant-in-Aid (DCMS NDPBs),GIA Museums & Galleries,Horniman Museum,0030022743,"324,667.00",Grant in Aid payment to a DCMS sponsored Non Departmental Public Body
Department for Culture Media and Sport,Department for Culture Media and Sport,01/08/2011,Grant-in-Aid (DCMS NDPBs),GIA Museums & Galleries,Horniman Museum,0030022988,"324,668.00",Grant in Aid payment to a DCMS sponsored Non Departmental Public Body
Department for Culture Media and Sport,Department for Culture Media and Sport,01/09/2011,Grant-in-Aid (DCMS NDPBs),GIA Museums & Galleries,Horniman Museum,0030023363,"374,629.00",Grant in Aid payment to a DCMS sponsored Non Departmental Public Body
Department for Culture Media and Sport,Department for Culture Media and Sport,03/10/2011,Grant-in-Aid (DCMS NDPBs),GIA Museums & Galleries,Horniman Museum,0030023605,"369,400.00",Grant in Aid payment to a DCMS sponsored Non Departmental Public Body
Department for Culture Media and Sport,Department for Culture Media and Sport,01/11/2011,Grant-in-Aid (DCMS NDPBs),GIA Museums & Galleries,Horniman Museum,0030023988,"383,300.00",Grant in Aid payment to a DCMS sponsored Non Departmental Public Body
Department for Culture Media and Sport,Department for Culture Media and Sport,01/12/2011,Grant-in-Aid (DCMS NDPBs),GIA Museums & Galleries,Horniman Museum,0030024350,"413,454.00",Grant in Aid payment to a DCMS sponsored Non Departmental Public Body
Department for Culture Media and Sport,Department for Culture Media and Sport,03/01/2012,Grant-in-Aid (DCMS NDPBs),GIA Museums & Galleries,Horniman Museum,0030024689,"343,973.00",Grant in Aid payment to a DCMS sponsored Non Departmental Public Body
Department for Culture Media and Sport,Department for Culture Media and Sport,01/02/2012,Grant-in-Aid (DCMS NDPBs),GIA Museums & Galleries,Horniman Museum,0030025002,"333,300.00",Grant in Aid payment to a DCMS sponsored Non Departmental Public Body
Department for Culture Media and Sport,Department for Culture Media and Sport,01/03/2012,Grant-in-Aid (DCMS NDPBs),GIA Museums & Galleries,Horniman Museum,0030025328,"545,972.00",Grant in Aid payment to a DCMS sponsored Non Departmental Public Body
Department for Culture Media and Sport,Department for Culture Media and Sport,24/01/2012,Research,Spectrum + Broadband prog cost,IDATE,0030024962,"34,500.00",Study - FTTP Assessment for the UK
Department for Culture Media and Sport,Department for Culture Media and Sport,13/10/2011,Current Grants Private Sector,GOE managed programme costs,II Foundation,0030023920,"1,550,000.00",DCMS - IIF Funding Agreement
Department for Culture Media and Sport,Department for Culture Media and Sport,17/11/2011,Current Grants Private Sector,GOE managed programme costs,II Foundation,0030024340,"2,500,000.00",Grant in Aid payment to a DCMS sponsored Non Departmental Public Body
Department for Culture Media and Sport,Department for Culture Media and Sport,19/04/2011,Grant-in-Aid (DCMS NDPBs),GIA Mus Libs Archives x-sector,Imperial War Museum,0030022115,"130,877.00",Grant in Aid payment to a DCMS sponsored Non Departmental Public Body
Department for Culture Media and Sport,Department for Culture Media and Sport,01/04/2011,Grant-in-Aid (DCMS NDPBs),GIA Museums & Galleries,Imperial War Museum,0030021853,"2,086,834.00",Grant in Aid payment to a DCMS sponsored Non Departmental Public Body
Department for Culture Media and Sport,Department for Culture Media and Sport,03/05/2011,Grant-in-Aid (DCMS NDPBs),GIA Museums & Galleries,Imperial War Museum,0030022132,"2,262,434.00",Grant in Aid payment to a DCMS sponsored Non Departmental Public Body
Department for Culture Media and Sport,Department for Culture Media and Sport,01/06/2011,Grant-in-Aid (DCMS NDPBs),GIA Museums & Galleries,Imperial War Museum,0030022450,"2,020,033.00",Grant in Aid payment to a DCMS sponsored Non Departmental Public Body
Department for Culture Media and Sport,Department for Culture Media and Sport,01/07/2011,Grant-in-Aid (DCMS NDPBs),GIA Museums & Galleries,Imperial War Museum,0030022748,"2,004,833.00",Grant in Aid payment to a DCMS sponsored Non Departmental Public Body
Department for Culture Media and Sport,Department for Culture Media and Sport,01/08/2011,Grant-in-Aid (DCMS NDPBs),GIA Museums & Galleries,Imperial War Museum,0030023036,"2,020,033.00",Grant in Aid payment to a DCMS sponsored Non Departmental Public Body
Department for Culture Media and Sport,Department for Culture Media and Sport,01/09/2011,Grant-in-Aid (DCMS NDPBs),GIA Museums & Galleries,Imperial War Museum,0030023336,"1,789,634.00",Grant in Aid payment to a DCMS sponsored Non Departmental Public Body
Department for Culture Media and Sport,Department for Culture Media and Sport,03/10/2011,Grant-in-Aid (DCMS NDPBs),GIA Museums & Galleries,Imperial War Museum,0030023668,"1,789,634.00",Grant in Aid payment to a DCMS sponsored Non Departmental Public Body
Department for Culture Media and Sport,Department for Culture Media and Sport,01/11/2011,Grant-in-Aid (DCMS NDPBs),GIA Museums & Galleries,Imperial War Museum,0030023956,"1,620,034.00",Grant in Aid payment to a DCMS sponsored Non Departmental Public Body
Department for Culture Media and Sport,Department for Culture Media and Sport,01/12/2011,Grant-in-Aid (DCMS NDPBs),GIA Museums & Galleries,Imperial War Museum,0030024300,"1,559,234.00",Grant in Aid payment to a DCMS sponsored Non Departmental Public Body
Department for Culture Media and Sport,Department for Culture Media and Sport,03/01/2012,Grant-in-Aid (DCMS NDPBs),GIA Museums & Galleries,Imperial War Museum,0030024709,"1,559,233.00",Grant in Aid payment to a DCMS sponsored Non Departmental Public Body
Department for Culture Media and Sport,Department for Culture Media and Sport,01/02/2012,Grant-in-Aid (DCMS NDPBs),GIA Museums & Galleries,Imperial War Museum,0030025038,"1,616,834.00",Grant in Aid payment to a DCMS sponsored Non Departmental Public Body
Department for Culture Media and Sport,Department for Culture Media and Sport,25/07/2011,IT Consultancy,Information Services,Information Processing Ltd,0030023070,"48,799.56",DCMS IT Security Compliance Audit
Department for Culture Media and Sport,Department for Culture Media and Sport,01/09/2011,Current Grants Private Sector,Spectrum + Broadband prog cost,Intellect,0030023471,"60,000.00",Broadband Stakeholder Funding
Department for Culture Media and Sport,Department for Culture Media and Sport,13/05/2011,Payments to Crown Dependencies,DSO Underspend: BIS programmes,Isle of Man Comms Commission,0030022334,"318,041.00",Broadband Delivery UK Programme
Department for Culture Media and Sport,Department for Culture Media and Sport,02/02/2012,Management Consultants,Broadband Delivery UK (Admin),KPMG LLP,0030025169,"236,780.00",Broadband Delivery UK Programme
Department for Culture Media and Sport,Department for Culture Media and Sport,12/01/2012,Management Consultants,Broadband Delivery UK (Admin),KPMG LLP,0030025388,"248,197.60",Broadband Delivery UK Programme
Department for Culture Media and Sport,Department for Culture Media and Sport,27/03/2012,Management Consultants,Broadband Delivery UK (Admin),KPMG LLP,0030025735,"296,670.18",Broadband Delivery UK Programme
Department for Culture Media and Sport,Department for Culture Media and Sport,27/03/2012,Management Consultants,Broadband Delivery UK (Admin),KPMG LLP,0030025737,"186,687.00",Broadband Delivery UK Programme
Department for Culture Media and Sport,Department for Culture Media and Sport,12/07/2011,Temp staff Interim managers,Broadband Delivery UK (Admin),KPMG LLP,0030022932,"76,938.78",Broadband Delivery UK Programme
Department for Culture Media and Sport,Department for Culture Media and Sport,25/07/2011,Temp staff Interim managers,Broadband Delivery UK (Admin),KPMG LLP,0030023090,"102,907.50",Broadband Delivery UK Programme
Department for Culture Media and Sport,Department for Culture Media and Sport,24/08/2011,Temp staff Interim managers,Broadband Delivery UK (Admin),KPMG LLP,0030023429,"196,350.00",Broadband Delivery UK Programme
Department for Culture Media and Sport,Department for Culture Media and Sport,24/08/2011,Temp staff Interim managers,Broadband Delivery UK (Admin),KPMG LLP,0030023430,"140,630.40",Broadband Delivery UK Programme
Department for Culture Media and Sport,Department for Culture Media and Sport,06/10/2011,Temp staff Interim managers,Broadband Delivery UK (Admin),KPMG LLP,0030023777,"240,595.80",Broadband Delivery UK Programme
Department for Culture Media and Sport,Department for Culture Media and Sport,07/12/2011,Temp staff Interim managers,Broadband Delivery UK (Admin),KPMG LLP,0030024548,"210,474.00",Broadband Delivery UK Programme
Department for Culture Media and Sport,Department for Culture Media and Sport,07/12/2011,Temp staff Interim managers,Broadband Delivery UK (Admin),KPMG LLP,0030024549,"211,733.46",Broadband Delivery UK Programme
Department for Culture Media and Sport,Department for Culture Media and Sport,28/07/2011,Management Consultants,GOE Admin Costs,KPMG LLP,0030023122,"99,516.00",Olympics Games Readiness ans Strategic Risk Assessment
Department for Culture Media and Sport,Department for Culture Media and Sport,03/08/2011,Oth Professional Services Prog,Asset sale,Lazard & Co Limited,0030023189,"1,699,344.47",Costs in relation to sale of asset
Department for Culture Media and Sport,Department for Culture Media and Sport,22/06/2011,Office Accommodation Rent,Estates & Property Services,Lazari Investments Ltd,0030022446,"163,750.00",Rent
Department for Culture Media and Sport,Department for Culture Media and Sport,27/09/2011,Office Accommodation Rent,Estates & Property Services,Lazari Investments Ltd,0030023115,"196,500.00",Rent
Department for Culture Media and Sport,Department for Culture Media and Sport,21/12/2011,Office Accommodation Rent,Estates & Property Services,Lazari Investments Ltd,0030024179,"196,500.00",Rent
Department for Culture Media and Sport,Department for Culture Media and Sport,28/02/2012,Office Accommodation Rent,Estates & Property Services,Lazari Investments Ltd,0030025441,"196,500.00",Rent
Department for Culture Media and Sport,Department for Culture Media and Sport,12/04/2011,Finance & Accounting Services,Finance & Planning,Liberata UK Ltd,0030021940,"21,866.30",DCMS - Accounting Services
Department for Culture Media and Sport,Department for Culture Media and Sport,12/05/2011,Finance & Accounting Services,Finance & Planning,Liberata UK Ltd,0030022288,"21,746.17",DCMS - Accounting Services
Department for Culture Media and Sport,Department for Culture Media and Sport,04/07/2011,Finance & Accounting Services,Finance & Planning,Liberata UK Ltd,0030022862,"21,330.75",DCMS - Accounting Services
Department for Culture Media and Sport,Department for Culture Media and Sport,06/07/2011,Finance & Accounting Services,Finance & Planning,Liberata UK Ltd,0030022878,"21,649.28",DCMS - Accounting Services
Department for Culture Media and Sport,Department for Culture Media and Sport,05/08/2011,Finance & Accounting Services,Finance & Planning,Liberata UK Ltd,0030023230,"21,364.39",DCMS - Accounting Services
Department for Culture Media and Sport,Department for Culture Media and Sport,07/09/2011,Finance & Accounting Services,Finance & Planning,Liberata UK Ltd,0030023538,"23,534.60",DCMS - Accounting Services
Department for Culture Media and Sport,Department for Culture Media and Sport,17/10/2011,Finance & Accounting Services,Finance & Planning,Liberata UK Ltd,0030023950,"21,826.94",DCMS - Accounting Services
Department for Culture Media and Sport,Department for Culture Media and Sport,22/11/2011,Finance & Accounting Services,Finance & Planning,Liberata UK Ltd,0030024163,"21,492.79",DCMS - Accounting Services
Department for Culture Media and Sport,Department for Culture Media and Sport,04/11/2011,Finance & Accounting Services,Finance & Planning,Liberata UK Ltd,0030024165,"51,887.50",DCMS - Accounting Services
Department for Culture Media and Sport,Department for Culture Media and Sport,16/12/2011,Finance & Accounting Services,Finance & Planning,Liberata UK Ltd,0030024518,"21,672.14",DCMS - Accounting Services
Department for Culture Media and Sport,Department for Culture Media and Sport,16/01/2012,Finance & Accounting Services,Finance & Planning,Liberata UK Ltd,0030024918,"21,458.28",DCMS - Accounting Services
Department for Culture Media and Sport,Department for Culture Media and Sport,14/02/2012,Finance & Accounting Services,Finance & Planning,Liberata UK Ltd,0030025239,"21,589.12",DCMS - Accounting Services
Department for Culture Media and Sport,Department for Culture Media and Sport,07/03/2012,Finance & Accounting Services,Finance & Planning,Liberata UK Ltd,0030025506,"21,499.52",DCMS - Accounting Services
Department for Culture Media and Sport,Department for Culture Media and Sport,27/03/2012,Finance & Accounting Services,Finance & Planning,Liberata UK Ltd,0030025665,"38,825.00",DCMS - Accounting Services
Department for Culture Media and Sport,Department for Culture Media and Sport,05/05/2011,Management of Grant Programmes,LPW Programme Costs,Liberata UK Ltd,0030022224,"41,082.44",DCMS - Accounting Services
Department for Culture Media and Sport,Department for Culture Media and Sport,05/07/2011,Management of Grant Programmes,LPW Programme Costs,Liberata UK Ltd,0030022866,"26,343.28",DCMS - Accounting Services
Department for Culture Media and Sport,Department for Culture Media and Sport,03/11/2011,Other,Asset sale,Lightcatch Limited,0030024146,"2,000,000.00",Completion Adjustment
Department for Culture Media and Sport,Department for Culture Media and Sport,10/06/2011,Legal Services - Programme,Asset sale,Linklaters LLP,0030022546,"130,564.90",Costs in relation to sale of asset
Department for Culture Media and Sport,Department for Culture Media and Sport,10/06/2011,Legal Services - Programme,Asset sale,Linklaters LLP,0030022567,"170,359.05",Costs in relation to sale of asset
Department for Culture Media and Sport,Department for Culture Media and Sport,03/10/2011,Legal Services - Programme,Asset sale,Linklaters LLP,0030023476,"592,962.36",Costs in relation to sale of asset
Department for Culture Media and Sport,Department for Culture Media and Sport,15/04/2011,Current Grants Private Sector,LPW Programme Costs,Listed Places of Worship,0030022067,"2,522,282.19",Listed Places of Worship Grant
Department for Culture Media and Sport,Department for Culture Media and Sport,11/05/2011,Current Grants Private Sector,LPW Programme Costs,Listed Places of Worship,0030022295,"594,568.72",Listed Places of Worship Grant
Department for Culture Media and Sport,Department for Culture Media and Sport,26/05/2011,Current Grants Private Sector,LPW Programme Costs,Listed Places of Worship,0030022484,"452,604.52",Listed Places of Worship Grant
Department for Culture Media and Sport,Department for Culture Media and Sport,16/06/2011,Current Grants Private Sector,LPW Programme Costs,Listed Places of Worship,0030022699,"337,677.85",Listed Places of Worship Grant
Department for Culture Media and Sport,Department for Culture Media and Sport,13/10/2011,Current Grants Private Sector,LPW Programme Costs,Listed Places of Worship,0030023914,"3,461,896.96",Listed Places of Worship Grant
Department for Culture Media and Sport,Department for Culture Media and Sport,03/11/2011,Current Grants Private Sector,LPW Programme Costs,Listed Places of Worship,0030024147,"66,340.87",Listed Places of Worship Grant
Department for Culture Media and Sport,Department for Culture Media and Sport,02/12/2011,Temp staff filling vacancy,Broadband Delivery UK (Admin),Local Partnerships,0030024477,"49,525.00",Broadband Delivery UK Programme
Department for Culture Media and Sport,Department for Culture Media and Sport,03/08/2011,Temp staff Interim managers,Broadband Delivery UK (Admin),Local Partnerships,0030023199,"63,551.97",Broadband Delivery UK Programme
Department for Culture Media and Sport,Department for Culture Media and Sport,06/10/2011,Temp staff Interim managers,Broadband Delivery UK (Admin),Local Partnerships,0030023768,"68,364.00",Broadband Delivery UK Programme
Department for Culture Media and Sport,Department for Culture Media and Sport,02/12/2011,Temp staff Interim managers,Broadband Delivery UK (Admin),Local Partnerships,0030024428,"68,600.00",Broadband Delivery UK Programme
Department for Culture Media and Sport,Department for Culture Media and Sport,07/12/2011,Temp staff Interim managers,Broadband Delivery UK (Admin),Local Partnerships,0030024550,"58,257.00",Broadband Delivery UK Programme
Department for Culture Media and Sport,Department for Culture Media and Sport,19/01/2012,Temp staff Interim managers,Broadband Delivery UK (Admin),Local Partnerships,0030024927,"86,437.20",Broadband Delivery UK Programme
Department for Culture Media and Sport,Department for Culture Media and Sport,13/02/2012,Temp staff Interim managers,Broadband Delivery UK (Admin),Local Partnerships,0030025240,"64,095.60",Broadband Delivery UK Programme
Department for Culture Media and Sport,Department for Culture Media and Sport,09/03/2012,Temp staff Interim managers,Broadband Delivery UK (Admin),Local Partnerships,0030025585,"84,434.40",Broadband Delivery UK Programme
Department for Culture Media and Sport,Department for Culture Media and Sport,07/12/2011,Olympic Ticket Purchases,GOE managed programme costs,LOCOG (Ticket Payments Only),0030024558,"181,375.00",Olympic Ticket Sales
Department for Culture Media and Sport,Department for Culture Media and Sport,19/03/2012,Olympic Ticket Purchases,GOE managed programme costs,LOCOG (Ticket Payments Only),0030025661,"226,415.00",Olympic Ticket Sales
Department for Culture Media and Sport,Department for Culture Media and Sport,10/01/2012,Capital Grants to PCs,Grants to LOCOG,LOCOG Grants,0030024896,"25,000,000.00",Grant To LOCOG re Olympics
Department for Culture Media and Sport,Department for Culture Media and Sport,30/03/2012,Capital Grants to PCs,Grants to LOCOG,LOCOG Grants,0030025825,"1,652,460.45",Grant To LOCOG re Olympics
Department for Culture Media and Sport,Department for Culture Media and Sport,30/03/2012,Capital Grants to PCs,Grants to LOCOG,LOCOG Grants,0030025826,"4,534,358.40",Grant To LOCOG re Olympics
Department for Culture Media and Sport,Department for Culture Media and Sport,30/03/2012,Capital Grants to PCs,Grants to LOCOG,LOCOG Grants,0030025828,"5,936,216.00",Grant To LOCOG re Olympics
Department for Culture Media and Sport,Department for Culture Media and Sport,30/03/2012,Capital Grants to PCs,Grants to LOCOG,LOCOG Grants,0030025829,"6,604,074.12",Grant To LOCOG re Olympics
Department for Culture Media and Sport,Department for Culture Media and Sport,30/03/2012,Capital Grants to PCs,Grants to LOCOG,LOCOG Grants,0030025830,"5,083,734.15",Grant To LOCOG re Olympics
Department for Culture Media and Sport,Department for Culture Media and Sport,30/03/2012,Capital Grants to PCs,Grants to LOCOG,LOCOG Grants,0030025831,"630,956.40",Grant To LOCOG re Olympics
Department for Culture Media and Sport,Department for Culture Media and Sport,30/03/2012,Capital Grants to PCs,Grants to LOCOG,LOCOG Grants,0030025832,"3,960,143.20",Grant To LOCOG re Olympics
Department for Culture Media and Sport,Department for Culture Media and Sport,30/03/2012,Capital Grants to PCs,Grants to LOCOG,LOCOG Grants,0030025833,"1,109,096.52",Grant To LOCOG re Olympics
Department for Culture Media and Sport,Department for Culture Media and Sport,27/04/2011,Subsidy to PC,Grants to LOCOG,LOCOG Grants,0030022195,"1,150,433.42",Grant To LOCOG re Olympics
Department for Culture Media and Sport,Department for Culture Media and Sport,08/06/2011,Subsidy to PC,Grants to LOCOG,LOCOG Grants,0030022589,"146,585.99",Grant To LOCOG re Olympics
Department for Culture Media and Sport,Department for Culture Media and Sport,08/07/2011,Subsidy to PC,Grants to LOCOG,LOCOG Grants,0030022911,"350,531.35",Grant To LOCOG re Olympics
Department for Culture Media and Sport,Department for Culture Media and Sport,10/08/2011,Subsidy to PC,Grants to LOCOG,LOCOG Grants,0030023289,"38,000.00",Grant To LOCOG re Olympics
Department for Culture Media and Sport,Department for Culture Media and Sport,10/08/2011,Subsidy to PC,Grants to LOCOG,LOCOG Grants,0030023290,"438,183.70",Grant To LOCOG re Olympics
Department for Culture Media and Sport,Department for Culture Media and Sport,06/09/2011,Subsidy to PC,Grants to LOCOG,LOCOG Grants,0030023524,"304,831.50",Grant To LOCOG re Olympics
Department for Culture Media and Sport,Department for Culture Media and Sport,10/10/2011,Subsidy to PC,Grants to LOCOG,LOCOG Grants,0030023855,"493,010.74",Grant To LOCOG re Olympics
Department for Culture Media and Sport,Department for Culture Media and Sport,10/10/2011,Subsidy to PC,Grants to LOCOG,LOCOG Grants,0030023856,"5,000,000.00",Grant To LOCOG re Olympics
Department for Culture Media and Sport,Department for Culture Media and Sport,10/11/2011,Subsidy to PC,Grants to LOCOG,LOCOG Grants,0030024250,"25,860.00",Grant To LOCOG re Olympics
Department for Culture Media and Sport,Department for Culture Media and Sport,10/11/2011,Subsidy to PC,Grants to LOCOG,LOCOG Grants,0030024251,"100,000.00",Grant To LOCOG re Olympics
Department for Culture Media and Sport,Department for Culture Media and Sport,14/11/2011,Subsidy to PC,Grants to LOCOG,LOCOG Grants,0030024296,"972,306.33",Grant To LOCOG re Olympics
Department for Culture Media and Sport,Department for Culture Media and Sport,09/12/2011,Subsidy to PC,Grants to LOCOG,LOCOG Grants,0030024593,"595,502.31",Grant To LOCOG re Olympics
Department for Culture Media and Sport,Department for Culture Media and Sport,09/12/2011,Subsidy to PC,Grants to LOCOG,LOCOG Grants,0030024594,"127,750.00",Grant To LOCOG re Olympics
Department for Culture Media and Sport,Department for Culture Media and Sport,10/01/2012,Subsidy to PC,Grants to LOCOG,LOCOG Grants,0030024888,"1,209,349.47",Grant To LOCOG re Olympics
Department for Culture Media and Sport,Department for Culture Media and Sport,24/01/2012,Subsidy to PC,Grants to LOCOG,LOCOG Grants,0030025060,"4,907,852.63",Grant To LOCOG re Olympics
Department for Culture Media and Sport,Department for Culture Media and Sport,09/02/2012,Subsidy to PC,Grants to LOCOG,LOCOG Grants,0030025251,"318,782.00",Grant To LOCOG re Olympics
Department for Culture Media and Sport,Department for Culture Media and Sport,09/02/2012,Subsidy to PC,Grants to LOCOG,LOCOG Grants,0030025252,"553,428.63",Grant To LOCOG re Olympics
Department for Culture Media and Sport,Department for Culture Media and Sport,10/02/2012,Subsidy to PC,Grants to LOCOG,LOCOG Grants,0030025262,"69,840.49",Grant To LOCOG re Olympics
Department for Culture Media and Sport,Department for Culture Media and Sport,16/02/2012,Subsidy to PC,Grants to LOCOG,LOCOG Grants,0030025312,"1,073,399.76",Grant To LOCOG re Olympics
Department for Culture Media and Sport,Department for Culture Media and Sport,19/03/2012,Subsidy to PC,Grants to LOCOG,LOCOG Grants,0030025659,"760,571.39",Grant To LOCOG re Olympics
Department for Culture Media and Sport,Department for Culture Media and Sport,19/03/2012,Subsidy to PC,Grants to LOCOG,LOCOG Grants,0030025660,"298,104.00",Grant To LOCOG re Olympics
Department for Culture Media and Sport,Department for Culture Media and Sport,26/03/2012,Subsidy to PC,Grants to LOCOG,LOCOG Grants,0030025760,"622,700.13",Grant To LOCOG re Olympics
Department for Culture Media and Sport,Department for Culture Media and Sport,26/03/2012,Subsidy to PC,Grants to LOCOG,LOCOG Grants,0030025761,"841,548.68",Grant To LOCOG re Olympics
Department for Culture Media and Sport,Department for Culture Media and Sport,30/03/2012,Subsidy to PC,Grants to LOCOG,LOCOG Grants,0030025824,"1,308,838.78",Grant To LOCOG re Olympics
Department for Culture Media and Sport,Department for Culture Media and Sport,30/03/2012,Subsidy to PC,Grants to LOCOG,LOCOG Grants,0030025827,"1,632,915.84",Grant To LOCOG re Olympics
Department for Culture Media and Sport,Department for Culture Media and Sport,30/03/2012,Subsidy to PC,Grants to LOCOG,LOCOG Grants,0030025835,"8,885,777.00",Grant To LOCOG re Olympics
Department for Culture Media and Sport,Department for Culture Media and Sport,30/03/2012,Subsidy to PC,Grants to LOCOG,LOCOG Grants,0030025836,"9,291,769.10",Grant To LOCOG re Olympics
Department for Culture Media and Sport,Department for Culture Media and Sport,30/03/2012,Subsidy to PC,Grants to LOCOG,LOCOG Grants,0030025837,"4,642,955.00",Grant To LOCOG re Olympics
Department for Culture Media and Sport,Department for Culture Media and Sport,30/03/2012,Subsidy to PC,Grants to LOCOG,LOCOG Grants,0030025838,"1,412,759.47",Grant To LOCOG re Olympics
Department for Culture Media and Sport,Department for Culture Media and Sport,24/05/2011,IT Capital Additions,Human Resources Team,Logica CMG Enterprise Services,0030022473,"34,449.50",Supply of Services 
Department for Culture Media and Sport,Department for Culture Media and Sport,24/05/2011,IT Capital Additions,Human Resources Team,Logica CMG Enterprise Services,0030022474,"42,435.00",Supply of Services 
Department for Culture Media and Sport,Department for Culture Media and Sport,24/05/2011,Research,EAU Policy Research + Eval,London Economics,0030021974,"43,075.00",Assessment of Cosumer Behaviours re Digital Radio  - Cost & Attributes
Department for Culture Media and Sport,Department for Culture Media and Sport,24/05/2011,Research,Other Broadcasting Support,London Economics,0030021974,"43,075.00",Assessment of Cosumer Behaviours re Digital Radio  - Cost & Attributes
Department for Culture Media and Sport,Department for Culture Media and Sport,15/12/2011,Research,EAU Policy Research + Eval,London Organising Cttee Of Olympic Games,0030024649,"30,000.00",Cultural Olympiad - Contributionfor Attendee/Participant Survey
Department for Culture Media and Sport,Department for Culture Media and Sport,09/06/2011,VAT Recoverable Business Activ,Misc Balance Sheet,Media Structures Ltd,0030022576,"39,727.95",Ceremonial - Route Structures
Department for Culture Media and Sport,Department for Culture Media and Sport,14/06/2011,VAT Recoverable Business Activ,Misc Balance Sheet,Media Structures Ltd,0030022661,"64,725.79",Ceremonial - QE2 Media Stands
Department for Culture Media and Sport,Department for Culture Media and Sport,09/06/2011,Ceremonial Event Costs,State Ceremonials Prog Costs,Media Structures Ltd,0030022576,"198,639.73",Ceremonial Structure/Media Stands
Department for Culture Media and Sport,Department for Culture Media and Sport,14/06/2011,Ceremonial Event Costs,State Ceremonials Prog Costs,Media Structures Ltd,0030022661,"323,628.97",CeremonialQE2 Media Stands
Department for Culture Media and Sport,Department for Culture Media and Sport,18/01/2012,Ceremonial Event Costs,State Ceremonials Prog Costs,Media Structures Ltd,0030024973,"22,665.62",Ceremonial costs
Department for Culture Media and Sport,Department for Culture Media and Sport,16/06/2011,Other Capital Grants,Other Heritage Programme Costs,Memorials Grant Scheme,0030022709,"27,757.49", Memorial Grant Scheme
Department for Culture Media and Sport,Department for Culture Media and Sport,24/02/2012,Leveson DCMS-MoJ Control,Leveson Inquiry Admin Costs,Ministry of Justice,0030025284,"583,173.00",Inquiry Costs
Department for Culture Media and Sport,Department for Culture Media and Sport,16/03/2012,Leveson DCMS-MoJ Control,Leveson Inquiry Admin Costs,Ministry of Justice,0030025598,"303,026.12",Inquiry Costs
Department for Culture Media and Sport,Department for Culture Media and Sport,13/07/2011,Office Accommodation Rent,Estates & Property Services,Montagu Evans LLP Client A/C,0030022956,"147,750.00",Rent
Department for Culture Media and Sport,Department for Culture Media and Sport,29/09/2011,Office Accommodation Rent,Estates & Property Services,Montagu Evans LLP Client A/C,0030023649,"147,750.00",Rent
Department for Culture Media and Sport,Department for Culture Media and Sport,21/12/2011,Office Accommodation Rent,Estates & Property Services,Montagu Evans LLP Client A/C,0030024609,"147,750.00",Rent
Department for Culture Media and Sport,Department for Culture Media and Sport,21/03/2012,Office Accommodation Rent,Estates & Property Services,Montagu Evans LLP Client A/C,0030025533,"147,750.00",Rent
Department for Culture Media and Sport,Department for Culture Media and Sport,01/07/2011,Current Grants Private Sector,GIA Museums & Galleries,Museum of Science & Ind in Manchester,0030022737,"168,000.00",Grant to People's History Museum - MoSI act as DCMS monitoring body.
Department for Culture Media and Sport,Department for Culture Media and Sport,01/04/2011,Grant-in-Aid (DCMS NDPBs),GIA Museums & Galleries,Museum of Science & Ind in Manchester,0030021831,"333,166.00",Grant in Aid payment to a DCMS sponsored Non Departmental Public Body
Department for Culture Media and Sport,Department for Culture Media and Sport,03/05/2011,Grant-in-Aid (DCMS NDPBs),GIA Museums & Galleries,Museum of Science & Ind in Manchester,0030022131,"333,166.00",Grant in Aid payment to a DCMS sponsored Non Departmental Public Body
Department for Culture Media and Sport,Department for Culture Media and Sport,01/06/2011,Grant-in-Aid (DCMS NDPBs),GIA Museums & Galleries,Museum of Science & Ind in Manchester,0030022454,"333,166.00",Grant in Aid payment to a DCMS sponsored Non Departmental Public Body
Department for Culture Media and Sport,Department for Culture Media and Sport,01/07/2011,Grant-in-Aid (DCMS NDPBs),GIA Museums & Galleries,Museum of Science & Ind in Manchester,0030022755,"333,166.00",Grant in Aid payment to a DCMS sponsored Non Departmental Public Body
Department for Culture Media and Sport,Department for Culture Media and Sport,01/08/2011,Grant-in-Aid (DCMS NDPBs),GIA Museums & Galleries,Museum of Science & Ind in Manchester,0030023058,"333,166.00",Grant in Aid payment to a DCMS sponsored Non Departmental Public Body
Department for Culture Media and Sport,Department for Culture Media and Sport,01/09/2011,Grant-in-Aid (DCMS NDPBs),GIA Museums & Galleries,Museum of Science & Ind in Manchester,0030023338,"333,166.00",Grant in Aid payment to a DCMS sponsored Non Departmental Public Body
Department for Culture Media and Sport,Department for Culture Media and Sport,06/10/2011,Grant-in-Aid (DCMS NDPBs),GIA Museums & Galleries,Museum of Science & Ind in Manchester,0030023832,"333,166.00",Grant in Aid payment to a DCMS sponsored Non Departmental Public Body
Department for Culture Media and Sport,Department for Culture Media and Sport,01/11/2011,Grant-in-Aid (DCMS NDPBs),GIA Museums & Galleries,Museum of Science & Ind in Manchester,0030024015,"333,166.00",Grant in Aid payment to a DCMS sponsored Non Departmental Public Body
Department for Culture Media and Sport,Department for Culture Media and Sport,01/12/2011,Grant-in-Aid (DCMS NDPBs),GIA Museums & Galleries,Museum of Science & Ind in Manchester,0030024317,"333,166.00",Grant in Aid payment to a DCMS sponsored Non Departmental Public Body
Department for Culture Media and Sport,Department for Culture Media and Sport,03/01/2012,Grant-in-Aid (DCMS NDPBs),GIA Museums & Galleries,Museum of Science & Ind in Manchester,0030024714,"333,166.00",Grant in Aid payment to a DCMS sponsored Non Departmental Public Body
Department for Culture Media and Sport,Department for Culture Media and Sport,01/02/2012,Grant-in-Aid (DCMS NDPBs),GIA Museums & Galleries,Museum of Science & Ind in Manchester,0030025050,"333,166.00",Grant in Aid payment to a DCMS sponsored Non Departmental Public Body
Department for Culture Media and Sport,Department for Culture Media and Sport,04/04/2011,Grant-in-Aid (DCMS NDPBs),GIA Mus Libs Archives x-sector,Museums Libraries and Archives Council,0030021881,"1,165,199.00",Grant in Aid payment to a DCMS sponsored Non Departmental Public Body
Department for Culture Media and Sport,Department for Culture Media and Sport,04/04/2011,Grant-in-Aid (DCMS NDPBs),GIA Mus Libs Archives x-sector,Museums Libraries and Archives Council,0030021882,"3,474,154.00",Grant in Aid payment to a DCMS sponsored Non Departmental Public Body
Department for Culture Media and Sport,Department for Culture Media and Sport,04/05/2011,Grant-in-Aid (DCMS NDPBs),GIA Mus Libs Archives x-sector,Museums Libraries and Archives Council,0030022157,"10,759,441.00",Grant in Aid payment to a DCMS sponsored Non Departmental Public Body
Department for Culture Media and Sport,Department for Culture Media and Sport,04/05/2011,Grant-in-Aid (DCMS NDPBs),GIA Mus Libs Archives x-sector,Museums Libraries and Archives Council,0030022158,"937,928.00",Grant in Aid payment to a DCMS sponsored Non Departmental Public Body
Department for Culture Media and Sport,Department for Culture Media and Sport,15/07/2011,Grant-in-Aid (DCMS NDPBs),GIA Mus Libs Archives x-sector,Museums Libraries and Archives Council,0030022989,"250,000.00",Grant in Aid payment to a DCMS sponsored Non Departmental Public Body
Department for Culture Media and Sport,Department for Culture Media and Sport,03/08/2011,Grant-in-Aid (DCMS NDPBs),GIA Mus Libs Archives x-sector,Museums Libraries and Archives Council,0030023171,"7,306,330.00",Grant in Aid payment to a DCMS sponsored Non Departmental Public Body
Department for Culture Media and Sport,Department for Culture Media and Sport,02/08/2011,Grant-in-Aid (DCMS NDPBs),GIA Mus Libs Archives x-sector,Museums Libraries and Archives Council,0030023172,"1,895,051.00",Grant in Aid payment to a DCMS sponsored Non Departmental Public Body
Department for Culture Media and Sport,Department for Culture Media and Sport,03/08/2011,Grant-in-Aid (DCMS NDPBs),GIA Mus Libs Archives x-sector,Museums Libraries and Archives Council,0030023191,"2,340,000.00",Grant in Aid payment to a DCMS sponsored Non Departmental Public Body
Department for Culture Media and Sport,Department for Culture Media and Sport,10/10/2011,Grant-in-Aid (DCMS NDPBs),GIA Mus Libs Archives x-sector,Museums Libraries and Archives Council,0030023858,"300,000.00",Grant in Aid payment to a DCMS sponsored Non Departmental Public Body
Department for Culture Media and Sport,Department for Culture Media and Sport,04/11/2011,Grant-in-Aid (DCMS NDPBs),GIA Mus Libs Archives x-sector,Museums Libraries and Archives Council,0030024166,"5,500,000.00",Grant in Aid payment to a DCMS sponsored Non Departmental Public Body
Department for Culture Media and Sport,Department for Culture Media and Sport,04/11/2011,Grant-in-Aid (DCMS NDPBs),GIA Mus Libs Archives x-sector,Museums Libraries and Archives Council,0030024167,"350,000.00",Grant in Aid payment to a DCMS sponsored Non Departmental Public Body
Department for Culture Media and Sport,Department for Culture Media and Sport,07/12/2011,Grant-in-Aid (DCMS NDPBs),GIA Mus Libs Archives x-sector,Museums Libraries and Archives Council,0030024561,"500,000.00",Grant in Aid payment to a DCMS sponsored Non Departmental Public Body
Department for Culture Media and Sport,Department for Culture Media and Sport,07/12/2011,Grant-in-Aid (DCMS NDPBs),GIA Mus Libs Archives x-sector,Museums Libraries and Archives Council,0030024562,"2,800,000.00",Grant in Aid payment to a DCMS sponsored Non Departmental Public Body
Department for Culture Media and Sport,Department for Culture Media and Sport,19/12/2011,Grant-in-Aid (DCMS NDPBs),GIA Mus Libs Archives x-sector,Museums Libraries and Archives Council,0030024704,"883,600.00",Grant in Aid payment to a DCMS sponsored Non Departmental Public Body
Department for Culture Media and Sport,Department for Culture Media and Sport,19/12/2011,Grant-in-Aid (DCMS NDPBs),GIA Mus Libs Archives x-sector,Museums Libraries and Archives Council,0030024705,"243,400.00",Grant in Aid payment to a DCMS sponsored Non Departmental Public Body
Department for Culture Media and Sport,Department for Culture Media and Sport,04/01/2012,Grant-in-Aid (DCMS NDPBs),GIA Mus Libs Archives x-sector,Museums Libraries and Archives Council,0030024800,"1,000,000.00",Grant in Aid payment to a DCMS sponsored Non Departmental Public Body
Department for Culture Media and Sport,Department for Culture Media and Sport,04/01/2012,Grant-in-Aid (DCMS NDPBs),GIA Mus Libs Archives x-sector,Museums Libraries and Archives Council,0030024803,"600,000.00",Grant in Aid payment to a DCMS sponsored Non Departmental Public Body
Department for Culture Media and Sport,Department for Culture Media and Sport,06/02/2012,Grant-in-Aid (DCMS NDPBs),GIA Mus Libs Archives x-sector,Museums Libraries and Archives Council,0030025194,"4,300,000.00",Grant in Aid payment to a DCMS sponsored Non Departmental Public Body
Department for Culture Media and Sport,Department for Culture Media and Sport,06/02/2012,Grant-in-Aid (DCMS NDPBs),GIA Mus Libs Archives x-sector,Museums Libraries and Archives Council,0030025195,"250,000.00",Grant in Aid payment to a DCMS sponsored Non Departmental Public Body
Department for Culture Media and Sport,Department for Culture Media and Sport,27/04/2011,Capital Grant Private Sector,Grant support to NFTS,National Film & Television School,0030022145,"242,011.00",Grant to non-national museum under current Funding Agreement
Department for Culture Media and Sport,Department for Culture Media and Sport,19/05/2011,Capital Grant Private Sector,Grant support to NFTS,National Film & Television School,0030022393,"242,011.00",Grant to non-national museum under current Funding Agreement
Department for Culture Media and Sport,Department for Culture Media and Sport,22/06/2011,Capital Grant Private Sector,Grant support to NFTS,National Film & Television School,0030022778,"241,999.00",Grant to non-national museum under current Funding Agreement
Department for Culture Media and Sport,Department for Culture Media and Sport,22/07/2011,Capital Grant Private Sector,Grant support to NFTS,National Film & Television School,0030023083,"241,999.00",Grant to non-national museum under current Funding Agreement
Department for Culture Media and Sport,Department for Culture Media and Sport,18/08/2011,Capital Grant Private Sector,Grant support to NFTS,National Film & Television School,0030023379,"241,999.00",Grant to non-national museum under current Funding Agreement
Department for Culture Media and Sport,Department for Culture Media and Sport,19/09/2011,Capital Grant Private Sector,Grant support to NFTS,National Film & Television School,0030023680,"241,999.00",Grant to non-national museum under current Funding Agreement
Department for Culture Media and Sport,Department for Culture Media and Sport,19/10/2011,Capital Grant Private Sector,Grant support to NFTS,National Film & Television School,0030023961,"241,999.00",Grant to non-national museum under current Funding Agreement
Department for Culture Media and Sport,Department for Culture Media and Sport,21/11/2011,Capital Grant Private Sector,Grant support to NFTS,National Film & Television School,0030024387,"241,999.00",Grant to non-national museum under current Funding Agreement
Department for Culture Media and Sport,Department for Culture Media and Sport,13/12/2011,Capital Grant Private Sector,Grant support to NFTS,National Film & Television School,0030024618,"241,999.00",Grant to non-national museum under current Funding Agreement
Department for Culture Media and Sport,Department for Culture Media and Sport,19/01/2012,Capital Grant Private Sector,Grant support to NFTS,National Film & Television School,0030024996,"241,999.00",Grant to non-national museum under current Funding Agreement
Department for Culture Media and Sport,Department for Culture Media and Sport,22/02/2012,Capital Grant Private Sector,Grant support to NFTS,National Film & Television School,0030025327,"241,999.00",Grant to non-national museum under current Funding Agreement
Department for Culture Media and Sport,Department for Culture Media and Sport,19/04/2011,Grant-in-Aid (DCMS NDPBs),GIA Mus Libs Archives x-sector,National Gallery,0030022121,"55,997.81",Grant in Aid payment to a DCMS sponsored Non Departmental Public Body
Department for Culture Media and Sport,Department for Culture Media and Sport,01/04/2011,Grant-in-Aid (DCMS NDPBs),GIA Museums & Galleries,National Gallery,0030021823,"1,839,542.00",Grant in Aid payment to a DCMS sponsored Non Departmental Public Body
Department for Culture Media and Sport,Department for Culture Media and Sport,03/05/2011,Grant-in-Aid (DCMS NDPBs),GIA Museums & Galleries,National Gallery,0030022142,"2,480,046.00",Grant in Aid payment to a DCMS sponsored Non Departmental Public Body
Department for Culture Media and Sport,Department for Culture Media and Sport,01/06/2011,Grant-in-Aid (DCMS NDPBs),GIA Museums & Galleries,National Gallery,0030022419,"2,575,315.00",Grant in Aid payment to a DCMS sponsored Non Departmental Public Body
Department for Culture Media and Sport,Department for Culture Media and Sport,01/07/2011,Grant-in-Aid (DCMS NDPBs),GIA Museums & Galleries,National Gallery,0030022754,"1,422,743.00",Grant in Aid payment to a DCMS sponsored Non Departmental Public Body
Department for Culture Media and Sport,Department for Culture Media and Sport,01/08/2011,Grant-in-Aid (DCMS NDPBs),GIA Museums & Galleries,National Gallery,0030023037,"1,889,663.00",Grant in Aid payment to a DCMS sponsored Non Departmental Public Body
Department for Culture Media and Sport,Department for Culture Media and Sport,01/09/2011,Grant-in-Aid (DCMS NDPBs),GIA Museums & Galleries,National Gallery,0030023335,"1,830,494.00",Grant in Aid payment to a DCMS sponsored Non Departmental Public Body
Department for Culture Media and Sport,Department for Culture Media and Sport,03/10/2011,Grant-in-Aid (DCMS NDPBs),GIA Museums & Galleries,National Gallery,0030023637,"2,845,567.00",Grant in Aid payment to a DCMS sponsored Non Departmental Public Body
Department for Culture Media and Sport,Department for Culture Media and Sport,01/11/2011,Grant-in-Aid (DCMS NDPBs),GIA Museums & Galleries,National Gallery,0030023955,"1,800,882.00",Grant in Aid payment to a DCMS sponsored Non Departmental Public Body
Department for Culture Media and Sport,Department for Culture Media and Sport,05/12/2011,Grant-in-Aid (DCMS NDPBs),GIA Museums & Galleries,National Gallery,0030024315,"1,832,278.00",Grant in Aid payment to a DCMS sponsored Non Departmental Public Body
Department for Culture Media and Sport,Department for Culture Media and Sport,05/01/2012,Grant-in-Aid (DCMS NDPBs),GIA Museums & Galleries,National Gallery,0030024706,"1,588,785.00",Grant in Aid payment to a DCMS sponsored Non Departmental Public Body
Department for Culture Media and Sport,Department for Culture Media and Sport,03/02/2012,Grant-in-Aid (DCMS NDPBs),GIA Museums & Galleries,National Gallery,0030025051,"1,574,795.00",Grant in Aid payment to a DCMS sponsored Non Departmental Public Body
Department for Culture Media and Sport,Department for Culture Media and Sport,23/05/2011,Grant-in-Aid (DCMS NDPBs),GIA Gambling + Lottery bodies,National Lottery Commission,0030022457,"1,200,000.00",Grant in Aid payment to a DCMS sponsored Non Departmental Public Body
Department for Culture Media and Sport,Department for Culture Media and Sport,26/09/2011,Grant-in-Aid (DCMS NDPBs),GIA Gambling + Lottery bodies,National Lottery Commission,0030023521,"1,200,000.00",Grant in Aid payment to a DCMS sponsored Non Departmental Public Body
Department for Culture Media and Sport,Department for Culture Media and Sport,29/12/2011,Grant-in-Aid (DCMS NDPBs),GIA Gambling + Lottery bodies,National Lottery Commission,0030024686,"2,200,000.00",Grant in Aid payment to a DCMS sponsored Non Departmental Public Body
Department for Culture Media and Sport,Department for Culture Media and Sport,01/04/2011,Grant-in-Aid (DCMS NDPBs),GIA Museums & Galleries,National Maritime Museum,0030021820,"1,421,500.00",Grant in Aid payment to a DCMS sponsored Non Departmental Public Body
Department for Culture Media and Sport,Department for Culture Media and Sport,03/05/2011,Grant-in-Aid (DCMS NDPBs),GIA Museums & Galleries,National Maritime Museum,0030022147,"1,421,500.00",Grant in Aid payment to a DCMS sponsored Non Departmental Public Body
Department for Culture Media and Sport,Department for Culture Media and Sport,01/06/2011,Grant-in-Aid (DCMS NDPBs),GIA Museums & Galleries,National Maritime Museum,0030022416,"1,421,500.00",Grant in Aid payment to a DCMS sponsored Non Departmental Public Body
Department for Culture Media and Sport,Department for Culture Media and Sport,01/07/2011,Grant-in-Aid (DCMS NDPBs),GIA Museums & Galleries,National Maritime Museum,0030022751,"1,421,500.00",Grant in Aid payment to a DCMS sponsored Non Departmental Public Body
Department for Culture Media and Sport,Department for Culture Media and Sport,01/08/2011,Grant-in-Aid (DCMS NDPBs),GIA Museums & Galleries,National Maritime Museum,0030023038,"1,421,500.00",Grant in Aid payment to a DCMS sponsored Non Departmental Public Body
Department for Culture Media and Sport,Department for Culture Media and Sport,01/09/2011,Grant-in-Aid (DCMS NDPBs),GIA Museums & Galleries,National Maritime Museum,0030023331,"1,421,500.00",Grant in Aid payment to a DCMS sponsored Non Departmental Public Body
Department for Culture Media and Sport,Department for Culture Media and Sport,03/10/2011,Grant-in-Aid (DCMS NDPBs),GIA Museums & Galleries,National Maritime Museum,0030023704,"1,421,500.00",Grant in Aid payment to a DCMS sponsored Non Departmental Public Body
Department for Culture Media and Sport,Department for Culture Media and Sport,01/11/2011,Grant-in-Aid (DCMS NDPBs),GIA Museums & Galleries,National Maritime Museum,0030023984,"1,421,500.00",Grant in Aid payment to a DCMS sponsored Non Departmental Public Body
Department for Culture Media and Sport,Department for Culture Media and Sport,01/12/2011,Grant-in-Aid (DCMS NDPBs),GIA Museums & Galleries,National Maritime Museum,0030024301,"1,421,500.00",Grant in Aid payment to a DCMS sponsored Non Departmental Public Body
Department for Culture Media and Sport,Department for Culture Media and Sport,05/01/2012,Grant-in-Aid (DCMS NDPBs),GIA Museums & Galleries,National Maritime Museum,0030024693,"1,421,500.00",Grant in Aid payment to a DCMS sponsored Non Departmental Public Body
Department for Culture Media and Sport,Department for Culture Media and Sport,03/02/2012,Grant-in-Aid (DCMS NDPBs),GIA Museums & Galleries,National Maritime Museum,0030025052,"1,421,500.00",Grant in Aid payment to a DCMS sponsored Non Departmental Public Body
Department for Culture Media and Sport,Department for Culture Media and Sport,19/04/2011,Grant-in-Aid (DCMS NDPBs),GIA Mus Libs Archives x-sector,National Maritime Museum (Strat Com),0030022116,"62,338.18",Grant in Aid payment to a DCMS sponsored Non Departmental Public Body
Department for Culture Media and Sport,Department for Culture Media and Sport,19/04/2011,Grant-in-Aid (DCMS NDPBs),GIA Mus Libs Archives x-sector,National Museum of Science & Industry,0030022118,"57,889.00",Grant in Aid payment to a DCMS sponsored Non Departmental Public Body
Department for Culture Media and Sport,Department for Culture Media and Sport,01/04/2011,Current Grants Private Sector,GIA Museums & Galleries,National Museum of Science & Industry,0030021816,"225,620.00",Grant to National Coal Mining Museum - NMSI act as DCMS monitoring body
Department for Culture Media and Sport,Department for Culture Media and Sport,03/05/2011,Current Grants Private Sector,GIA Museums & Galleries,National Museum of Science & Industry,0030022150,"225,580.00",Grant to National Coal Mining Museum - NMSI act as DCMS monitoring body
Department for Culture Media and Sport,Department for Culture Media and Sport,01/06/2011,Current Grants Private Sector,GIA Museums & Galleries,National Museum of Science & Industry,0030022420,"225,580.00",Grant to National Coal Mining Museum - NMSI act as DCMS monitoring body
Department for Culture Media and Sport,Department for Culture Media and Sport,01/07/2011,Current Grants Private Sector,GIA Museums & Galleries,National Museum of Science & Industry,0030022740,"225,580.00",Grant to National Coal Mining Museum - NMSI act as DCMS monitoring body
Department for Culture Media and Sport,Department for Culture Media and Sport,01/08/2011,Current Grants Private Sector,GIA Museums & Galleries,National Museum of Science & Industry,0030023023,"225,580.00",Grant to National Coal Mining Museum - NMSI act as DCMS monitoring body
Department for Culture Media and Sport,Department for Culture Media and Sport,01/09/2011,Current Grants Private Sector,GIA Museums & Galleries,National Museum of Science & Industry,0030023393,"225,580.00",Grant to National Coal Mining Museum - NMSI act as DCMS monitoring body
Department for Culture Media and Sport,Department for Culture Media and Sport,03/10/2011,Current Grants Private Sector,GIA Museums & Galleries,National Museum of Science & Industry,0030023633,"225,580.00",Grant to National Coal Mining Museum - NMSI act as DCMS monitoring body
Department for Culture Media and Sport,Department for Culture Media and Sport,01/11/2011,Current Grants Private Sector,GIA Museums & Galleries,National Museum of Science & Industry,0030023966,"225,580.00",Grant to National Coal Mining Museum - NMSI act as DCMS monitoring body
Department for Culture Media and Sport,Department for Culture Media and Sport,01/12/2011,Current Grants Private Sector,GIA Museums & Galleries,National Museum of Science & Industry,0030024319,"225,580.00",Grant to National Coal Mining Museum - NMSI act as DCMS monitoring body
Department for Culture Media and Sport,Department for Culture Media and Sport,03/01/2012,Current Grants Private Sector,GIA Museums & Galleries,National Museum of Science & Industry,0030024688,"225,580.00",Grant to National Coal Mining Museum - NMSI act as DCMS monitoring body
Department for Culture Media and Sport,Department for Culture Media and Sport,01/02/2012,Current Grants Private Sector,GIA Museums & Galleries,National Museum of Science & Industry,0030025024,"225,580.00",Grant to National Coal Mining Museum - NMSI act as DCMS monitoring body
Department for Culture Media and Sport,Department for Culture Media and Sport,01/04/2011,Grant-in-Aid (DCMS NDPBs),GIA Museums & Galleries,National Museum of Science & Industry,0030021821,"3,178,000.00",Grant in Aid payment to a DCMS sponsored Non Departmental Public Body
Department for Culture Media and Sport,Department for Culture Media and Sport,03/05/2011,Grant-in-Aid (DCMS NDPBs),GIA Museums & Galleries,National Museum of Science & Industry,0030022130,"3,230,000.00",Grant in Aid payment to a DCMS sponsored Non Departmental Public Body
Department for Culture Media and Sport,Department for Culture Media and Sport,01/06/2011,Grant-in-Aid (DCMS NDPBs),GIA Museums & Galleries,National Museum of Science & Industry,0030022455,"3,230,000.00",Grant in Aid payment to a DCMS sponsored Non Departmental Public Body
Department for Culture Media and Sport,Department for Culture Media and Sport,01/07/2011,Grant-in-Aid (DCMS NDPBs),GIA Museums & Galleries,National Museum of Science & Industry,0030022738,"3,230,000.00",Grant in Aid payment to a DCMS sponsored Non Departmental Public Body
Department for Culture Media and Sport,Department for Culture Media and Sport,01/08/2011,Grant-in-Aid (DCMS NDPBs),GIA Museums & Galleries,National Museum of Science & Industry,0030023054,"3,180,000.00",Grant in Aid payment to a DCMS sponsored Non Departmental Public Body
Department for Culture Media and Sport,Department for Culture Media and Sport,01/09/2011,Grant-in-Aid (DCMS NDPBs),GIA Museums & Galleries,National Museum of Science & Industry,0030023394,"3,044,000.00",Grant in Aid payment to a DCMS sponsored Non Departmental Public Body
Department for Culture Media and Sport,Department for Culture Media and Sport,03/10/2011,Grant-in-Aid (DCMS NDPBs),GIA Museums & Galleries,National Museum of Science & Industry,0030023635,"3,080,000.00",Grant in Aid payment to a DCMS sponsored Non Departmental Public Body
Department for Culture Media and Sport,Department for Culture Media and Sport,01/11/2011,Grant-in-Aid (DCMS NDPBs),GIA Museums & Galleries,National Museum of Science & Industry,0030024046,"3,136,000.00",Grant in Aid payment to a DCMS sponsored Non Departmental Public Body
Department for Culture Media and Sport,Department for Culture Media and Sport,01/12/2011,Grant-in-Aid (DCMS NDPBs),GIA Museums & Galleries,National Museum of Science & Industry,0030024348,"3,080,000.00",Grant in Aid payment to a DCMS sponsored Non Departmental Public Body
Department for Culture Media and Sport,Department for Culture Media and Sport,03/01/2012,Grant-in-Aid (DCMS NDPBs),GIA Museums & Galleries,National Museum of Science & Industry,0030024798,"3,030,000.00",Grant in Aid payment to a DCMS sponsored Non Departmental Public Body
Department for Culture Media and Sport,Department for Culture Media and Sport,01/02/2012,Grant-in-Aid (DCMS NDPBs),GIA Museums & Galleries,National Museum of Science & Industry,0030025053,"3,180,000.00",Grant in Aid payment to a DCMS sponsored Non Departmental Public Body
Department for Culture Media and Sport,Department for Culture Media and Sport,01/04/2011,Grant-in-Aid (DCMS NDPBs),GIA Museums & Galleries,National Museums & Galleries Merseyside,0030021854,"1,725,976.00",Grant in Aid payment to a DCMS sponsored Non Departmental Public Body
Department for Culture Media and Sport,Department for Culture Media and Sport,03/05/2011,Grant-in-Aid (DCMS NDPBs),GIA Museums & Galleries,National Museums & Galleries Merseyside,0030022159,"1,712,609.00",Grant in Aid payment to a DCMS sponsored Non Departmental Public Body
Department for Culture Media and Sport,Department for Culture Media and Sport,01/06/2011,Grant-in-Aid (DCMS NDPBs),GIA Museums & Galleries,National Museums & Galleries Merseyside,0030022516,"1,581,347.00",Grant in Aid payment to a DCMS sponsored Non Departmental Public Body
Department for Culture Media and Sport,Department for Culture Media and Sport,01/07/2011,Grant-in-Aid (DCMS NDPBs),GIA Museums & Galleries,National Museums & Galleries Merseyside,0030022757,"1,457,392.00",Grant in Aid payment to a DCMS sponsored Non Departmental Public Body
Department for Culture Media and Sport,Department for Culture Media and Sport,01/08/2011,Grant-in-Aid (DCMS NDPBs),GIA Museums & Galleries,National Museums & Galleries Merseyside,0030023032,"1,760,672.00",Grant in Aid payment to a DCMS sponsored Non Departmental Public Body
Department for Culture Media and Sport,Department for Culture Media and Sport,01/09/2011,Grant-in-Aid (DCMS NDPBs),GIA Museums & Galleries,National Museums & Galleries Merseyside,0030023377,"2,001,121.00",Grant in Aid payment to a DCMS sponsored Non Departmental Public Body
Department for Culture Media and Sport,Department for Culture Media and Sport,03/10/2011,Grant-in-Aid (DCMS NDPBs),GIA Museums & Galleries,National Museums & Galleries Merseyside,0030023683,"1,741,865.00",Grant in Aid payment to a DCMS sponsored Non Departmental Public Body
Department for Culture Media and Sport,Department for Culture Media and Sport,01/11/2011,Grant-in-Aid (DCMS NDPBs),GIA Museums & Galleries,National Museums & Galleries Merseyside,0030024057,"1,917,921.00",Grant in Aid payment to a DCMS sponsored Non Departmental Public Body
Department for Culture Media and Sport,Department for Culture Media and Sport,01/12/2011,Grant-in-Aid (DCMS NDPBs),GIA Museums & Galleries,National Museums & Galleries Merseyside,0030024466,"1,989,277.00",Grant in Aid payment to a DCMS sponsored Non Departmental Public Body
Department for Culture Media and Sport,Department for Culture Media and Sport,03/01/2012,Grant-in-Aid (DCMS NDPBs),GIA Museums & Galleries,National Museums & Galleries Merseyside,0030024799,"1,818,333.00",Grant in Aid payment to a DCMS sponsored Non Departmental Public Body
Department for Culture Media and Sport,Department for Culture Media and Sport,01/02/2012,Grant-in-Aid (DCMS NDPBs),GIA Museums & Galleries,National Museums & Galleries Merseyside,0030025138,"1,905,131.00",Grant in Aid payment to a DCMS sponsored Non Departmental Public Body
Department for Culture Media and Sport,Department for Culture Media and Sport,19/04/2011,Grant-in-Aid (DCMS NDPBs),GIA Mus Libs Archives x-sector,National Museums Liverpool,0030022117,"39,739.00",Grant in Aid payment to a DCMS sponsored Non Departmental Public Body
Department for Culture Media and Sport,Department for Culture Media and Sport,19/04/2011,Grant-in-Aid (DCMS NDPBs),GIA Mus Libs Archives x-sector,National Portrait Gallery,0030022113,"75,043.00",Grant in Aid payment to a DCMS sponsored Non Departmental Public Body
Department for Culture Media and Sport,Department for Culture Media and Sport,01/04/2011,Grant-in-Aid (DCMS NDPBs),GIA Museums & Galleries,National Portrait Gallery,0030021793,"616,500.00",Grant in Aid payment to a DCMS sponsored Non Departmental Public Body
Department for Culture Media and Sport,Department for Culture Media and Sport,03/05/2011,Grant-in-Aid (DCMS NDPBs),GIA Museums & Galleries,National Portrait Gallery,0030022198,"616,500.00",Grant in Aid payment to a DCMS sponsored Non Departmental Public Body
Department for Culture Media and Sport,Department for Culture Media and Sport,01/06/2011,Grant-in-Aid (DCMS NDPBs),GIA Museums & Galleries,National Portrait Gallery,0030022413,"616,500.00",Grant in Aid payment to a DCMS sponsored Non Departmental Public Body
Department for Culture Media and Sport,Department for Culture Media and Sport,01/07/2011,Grant-in-Aid (DCMS NDPBs),GIA Museums & Galleries,National Portrait Gallery,0030022739,"616,500.00",Grant in Aid payment to a DCMS sponsored Non Departmental Public Body
Department for Culture Media and Sport,Department for Culture Media and Sport,01/08/2011,Grant-in-Aid (DCMS NDPBs),GIA Museums & Galleries,National Portrait Gallery,0030022991,"616,500.00",Grant in Aid payment to a DCMS sponsored Non Departmental Public Body
Department for Culture Media and Sport,Department for Culture Media and Sport,01/09/2011,Grant-in-Aid (DCMS NDPBs),GIA Museums & Galleries,National Portrait Gallery,0030023364,"616,500.00",Grant in Aid payment to a DCMS sponsored Non Departmental Public Body
Department for Culture Media and Sport,Department for Culture Media and Sport,03/10/2011,Grant-in-Aid (DCMS NDPBs),GIA Museums & Galleries,National Portrait Gallery,0030023669,"616,500.00",Grant in Aid payment to a DCMS sponsored Non Departmental Public Body
Department for Culture Media and Sport,Department for Culture Media and Sport,01/11/2011,Grant-in-Aid (DCMS NDPBs),GIA Museums & Galleries,National Portrait Gallery,0030024013,"616,500.00",Grant in Aid payment to a DCMS sponsored Non Departmental Public Body
Department for Culture Media and Sport,Department for Culture Media and Sport,01/12/2011,Grant-in-Aid (DCMS NDPBs),GIA Museums & Galleries,National Portrait Gallery,0030024349,"616,500.00",Grant in Aid payment to a DCMS sponsored Non Departmental Public Body
Department for Culture Media and Sport,Department for Culture Media and Sport,03/01/2012,Grant-in-Aid (DCMS NDPBs),GIA Museums & Galleries,National Portrait Gallery,0030024687,"616,500.00",Grant in Aid payment to a DCMS sponsored Non Departmental Public Body
Department for Culture Media and Sport,Department for Culture Media and Sport,01/02/2012,Grant-in-Aid (DCMS NDPBs),GIA Museums & Galleries,National Portrait Gallery,0030025087,"616,500.00",Grant in Aid payment to a DCMS sponsored Non Departmental Public Body
Department for Culture Media and Sport,Department for Culture Media and Sport,08/04/2011,Current Grants Private Sector,Youth Music Programmes,National Youth Music,0030021959,"69,995.00",Grant - Youth Music Mentors (Respect)
Department for Culture Media and Sport,Department for Culture Media and Sport,19/04/2011,Grant-in-Aid (DCMS NDPBs),GIA Mus Libs Archives x-sector,Natural History Museum,0030022120,"53,135.00",Grant in Aid payment to a DCMS sponsored Non Departmental Public Body
Department for Culture Media and Sport,Department for Culture Media and Sport,01/04/2011,Grant-in-Aid (DCMS NDPBs),GIA Museums & Galleries,Natural History Museum,0030021852,"3,873,000.00",Grant in Aid payment to a DCMS sponsored Non Departmental Public Body
Department for Culture Media and Sport,Department for Culture Media and Sport,03/05/2011,Grant-in-Aid (DCMS NDPBs),GIA Museums & Galleries,Natural History Museum,0030022148,"3,873,000.00",Grant in Aid payment to a DCMS sponsored Non Departmental Public Body
Department for Culture Media and Sport,Department for Culture Media and Sport,01/06/2011,Grant-in-Aid (DCMS NDPBs),GIA Museums & Galleries,Natural History Museum,0030022453,"3,873,000.00",Grant in Aid payment to a DCMS sponsored Non Departmental Public Body
Department for Culture Media and Sport,Department for Culture Media and Sport,01/07/2011,Grant-in-Aid (DCMS NDPBs),GIA Museums & Galleries,Natural History Museum,0030022746,"3,873,000.00",Grant in Aid payment to a DCMS sponsored Non Departmental Public Body
Department for Culture Media and Sport,Department for Culture Media and Sport,01/08/2011,Grant-in-Aid (DCMS NDPBs),GIA Museums & Galleries,Natural History Museum,0030023053,"3,873,000.00",Grant in Aid payment to a DCMS sponsored Non Departmental Public Body
Department for Culture Media and Sport,Department for Culture Media and Sport,01/09/2011,Grant-in-Aid (DCMS NDPBs),GIA Museums & Galleries,Natural History Museum,0030023345,"3,873,000.00",Grant in Aid payment to a DCMS sponsored Non Departmental Public Body
Department for Culture Media and Sport,Department for Culture Media and Sport,03/10/2011,Grant-in-Aid (DCMS NDPBs),GIA Museums & Galleries,Natural History Museum,0030023755,"3,873,000.00",Grant in Aid payment to a DCMS sponsored Non Departmental Public Body
Department for Culture Media and Sport,Department for Culture Media and Sport,01/11/2011,Grant-in-Aid (DCMS NDPBs),GIA Museums & Galleries,Natural History Museum,0030024123,"3,873,000.00",Grant in Aid payment to a DCMS sponsored Non Departmental Public Body
Department for Culture Media and Sport,Department for Culture Media and Sport,01/12/2011,Grant-in-Aid (DCMS NDPBs),GIA Museums & Galleries,Natural History Museum,0030024481,"3,873,000.00",Grant in Aid payment to a DCMS sponsored Non Departmental Public Body
Department for Culture Media and Sport,Department for Culture Media and Sport,03/01/2012,Grant-in-Aid (DCMS NDPBs),GIA Museums & Galleries,Natural History Museum,0030024683,"3,873,000.00",Grant in Aid payment to a DCMS sponsored Non Departmental Public Body
Department for Culture Media and Sport,Department for Culture Media and Sport,01/02/2012,Grant-in-Aid (DCMS NDPBs),GIA Museums & Galleries,Natural History Museum,0030025028,"3,873,000.00",Grant in Aid payment to a DCMS sponsored Non Departmental Public Body
Department for Culture Media and Sport,Department for Culture Media and Sport,28/02/2012,Reimbursement of Agreed Costs,GOE managed programme costs,Northwest Regional Development Agency,0030025444,"70,000.00",Funding for Inspire Programme
Department for Culture Media and Sport,Department for Culture Media and Sport,15/04/2011,Capital Grants to PCs,OFCOM,OFCOM,0030022050,"20,540,000.00",Grant in Aid to OFCOM 
Department for Culture Media and Sport,Department for Culture Media and Sport,15/04/2011,Capital Grants to PCs,OFCOM,OFCOM,0030022051,"25,604,787.00",Grant in Aid to OFCOM 
Department for Culture Media and Sport,Department for Culture Media and Sport,01/08/2011,Capital Grants to PCs,OFCOM,OFCOM,0030023161,"1,060,000.00",Grant in Aid to OFCOM 
Department for Culture Media and Sport,Department for Culture Media and Sport,01/09/2011,Capital Grants to PCs,OFCOM,OFCOM,0030023391,"2,937,956.00",Grant in Aid to OFCOM 
Department for Culture Media and Sport,Department for Culture Media and Sport,01/09/2011,Capital Grants to PCs,OFCOM,OFCOM,0030023392,"5,340,000.00",Grant in Aid to OFCOM 
Department for Culture Media and Sport,Department for Culture Media and Sport,03/10/2011,Capital Grants to PCs,OFCOM,OFCOM,0030023666,"4,169,791.00",Grant in Aid to OFCOM 
Department for Culture Media and Sport,Department for Culture Media and Sport,03/10/2011,Capital Grants to PCs,OFCOM,OFCOM,0030023667,"5,584,000.00",Grant in Aid to OFCOM 
Department for Culture Media and Sport,Department for Culture Media and Sport,03/11/2011,Capital Grants to PCs,OFCOM,OFCOM,0030024122,"636,187.00",Grant in Aid to OFCOM 
Department for Culture Media and Sport,Department for Culture Media and Sport,07/12/2011,Capital Grants to PCs,OFCOM,OFCOM,0030024479,"5,883,780.00",Grant in Aid to OFCOM 
Department for Culture Media and Sport,Department for Culture Media and Sport,03/01/2012,Capital Grants to PCs,OFCOM,OFCOM,0030024752,"3,875,104.00",Grant in Aid to OFCOM 
Department for Culture Media and Sport,Department for Culture Media and Sport,03/01/2012,Capital Grants to PCs,OFCOM,OFCOM,0030024753,"5,438,000.00",Grant in Aid to OFCOM 
Department for Culture Media and Sport,Department for Culture Media and Sport,01/02/2012,Capital Grants to PCs,OFCOM,OFCOM,0030025133,"3,392,000.00",Grant in Aid to OFCOM 
Department for Culture Media and Sport,Department for Culture Media and Sport,20/07/2011,Grant to OGD (Resource),OFCOM,OFCOM,0030022929,"225,403.00",Grant in Aid to OFCOM 
Department for Culture Media and Sport,Department for Culture Media and Sport,10/11/2011,Grant to OGD (Resource),OFCOM,OFCOM,0030024093,"208,915.00",Grant in Aid to OFCOM 
Department for Culture Media and Sport,Department for Culture Media and Sport,09/02/2012,Grant to OGD (Resource),OFCOM,Ofcom,0030025201,"96,085.00",Grant in Aid to OFCOM 
Department for Culture Media and Sport,Department for Culture Media and Sport,17/02/2012,Grant to OGD (Resource),OFCOM,Ofcom,0030025306,"216,597.00",Grant in Aid to OFCOM 
Department for Culture Media and Sport,Department for Culture Media and Sport,14/09/2011,Subsidy to PC,OFCOM,OFCOM,0030023020,"3,198,955.00",Grant in Aid to OFCOM 
Department for Culture Media and Sport,Department for Culture Media and Sport,25/07/2011,Subsidy to PC,OFCOM,OFCOM,0030023031,"331,323.00",Grant in Aid to OFCOM 
Department for Culture Media and Sport,Department for Culture Media and Sport,01/08/2011,Subsidy to PC,OFCOM,OFCOM,0030023158,"65,215.00",Grant in Aid to OFCOM 
Department for Culture Media and Sport,Department for Culture Media and Sport,01/08/2011,Subsidy to PC,OFCOM,OFCOM,0030023159,"78,648.00",Grant in Aid to OFCOM 
Department for Culture Media and Sport,Department for Culture Media and Sport,01/08/2011,Subsidy to PC,OFCOM,OFCOM,0030023160,"42,716.00",Grant in Aid to OFCOM 
Department for Culture Media and Sport,Department for Culture Media and Sport,03/10/2011,Subsidy to PC,OFCOM,OFCOM,0030023665,"82,320.00",Grant in Aid to OFCOM 
Department for Culture Media and Sport,Department for Culture Media and Sport,03/11/2011,Subsidy to PC,OFCOM,OFCOM,0030024125,"1,406,000.00",Grant in Aid to OFCOM 
Department for Culture Media and Sport,Department for Culture Media and Sport,07/12/2011,Subsidy to PC,OFCOM,OFCOM,0030024478,"45,545.00",Grant in Aid to OFCOM 
Department for Culture Media and Sport,Department for Culture Media and Sport,07/12/2011,Subsidy to PC,OFCOM,OFCOM,0030024480,"5,832,000.00",Grant in Aid to OFCOM 
Department for Culture Media and Sport,Department for Culture Media and Sport,03/01/2012,Subsidy to PC,OFCOM,OFCOM,0030024754,"106,762.00",Grant in Aid to OFCOM 
Department for Culture Media and Sport,Department for Culture Media and Sport,14/12/2011,Research,EAU Policy Research + Eval,Office for National Statistics,0030024590,"47,553.00",Funding - Questions on the International Passenger Survey 
Department for Culture Media and Sport,Department for Culture Media and Sport,04/04/2011,Grant-in-Aid (DCMS NDPBs),GIA Olympic Delivery Authority,Olympic Delivery Authority (Citi Tfr),0030021879,"72,853,000.00",Grant in Aid payment to a DCMS sponsored Non Departmental Public Body
Department for Culture Media and Sport,Department for Culture Media and Sport,04/04/2011,Grant-in-Aid (DCMS NDPBs),GIA Olympic Delivery Authority,Olympic Delivery Authority (Citi Tfr),0030021880,"100,000,000.00",Grant in Aid payment to a DCMS sponsored Non Departmental Public Body
Department for Culture Media and Sport,Department for Culture Media and Sport,11/04/2011,Grant-in-Aid (DCMS NDPBs),GIA Olympic Delivery Authority,Olympic Delivery Authority (Citi Tfr),0030021912,"75,000,000.00",Grant in Aid payment to a DCMS sponsored Non Departmental Public Body
Department for Culture Media and Sport,Department for Culture Media and Sport,27/04/2011,Grant-in-Aid (DCMS NDPBs),GIA Olympic Delivery Authority,Olympic Delivery Authority (Citi Tfr),0030021913,"25,000,000.00",Grant in Aid payment to a DCMS sponsored Non Departmental Public Body
Department for Culture Media and Sport,Department for Culture Media and Sport,09/05/2011,Grant-in-Aid (DCMS NDPBs),GIA Olympic Delivery Authority,Olympic Delivery Authority (Citi Tfr),0030022151,"81,000,000.00",Grant in Aid payment to a DCMS sponsored Non Departmental Public Body
Department for Culture Media and Sport,Department for Culture Media and Sport,16/05/2011,Grant-in-Aid (DCMS NDPBs),GIA Olympic Delivery Authority,Olympic Delivery Authority (Citi Tfr),0030022152,"60,000,000.00",Grant in Aid payment to a DCMS sponsored Non Departmental Public Body
Department for Culture Media and Sport,Department for Culture Media and Sport,02/06/2011,Grant-in-Aid (DCMS NDPBs),GIA Olympic Delivery Authority,Olympic Delivery Authority (Citi Tfr),0030022487,"109,000,000.00",Grant in Aid payment to a DCMS sponsored Non Departmental Public Body
Department for Culture Media and Sport,Department for Culture Media and Sport,16/06/2011,Grant-in-Aid (DCMS NDPBs),GIA Olympic Delivery Authority,Olympic Delivery Authority (Citi Tfr),0030022488,"60,000,000.00",Grant in Aid payment to a DCMS sponsored Non Departmental Public Body
Department for Culture Media and Sport,Department for Culture Media and Sport,01/07/2011,Grant-in-Aid (DCMS NDPBs),GIA Olympic Delivery Authority,Olympic Delivery Authority (Citi Tfr),0030022783,"50,000,000.00",Grant in Aid payment to a DCMS sponsored Non Departmental Public Body
Department for Culture Media and Sport,Department for Culture Media and Sport,30/06/2011,Grant-in-Aid (DCMS NDPBs),GIA Olympic Delivery Authority,Olympic Delivery Authority (Citi Tfr),0030022784,"50,000,000.00",Grant in Aid payment to a DCMS sponsored Non Departmental Public Body
Department for Culture Media and Sport,Department for Culture Media and Sport,01/08/2011,Grant-in-Aid (DCMS NDPBs),GIA Olympic Delivery Authority,Olympic Delivery Authority (Citi Tfr),0030023061,"80,000,000.00",Grant in Aid payment to a DCMS sponsored Non Departmental Public Body
Department for Culture Media and Sport,Department for Culture Media and Sport,12/09/2011,Grant-in-Aid (DCMS NDPBs),GIA Olympic Delivery Authority,Olympic Delivery Authority (Citi Tfr),0030023438,"30,000,000.00",Grant in Aid payment to a DCMS sponsored Non Departmental Public Body
Department for Culture Media and Sport,Department for Culture Media and Sport,07/10/2011,Grant-in-Aid (DCMS NDPBs),GIA Olympic Delivery Authority,Olympic Delivery Authority (Citi Tfr),0030023717,"40,000,000.00",Grant in Aid payment to a DCMS sponsored Non Departmental Public Body
Department for Culture Media and Sport,Department for Culture Media and Sport,04/11/2011,Grant-in-Aid (DCMS NDPBs),GIA Olympic Delivery Authority,Olympic Delivery Authority (Citi Tfr),0030024078,"80,000,000.00",Grant in Aid payment to a DCMS sponsored Non Departmental Public Body
Department for Culture Media and Sport,Department for Culture Media and Sport,05/12/2011,Grant-in-Aid (DCMS NDPBs),GIA Olympic Delivery Authority,Olympic Delivery Authority (Citi Tfr),0030024409,"70,000,000.00",Grant in Aid payment to a DCMS sponsored Non Departmental Public Body
Department for Culture Media and Sport,Department for Culture Media and Sport,06/01/2012,Grant-in-Aid (DCMS NDPBs),GIA Olympic Delivery Authority,Olympic Delivery Authority (Citi Tfr),0030024749,"20,000,000.00",Grant in Aid payment to a DCMS sponsored Non Departmental Public Body
Department for Culture Media and Sport,Department for Culture Media and Sport,01/02/2012,Grant-in-Aid (DCMS NDPBs),GIA Olympic Delivery Authority,Olympic Delivery Authority (Citi Tfr),0030025088,"85,000,000.00",Grant in Aid payment to a DCMS sponsored Non Departmental Public Body
Department for Culture Media and Sport,Department for Culture Media and Sport,27/04/2011,Management Consultants,GOE Admin Costs,Olympic Delivery Authority (Citi Tfr),0030022174,"59,769.07",Olympics - Independent Review of Electricity Resillience
Department for Culture Media and Sport,Department for Culture Media and Sport,03/11/2011,Capital Grants to LAs,GOE managed programme costs,Olympic Park Legacy Company,0030024142,"1,333,473.00",Olympics - Grant re Transformation Works
Department for Culture Media and Sport,Department for Culture Media and Sport,07/11/2011,Capital Grants to LAs,GOE managed programme costs,Olympic Park Legacy Company,0030024196,"599,438.00",Olympics - Grant re Transformation Works
Department for Culture Media and Sport,Department for Culture Media and Sport,07/12/2011,Capital Grants to LAs,GOE managed programme costs,Olympic Park Legacy Company,0030024570,"524,438.00",Olympics - Grant re Transformation Works
Department for Culture Media and Sport,Department for Culture Media and Sport,18/01/2012,Capital Grants to LAs,GOE managed programme costs,Olympic Park Legacy Company,0030024992,"517,424.00",Olympics - Grant re Transformation Works
Department for Culture Media and Sport,Department for Culture Media and Sport,16/02/2012,Capital Grants to LAs,GOE managed programme costs,Olympic Park Legacy Company,0030025311,"2,076,570.00",Olympics - Grant re Transformation Works
Department for Culture Media and Sport,Department for Culture Media and Sport,26/03/2012,Capital Grants to LAs,GOE managed programme costs,Olympic Park Legacy Company,0030025762,"2,334,657.00",Olympics - Grant re Transformation Works
Department for Culture Media and Sport,Department for Culture Media and Sport,09/03/2012,Reimbursement of Agreed Costs,GOE managed programme costs,One North East,0030025586,"44,168.00",Olympic Nations Regions Co-Ordinator
Department for Culture Media and Sport,Department for Culture Media and Sport,05/10/2011,CIU Mapping Doc 2000,Misc Balance Sheet,Open City Architecture,0030023814,"100,000.00",Grant re Engaging Places (for CABE)
Department for Culture Media and Sport,Department for Culture Media and Sport,28/03/2012,CIU Mapping Doc 2000,Misc Balance Sheet,Phoenix,0030025696,"30,630.00",Disaster Recovery Services 2011-12
Department for Culture Media and Sport,Department for Culture Media and Sport,07/07/2011,Management Consultants,Broadband Delivery UK (Admin),Pinsent Masons,0030022864,"46,223.75",Legal Fees re Broadband Delivery 
Department for Culture Media and Sport,Department for Culture Media and Sport,25/07/2011,Management Consultants,Broadband Delivery UK (Admin),Pinsent Masons,0030022903,"67,379.65",Legal Fees re Broadband Delivery 
Department for Culture Media and Sport,Department for Culture Media and Sport,02/09/2011,Management Consultants,Broadband Delivery UK (Admin),Pinsent Masons,0030023361,"62,078.94",Legal Fees re Broadband Delivery 
Department for Culture Media and Sport,Department for Culture Media and Sport,19/09/2011,Management Consultants,Broadband Delivery UK (Admin),Pinsent Masons,0030023679,"100,785.65",Legal Fees re Broadband Delivery 
Department for Culture Media and Sport,Department for Culture Media and Sport,17/11/2011,Management Consultants,Broadband Delivery UK (Admin),Pinsent Masons,0030024290,"102,161.64",Legal Fees re Broadband Delivery 
Department for Culture Media and Sport,Department for Culture Media and Sport,02/12/2011,Management Consultants,Broadband Delivery UK (Admin),Pinsent Masons,0030024429,"94,915.75",Legal Fees re Broadband Delivery 
Department for Culture Media and Sport,Department for Culture Media and Sport,23/12/2011,Management Consultants,Broadband Delivery UK (Admin),Pinsent Masons,0030024733,"71,906.25",Legal Fees re Broadband Delivery 
Department for Culture Media and Sport,Department for Culture Media and Sport,19/01/2012,Management Consultants,Broadband Delivery UK (Admin),Pinsent Masons,0030024928,"89,518.31",Legal Fees re Broadband Delivery 
Department for Culture Media and Sport,Department for Culture Media and Sport,23/02/2012,Management Consultants,Broadband Delivery UK (Admin),Pinsent Masons,0030025359,"75,971.88",Legal Fees re Broadband Delivery 
Department for Culture Media and Sport,Department for Culture Media and Sport,05/08/2011,National Cutting Service,Press Office,Precise Media Monitoring Ltd,0030023088,"48,388.80",Monitoring Backcharge 
Department for Culture Media and Sport,Department for Culture Media and Sport,12/05/2011,Other Consultancy,Media - Admin Costs,PriceWaterhouseCoopers,0030022308,"29,992.00",BFI Due Dilligence Project
Department for Culture Media and Sport,Department for Culture Media and Sport,01/04/2011,Grant-in-Aid (DCMS NDPBs),GIA Libraries bodies,Public Lending Right,0030021817,"44,103.00",Grant in Aid payment to a DCMS sponsored Non Departmental Public Body
Department for Culture Media and Sport,Department for Culture Media and Sport,03/05/2011,Grant-in-Aid (DCMS NDPBs),GIA Libraries bodies,Public Lending Right,0030022196,"56,646.00",Grant in Aid payment to a DCMS sponsored Non Departmental Public Body
Department for Culture Media and Sport,Department for Culture Media and Sport,01/06/2011,Grant-in-Aid (DCMS NDPBs),GIA Libraries bodies,Public Lending Right,0030022412,"73,817.00",Grant in Aid payment to a DCMS sponsored Non Departmental Public Body
Department for Culture Media and Sport,Department for Culture Media and Sport,01/07/2011,Grant-in-Aid (DCMS NDPBs),GIA Libraries bodies,Public Lending Right,0030022742,"70,390.00",Grant in Aid payment to a DCMS sponsored Non Departmental Public Body
Department for Culture Media and Sport,Department for Culture Media and Sport,01/08/2011,Grant-in-Aid (DCMS NDPBs),GIA Libraries bodies,Public Lending Right,0030022990,"51,703.00",Grant in Aid payment to a DCMS sponsored Non Departmental Public Body
Department for Culture Media and Sport,Department for Culture Media and Sport,01/09/2011,Grant-in-Aid (DCMS NDPBs),GIA Libraries bodies,Public Lending Right,0030023328,"76,199.00",Grant in Aid payment to a DCMS sponsored Non Departmental Public Body
Department for Culture Media and Sport,Department for Culture Media and Sport,03/10/2011,Grant-in-Aid (DCMS NDPBs),GIA Libraries bodies,Public Lending Right,0030023631,"42,782.00",Grant in Aid payment to a DCMS sponsored Non Departmental Public Body
Department for Culture Media and Sport,Department for Culture Media and Sport,01/11/2011,Grant-in-Aid (DCMS NDPBs),GIA Libraries bodies,Public Lending Right,0030023949,"44,200.00",Grant in Aid payment to a DCMS sponsored Non Departmental Public Body
Department for Culture Media and Sport,Department for Culture Media and Sport,01/12/2011,Grant-in-Aid (DCMS NDPBs),GIA Libraries bodies,Public Lending Right,0030024351,"71,200.00",Grant in Aid payment to a DCMS sponsored Non Departmental Public Body
Department for Culture Media and Sport,Department for Culture Media and Sport,03/01/2012,Grant-in-Aid (DCMS NDPBs),GIA Libraries bodies,Public Lending Right,0030024684,"50,105.00",Grant in Aid payment to a DCMS sponsored Non Departmental Public Body
Department for Culture Media and Sport,Department for Culture Media and Sport,01/02/2012,Grant-in-Aid (DCMS NDPBs),GIA Libraries bodies,Public Lending Right,0030025001,"6,547,000.00",Grant in Aid payment to a DCMS sponsored Non Departmental Public Body
Department for Culture Media and Sport,Department for Culture Media and Sport,01/03/2012,Grant-in-Aid (DCMS NDPBs),GIA Libraries bodies,Public Lending Right,0030025329,"77,855.00",Grant in Aid payment to a DCMS sponsored Non Departmental Public Body
Department for Culture Media and Sport,Department for Culture Media and Sport,10/08/2011,Building Maintenance,Estates & Property Services,Security Services Group,0030023275,"29,181.88",Security Alarm System
Department for Culture Media and Sport,Department for Culture Media and Sport,07/03/2012,Capital Grants to LAs,Seachange Resort Grts (LA Cap),Sefton Council,0030025516,"1,127,675.00",`Grant Re Seachange Programme
Department for Culture Media and Sport,Department for Culture Media and Sport,01/04/2011,Grant-in-Aid (DCMS NDPBs),GIA Museums & Galleries,Sir John Soane's Museum,0030021822,"95,000.00",Grant in Aid payment to a DCMS sponsored Non Departmental Public Body
Department for Culture Media and Sport,Department for Culture Media and Sport,03/05/2011,Grant-in-Aid (DCMS NDPBs),GIA Museums & Galleries,Sir John Soane's Museum,0030022208,"98,392.00",Grant in Aid payment to a DCMS sponsored Non Departmental Public Body
Department for Culture Media and Sport,Department for Culture Media and Sport,01/06/2011,Grant-in-Aid (DCMS NDPBs),GIA Museums & Galleries,Sir John Soane's Museum,0030022409,"99,620.00",Grant in Aid payment to a DCMS sponsored Non Departmental Public Body
Department for Culture Media and Sport,Department for Culture Media and Sport,01/07/2011,Grant-in-Aid (DCMS NDPBs),GIA Museums & Galleries,Sir John Soane's Museum,0030022745,"86,463.00",Grant in Aid payment to a DCMS sponsored Non Departmental Public Body
Department for Culture Media and Sport,Department for Culture Media and Sport,01/08/2011,Grant-in-Aid (DCMS NDPBs),GIA Museums & Galleries,Sir John Soane's Museum,0030023012,"90,145.00",Grant in Aid payment to a DCMS sponsored Non Departmental Public Body
Department for Culture Media and Sport,Department for Culture Media and Sport,01/09/2011,Grant-in-Aid (DCMS NDPBs),GIA Museums & Galleries,Sir John Soane's Museum,0030023352,"87,691.00",Grant in Aid payment to a DCMS sponsored Non Departmental Public Body
Department for Culture Media and Sport,Department for Culture Media and Sport,03/10/2011,Grant-in-Aid (DCMS NDPBs),GIA Museums & Galleries,Sir John Soane's Museum,0030023684,"86,463.00",Grant in Aid payment to a DCMS sponsored Non Departmental Public Body
Department for Culture Media and Sport,Department for Culture Media and Sport,01/11/2011,Grant-in-Aid (DCMS NDPBs),GIA Museums & Galleries,Sir John Soane's Museum,0030023963,"86,463.00",Grant in Aid payment to a DCMS sponsored Non Departmental Public Body
Department for Culture Media and Sport,Department for Culture Media and Sport,01/12/2011,Grant-in-Aid (DCMS NDPBs),GIA Museums & Galleries,Sir John Soane's Museum,0030024352,"102,128.00",Grant in Aid payment to a DCMS sponsored Non Departmental Public Body
Department for Culture Media and Sport,Department for Culture Media and Sport,03/01/2012,Grant-in-Aid (DCMS NDPBs),GIA Museums & Galleries,Sir John Soane's Museum,0030024691,"99,620.00",Grant in Aid payment to a DCMS sponsored Non Departmental Public Body
Department for Culture Media and Sport,Department for Culture Media and Sport,01/02/2012,Grant-in-Aid (DCMS NDPBs),GIA Museums & Galleries,Sir John Soane's Museum,0030025000,"99,620.00",Grant in Aid payment to a DCMS sponsored Non Departmental Public Body
Department for Culture Media and Sport,Department for Culture Media and Sport,01/03/2012,Grant-in-Aid (DCMS NDPBs),GIA Museums & Galleries,Sir John Soane's Museum,0030025353,"98,395.00",Grant in Aid payment to a DCMS sponsored Non Departmental Public Body
Department for Culture Media and Sport,Department for Culture Media and Sport,27/02/2012,Reimbursement of Agreed Costs,GOE managed programme costs,South East England Development Agency,0030025414,"50,000.00",Contribution to Costs 
Department for Culture Media and Sport,Department for Culture Media and Sport,01/04/2011,Grant-in-Aid (DCMS NDPBs),GIA Sports bodies,Sport England,0030021855,"12,000,000.00",Grant in Aid payment to a DCMS sponsored Non Departmental Public Body
Department for Culture Media and Sport,Department for Culture Media and Sport,03/05/2011,Grant-in-Aid (DCMS NDPBs),GIA Sports bodies,Sport England,0030022186,"19,000,000.00",Grant in Aid payment to a DCMS sponsored Non Departmental Public Body
Department for Culture Media and Sport,Department for Culture Media and Sport,01/06/2011,Grant-in-Aid (DCMS NDPBs),GIA Sports bodies,Sport England,0030022483,"2,000,000.00",Grant in Aid payment to a DCMS sponsored Non Departmental Public Body
Department for Culture Media and Sport,Department for Culture Media and Sport,01/07/2011,Grant-in-Aid (DCMS NDPBs),GIA Sports bodies,Sport England,0030022790,"3,000,000.00",Grant in Aid payment to a DCMS sponsored Non Departmental Public Body
Department for Culture Media and Sport,Department for Culture Media and Sport,01/08/2011,Grant-in-Aid (DCMS NDPBs),GIA Sports bodies,Sport England,0030023096,"5,000,000.00",Grant in Aid payment to a DCMS sponsored Non Departmental Public Body
Department for Culture Media and Sport,Department for Culture Media and Sport,01/09/2011,Grant-in-Aid (DCMS NDPBs),GIA Sports bodies,Sport England,0030023410,"11,000,000.00",Grant in Aid payment to a DCMS sponsored Non Departmental Public Body
Department for Culture Media and Sport,Department for Culture Media and Sport,03/10/2011,Grant-in-Aid (DCMS NDPBs),GIA Sports bodies,Sport England,0030023705,"15,000,000.00",Grant in Aid payment to a DCMS sponsored Non Departmental Public Body
Department for Culture Media and Sport,Department for Culture Media and Sport,01/11/2011,Grant-in-Aid (DCMS NDPBs),GIA Sports bodies,Sport England,0030024060,"1,000,000.00",Grant in Aid payment to a DCMS sponsored Non Departmental Public Body
Department for Culture Media and Sport,Department for Culture Media and Sport,01/12/2011,Grant-in-Aid (DCMS NDPBs),GIA Sports bodies,Sport England,0030024410,"3,500,000.00",Grant in Aid payment to a DCMS sponsored Non Departmental Public Body
Department for Culture Media and Sport,Department for Culture Media and Sport,03/01/2012,Grant-in-Aid (DCMS NDPBs),GIA Sports bodies,Sport England,0030024774,"5,000,000.00",Grant in Aid payment to a DCMS sponsored Non Departmental Public Body
Department for Culture Media and Sport,Department for Culture Media and Sport,01/02/2012,Grant-in-Aid (DCMS NDPBs),GIA Sports bodies,Sport England,0030025073,"7,500,000.00",Grant in Aid payment to a DCMS sponsored Non Departmental Public Body
Department for Culture Media and Sport,Department for Culture Media and Sport,01/06/2011,Grant-in-Aid (DCMS NDPBs),GIA Sports bodies,Sport Ground Safety Authority,0030022362,"87,216.00",Grant in Aid payment to a DCMS sponsored Non Departmental Public Body
Department for Culture Media and Sport,Department for Culture Media and Sport,01/07/2011,Grant-in-Aid (DCMS NDPBs),GIA Sports bodies,Sport Ground Safety Authority,0030022658,"87,216.00",Grant in Aid payment to a DCMS sponsored Non Departmental Public Body
Department for Culture Media and Sport,Department for Culture Media and Sport,01/08/2011,Grant-in-Aid (DCMS NDPBs),GIA Sports bodies,Sport Ground Safety Authority,0030022902,"97,216.00",Grant in Aid payment to a DCMS sponsored Non Departmental Public Body
Department for Culture Media and Sport,Department for Culture Media and Sport,01/09/2011,Grant-in-Aid (DCMS NDPBs),GIA Sports bodies,Sport Ground Safety Authority,0030023350,"131,416.00",Grant in Aid payment to a DCMS sponsored Non Departmental Public Body
Department for Culture Media and Sport,Department for Culture Media and Sport,03/10/2011,Grant-in-Aid (DCMS NDPBs),GIA Sports bodies,Sport Ground Safety Authority,0030023588,"95,353.00",Grant in Aid payment to a DCMS sponsored Non Departmental Public Body
Department for Culture Media and Sport,Department for Culture Media and Sport,01/11/2011,Grant-in-Aid (DCMS NDPBs),GIA Sports bodies,Sport Ground Safety Authority,0030023925,"87,216.00",Grant in Aid payment to a DCMS sponsored Non Departmental Public Body
Department for Culture Media and Sport,Department for Culture Media and Sport,01/12/2011,Grant-in-Aid (DCMS NDPBs),GIA Sports bodies,Sport Ground Safety Authority,0030024248,"100,216.00",Grant in Aid payment to a DCMS sponsored Non Departmental Public Body
Department for Culture Media and Sport,Department for Culture Media and Sport,03/01/2012,Grant-in-Aid (DCMS NDPBs),GIA Sports bodies,Sport Ground Safety Authority,0030024640,"97,216.00",Grant in Aid payment to a DCMS sponsored Non Departmental Public Body
Department for Culture Media and Sport,Department for Culture Media and Sport,22/09/2011,Legal Services - Programme,Asset sale,Sport Investment Partners Advisory,0030023714,"750,000.00",Costs in relation to sale of asset
Department for Culture Media and Sport,Department for Culture Media and Sport,04/10/2011,Tribunal Administration Fees,Sports - Programme Costs,Sport Resolutions (UK),0030023443,"59,975.00",NADP Service Contract 
Department for Culture Media and Sport,Department for Culture Media and Sport,13/12/2011,Tribunal Administration Fees,Sports - Programme Costs,Sport Resolutions (UK),0030024631,"71,970.00",NADP Service Contract 
Department for Culture Media and Sport,Department for Culture Media and Sport,30/03/2012,Tribunal Administration Fees,Sports - Programme Costs,Sport Resolutions (UK),0030025554,"133,170.00",NADP Service Contract 
Department for Culture Media and Sport,Department for Culture Media and Sport,13/05/2011,Payments to Crown Dependencies,DSO Underspend: BIS programmes,States of Guernsey,0030022336,"220,182.00",Digital Switchover - Payment to states of Guernsey
Department for Culture Media and Sport,Department for Culture Media and Sport,19/04/2011,Grant-in-Aid (DCMS NDPBs),GIA Mus Libs Archives x-sector,Tate Gallery,0030022119,"81,127.00",Grant in Aid payment to a DCMS sponsored Non Departmental Public Body
Department for Culture Media and Sport,Department for Culture Media and Sport,05/04/2011,Grant-in-Aid (DCMS NDPBs),GIA Museums & Galleries,Tate Gallery,0030021814,"3,040,903.00",Grant in Aid payment to a DCMS sponsored Non Departmental Public Body
Department for Culture Media and Sport,Department for Culture Media and Sport,05/05/2011,Grant-in-Aid (DCMS NDPBs),GIA Museums & Galleries,Tate Gallery,0030022144,"3,199,800.00",Grant in Aid payment to a DCMS sponsored Non Departmental Public Body
Department for Culture Media and Sport,Department for Culture Media and Sport,03/06/2011,Grant-in-Aid (DCMS NDPBs),GIA Museums & Galleries,Tate Gallery,0030022410,"3,289,305.00",Grant in Aid payment to a DCMS sponsored Non Departmental Public Body
Department for Culture Media and Sport,Department for Culture Media and Sport,05/07/2011,Grant-in-Aid (DCMS NDPBs),GIA Museums & Galleries,Tate Gallery,0030022747,"3,073,934.00",Grant in Aid payment to a DCMS sponsored Non Departmental Public Body
Department for Culture Media and Sport,Department for Culture Media and Sport,03/08/2011,Grant-in-Aid (DCMS NDPBs),GIA Museums & Galleries,Tate Gallery,0030023052,"3,103,756.00",Grant in Aid payment to a DCMS sponsored Non Departmental Public Body
Department for Culture Media and Sport,Department for Culture Media and Sport,05/09/2011,Grant-in-Aid (DCMS NDPBs),GIA Museums & Galleries,Tate Gallery,0030023332,"2,896,564.00",Grant in Aid payment to a DCMS sponsored Non Departmental Public Body
Department for Culture Media and Sport,Department for Culture Media and Sport,03/10/2011,Grant-in-Aid (DCMS NDPBs),GIA Museums & Galleries,Tate Gallery,0030023716,"2,832,070.00",Grant in Aid payment to a DCMS sponsored Non Departmental Public Body
Department for Culture Media and Sport,Department for Culture Media and Sport,03/11/2011,Grant-in-Aid (DCMS NDPBs),GIA Museums & Galleries,Tate Gallery,0030023981,"4,851,400.00",Grant in Aid payment to a DCMS sponsored Non Departmental Public Body
Department for Culture Media and Sport,Department for Culture Media and Sport,05/12/2011,Grant-in-Aid (DCMS NDPBs),GIA Museums & Galleries,Tate Gallery,0030024338,"4,732,180.00",Grant in Aid payment to a DCMS sponsored Non Departmental Public Body
Department for Culture Media and Sport,Department for Culture Media and Sport,05/01/2012,Grant-in-Aid (DCMS NDPBs),GIA Museums & Galleries,Tate Gallery,0030024751,"2,675,000.00",Grant in Aid payment to a DCMS sponsored Non Departmental Public Body
Department for Culture Media and Sport,Department for Culture Media and Sport,03/02/2012,Grant-in-Aid (DCMS NDPBs),GIA Museums & Galleries,Tate Gallery,0030025025,"5,705,044.00",Grant in Aid payment to a DCMS sponsored Non Departmental Public Body
Department for Culture Media and Sport,Department for Culture Media and Sport,28/03/2012,Capital Grants to LAs,Seachange Resort Grts (LA Cap),Thanet District Council,0030025655,"1,669,377.00",Capital Grant re Seachange
Department for Culture Media and Sport,Department for Culture Media and Sport,15/09/2011,Temp staff Interim managers,Broadband Delivery UK (Admin),The Bit Commons Ltd,0030023548,"24,700.00",Broadband Delivery - hire of  Contractors (19 days)
Department for Culture Media and Sport,Department for Culture Media and Sport,01/11/2011,Temp staff Interim managers,Broadband Delivery UK (Admin),The Bit Commons Ltd,0030024135,"25,539.00",Broadband Delivery - hire of  Contractors (19 days)
Department for Culture Media and Sport,Department for Culture Media and Sport,20/05/2011,Management of Grant Programmes,Museums+Cultural PropertyProgs,The British Museum Great Court Limited,0030022428,"26,750.00",Treasure Running Costs
Department for Culture Media and Sport,Department for Culture Media and Sport,12/09/2011,Management of Grant Programmes,Museums+Cultural PropertyProgs,The British Museum Great Court Limited,0030023561,"26,750.00",Treasure Running Costs
Department for Culture Media and Sport,Department for Culture Media and Sport,06/01/2012,Management of Grant Programmes,Museums+Cultural PropertyProgs,The British Museum Great Court Limited,0030024863,"26,750.00",Treasure Running Costs
Department for Culture Media and Sport,Department for Culture Media and Sport,24/01/2012,Management of Grant Programmes,Museums+Cultural PropertyProgs,The British Museum Great Court Limited,0030025036,"26,750.00",Treasure Running Costs
Department for Culture Media and Sport,Department for Culture Media and Sport,23/03/2012,Capital Grant Private Sector,GIA Museums & Galleries,The Design Museum,0030025727,"500,000.00",Capital grant towards Design Museum relocation
Department for Culture Media and Sport,Department for Culture Media and Sport,21/04/2011,Current Grants Private Sector,GIA Museums & Galleries,The Design Museum,0030022137,"328,000.00",Annual grant for education programmes under current funding agreement
Department for Culture Media and Sport,Department for Culture Media and Sport,10/05/2011,Flag Flying,State Ceremonials Prog Costs,The Flag Consultancy Ltd,0030022280,"56,500.00",Equipment
Department for Culture Media and Sport,Department for Culture Media and Sport,26/04/2011,Payments under GIS Indemnity,Museums+Cultural PropertyProgs,The Gallery Mourmans,0030022005,"34,255.58",Government Indemnity Scheme
Department for Culture Media and Sport,Department for Culture Media and Sport,19/04/2011,Capital Grant Private Sector,Arts Support in Culture Team,The Poetry Archive,0030022085,"33,034.75",Grant re Poetry Archive
Department for Culture Media and Sport,Department for Culture Media and Sport,20/05/2011,Digital Preservation Fund,GOE Admin Costs,The Prince's Trust,0030022421,"95,562.67",Get Started Programme
Department for Culture Media and Sport,Department for Culture Media and Sport,22/08/2011,Reimbursement of Agreed Costs,GOE managed programme costs,The Prince's Trust,0030023414,"29,880.05",Get Started Programme
Department for Culture Media and Sport,Department for Culture Media and Sport,12/01/2012,Reimbursement of Agreed Costs,GOE managed programme costs,The Prince's Trust,0030024921,"25,728.83",Opportunity Programme - Grant Payment
Department for Culture Media and Sport,Department for Culture Media and Sport,10/02/2012,Reimbursement of Agreed Costs,GOE managed programme costs,The Prince's Trust,0030025263,"80,082.09",Opportunity Programme - Grant Payment
Department for Culture Media and Sport,Department for Culture Media and Sport,03/05/2011,VAT Recoverable Business Activ,Misc Balance Sheet,The Queen Elizabeth II Conference Centre,0030022156,"8,600.00",Media Booking
Department for Culture Media and Sport,Department for Culture Media and Sport,01/04/2011,Space Hire and Licences,State Ceremonials Prog Costs,The Queen Elizabeth II Conference Centre,0030021834,"100,000.00",Media Booking
Department for Culture Media and Sport,Department for Culture Media and Sport,03/05/2011,Space Hire and Licences,State Ceremonials Prog Costs,The Queen Elizabeth II Conference Centre,0030022156,"43,000.00",Media Booking
Department for Culture Media and Sport,Department for Culture Media and Sport,01/04/2011,Grant-in-Aid (DCMS NDPBs),GIA Museums & Galleries,The Royal Armouries,0030021825,"976,000.00",Grant in Aid payment to a DCMS sponsored Non Departmental Public Body
Department for Culture Media and Sport,Department for Culture Media and Sport,03/05/2011,Grant-in-Aid (DCMS NDPBs),GIA Museums & Galleries,The Royal Armouries,0030022134,"644,000.00",Grant in Aid payment to a DCMS sponsored Non Departmental Public Body
Department for Culture Media and Sport,Department for Culture Media and Sport,01/06/2011,Grant-in-Aid (DCMS NDPBs),GIA Museums & Galleries,The Royal Armouries,0030022414,"820,000.00",Grant in Aid payment to a DCMS sponsored Non Departmental Public Body
Department for Culture Media and Sport,Department for Culture Media and Sport,01/07/2011,Grant-in-Aid (DCMS NDPBs),GIA Museums & Galleries,The Royal Armouries,0030022752,"513,000.00",Grant in Aid payment to a DCMS sponsored Non Departmental Public Body
Department for Culture Media and Sport,Department for Culture Media and Sport,01/08/2011,Grant-in-Aid (DCMS NDPBs),GIA Museums & Galleries,The Royal Armouries,0030023033,"487,000.00",Grant in Aid payment to a DCMS sponsored Non Departmental Public Body
Department for Culture Media and Sport,Department for Culture Media and Sport,01/09/2011,Grant-in-Aid (DCMS NDPBs),GIA Museums & Galleries,The Royal Armouries,0030023334,"503,000.00",Grant in Aid payment to a DCMS sponsored Non Departmental Public Body
Department for Culture Media and Sport,Department for Culture Media and Sport,03/10/2011,Grant-in-Aid (DCMS NDPBs),GIA Museums & Galleries,The Royal Armouries,0030023634,"482,000.00",Grant in Aid payment to a DCMS sponsored Non Departmental Public Body
Department for Culture Media and Sport,Department for Culture Media and Sport,01/11/2011,Grant-in-Aid (DCMS NDPBs),GIA Museums & Galleries,The Royal Armouries,0030024014,"724,000.00",Grant in Aid payment to a DCMS sponsored Non Departmental Public Body
Department for Culture Media and Sport,Department for Culture Media and Sport,01/12/2011,Grant-in-Aid (DCMS NDPBs),GIA Museums & Galleries,The Royal Armouries,0030024299,"652,000.00",Grant in Aid payment to a DCMS sponsored Non Departmental Public Body
Department for Culture Media and Sport,Department for Culture Media and Sport,03/01/2012,Grant-in-Aid (DCMS NDPBs),GIA Museums & Galleries,The Royal Armouries,0030024707,"642,000.00",Grant in Aid payment to a DCMS sponsored Non Departmental Public Body
Department for Culture Media and Sport,Department for Culture Media and Sport,01/02/2012,Grant-in-Aid (DCMS NDPBs),GIA Museums & Galleries,The Royal Armouries,0030025054,"474,000.00",Grant in Aid payment to a DCMS sponsored Non Departmental Public Body
Department for Culture Media and Sport,Department for Culture Media and Sport,05/04/2011,Grant-in-Aid (DCMS NDPBs),The Royal Parks - funding,The Royal Parks,0030021923,"3,500,000.00",Grant in Aid payment to a DCMS sponsored Non Departmental Public Body
Department for Culture Media and Sport,Department for Culture Media and Sport,13/07/2011,Grant-in-Aid (DCMS NDPBs),The Royal Parks - funding,The Royal Parks,0030022947,"1,000,000.00",Grant in Aid payment to a DCMS sponsored Non Departmental Public Body
Department for Culture Media and Sport,Department for Culture Media and Sport,13/07/2011,Grant-in-Aid (DCMS NDPBs),The Royal Parks - funding,The Royal Parks,0030022948,"1,000,000.00",Grant in Aid payment to a DCMS sponsored Non Departmental Public Body
Department for Culture Media and Sport,Department for Culture Media and Sport,12/08/2011,Grant-in-Aid (DCMS NDPBs),The Royal Parks - funding,The Royal Parks,0030023308,"700,000.00",Grant in Aid payment to a DCMS sponsored Non Departmental Public Body
Department for Culture Media and Sport,Department for Culture Media and Sport,07/10/2011,Grant-in-Aid (DCMS NDPBs),The Royal Parks - funding,The Royal Parks,0030023767,"1,401,433.00",Grant in Aid payment to a DCMS sponsored Non Departmental Public Body
Department for Culture Media and Sport,Department for Culture Media and Sport,29/12/2011,Grant-in-Aid (DCMS NDPBs),The Royal Parks - funding,The Royal Parks,0030024770,"2,102,142.00",Grant in Aid payment to a DCMS sponsored Non Departmental Public Body
Department for Culture Media and Sport,Department for Culture Media and Sport,04/04/2011,Research,EAU Taking Part Survey,TNS UK LTD,0030021837,"217,993.00",Taking Part Programme Payment
Department for Culture Media and Sport,Department for Culture Media and Sport,06/05/2011,Research,EAU Taking Part Survey,TNS UK LTD,0030022244,"116,868.00",Taking Part Programme Payment
Department for Culture Media and Sport,Department for Culture Media and Sport,09/06/2011,Research,EAU Taking Part Survey,TNS UK LTD,0030022495,"97,390.00",Taking Part Programme Payment
Department for Culture Media and Sport,Department for Culture Media and Sport,27/06/2011,Research,EAU Taking Part Survey,TNS UK LTD,0030022799,"97,390.00",Taking Part Programme Payment
Department for Culture Media and Sport,Department for Culture Media and Sport,05/07/2011,Research,EAU Taking Part Survey,TNS UK LTD,0030022844,"22,696.00",Taking Part Programme Payment
Department for Culture Media and Sport,Department for Culture Media and Sport,01/08/2011,Research,EAU Taking Part Survey,TNS UK LTD,0030023140,"194,780.00",Taking Part Programme Payment
Department for Culture Media and Sport,Department for Culture Media and Sport,23/08/2011,Research,EAU Taking Part Survey,TNS UK LTD,0030023277,"39,780.00",Taking Part Programme Payment
Department for Culture Media and Sport,Department for Culture Media and Sport,02/09/2011,Research,EAU Taking Part Survey,TNS UK LTD,0030023486,"194,780.00",Taking Part Programme Payment
Department for Culture Media and Sport,Department for Culture Media and Sport,13/09/2011,Research,EAU Taking Part Survey,TNS UK LTD,0030023550,"115,193.44",Taking Part Programme Payment
Department for Culture Media and Sport,Department for Culture Media and Sport,03/10/2011,Research,EAU Taking Part Survey,TNS UK LTD,0030023773,"31,695.00",Taking Part Programme Payment
Department for Culture Media and Sport,Department for Culture Media and Sport,26/10/2011,Research,EAU Taking Part Survey,TNS UK LTD,0030024011,"115,193.44",Taking Part Programme Payment
Department for Culture Media and Sport,Department for Culture Media and Sport,09/12/2011,Research,EAU Taking Part Survey,TNS UK LTD,0030024573,"115,193.44",Taking Part Programme Payment
Department for Culture Media and Sport,Department for Culture Media and Sport,10/01/2012,Research,EAU Taking Part Survey,TNS UK LTD,0030024871,"115,193.44",Taking Part Programme Payment
Department for Culture Media and Sport,Department for Culture Media and Sport,26/01/2012,Research,EAU Taking Part Survey,TNS UK LTD,0030025058,"115,193.44",Taking Part Programme Payment
Department for Culture Media and Sport,Department for Culture Media and Sport,26/01/2012,Research,EAU Taking Part Survey,TNS UK LTD,0030025059,"115,193.44",Taking Part Programme Payment
Department for Culture Media and Sport,Department for Culture Media and Sport,28/02/2012,Research,EAU Taking Part Survey,TNS UK LTD,0030025440,"115,193.44",Taking Part Programme Payment
Department for Culture Media and Sport,Department for Culture Media and Sport,13/05/2011,Payments to Crown Dependencies,DSO Underspend: BIS programmes,Treasurer of the States of Jersey,0030022335,"342,505.00",Taking Part Programme Payment
Department for Culture Media and Sport,Department for Culture Media and Sport,19/04/2011,TSOL Advice Billed Hours,Legal Advisers to DCMS (TSOL),Treasury Solicitors,0030022105,"112,913.58",Treasury Solicitors Advisory Team Monthly Bill
Department for Culture Media and Sport,Department for Culture Media and Sport,24/05/2011,TSOL Advice Billed Hours,Legal Advisers to DCMS (TSOL),Treasury Solicitors,0030022427,"105,815.57",Treasury Solicitors Advisory Team Monthly Bill
Department for Culture Media and Sport,Department for Culture Media and Sport,22/06/2011,TSOL Advice Billed Hours,Legal Advisers to DCMS (TSOL),Treasury Solicitors,0030022760,"140,542.61",Treasury Solicitors Advisory Team Monthly Bill
Department for Culture Media and Sport,Department for Culture Media and Sport,28/07/2011,TSOL Advice Billed Hours,Legal Advisers to DCMS (TSOL),Treasury Solicitors,0030023043,"144,507.13",Treasury Solicitors Advisory Team Monthly Bill
Department for Culture Media and Sport,Department for Culture Media and Sport,19/08/2011,TSOL Advice Billed Hours,Legal Advisers to DCMS (TSOL),Treasury Solicitors,0030023383,"162,417.54",Treasury Solicitors Advisory Team Monthly Bill
Department for Culture Media and Sport,Department for Culture Media and Sport,22/09/2011,TSOL Advice Billed Hours,Legal Advisers to DCMS (TSOL),Treasury Solicitors,0030023713,"131,268.93",Treasury Solicitors Advisory Team Monthly Bill
Department for Culture Media and Sport,Department for Culture Media and Sport,28/10/2011,TSOL Advice Billed Hours,Legal Advisers to DCMS (TSOL),Treasury Solicitors,0030024072,"141,935.68",Treasury Solicitors Advisory Team Monthly Bill
Department for Culture Media and Sport,Department for Culture Media and Sport,17/11/2011,TSOL Advice Billed Hours,Legal Advisers to DCMS (TSOL),Treasury Solicitors,0030024311,"149,067.25",Treasury Solicitors Advisory Team Monthly Bill
Department for Culture Media and Sport,Department for Culture Media and Sport,16/12/2011,TSOL Advice Billed Hours,Legal Advisers to DCMS (TSOL),Treasury Solicitors,0030024626,"144,713.78",Treasury Solicitors Advisory Team Monthly Bill
Department for Culture Media and Sport,Department for Culture Media and Sport,23/01/2012,TSOL Advice Billed Hours,Legal Advisers to DCMS (TSOL),Treasury Solicitors,0030024978,"148,485.98",Treasury Solicitors Advisory Team Monthly Bill
Department for Culture Media and Sport,Department for Culture Media and Sport,14/02/2012,TSOL Advice Billed Hours,Legal Advisers to DCMS (TSOL),Treasury Solicitors,0030025276,"148,293.79",Treasury Solicitors Advisory Team Monthly Bill
Department for Culture Media and Sport,Department for Culture Media and Sport,22/03/2012,TSOL Advice Billed Hours,Legal Advisers to DCMS (TSOL),Treasury Solicitors,0030025666,"148,121.80",Treasury Solicitors Advisory Team Monthly Bill
Department for Culture Media and Sport,Department for Culture Media and Sport,14/03/2012,TSOL Disbursement Costs,Legal Advisers to DCMS (TSOL),Treasury Solicitors,0030025624,"67,989.55",Treasury Solicitors Legal Costs
Department for Culture Media and Sport,Department for Culture Media and Sport,30/03/2012,TSOL Disbursement Costs,Legal Advisers to DCMS (TSOL),Treasury Solicitors,0030025807,"31,700.00",Treasury Solicitors Disbursement Fee
Department for Culture Media and Sport,Department for Culture Media and Sport,23/02/2012,TSOL Disbursement Costs,Leveson Inquiry Admin Costs,Treasury Solicitors,0030025285,"183,946.06",Treasury Solicitors Legal Costs
Department for Culture Media and Sport,Department for Culture Media and Sport,01/06/2011,Capital Grant Private Sector,GIA Museums & Galleries,Tyne and Wear Museums,0030022415,"251,500.00",Grant to non-national museum under current Funding Agreement
Department for Culture Media and Sport,Department for Culture Media and Sport,19/08/2011,Capital Grant Private Sector,GIA Museums & Galleries,Tyne and Wear Museums,0030023339,"707,500.00",Grant to non-national museum under current Funding Agreement
Department for Culture Media and Sport,Department for Culture Media and Sport,01/09/2011,Capital Grant Private Sector,GIA Museums & Galleries,Tyne and Wear Museums,0030023413,"251,500.00",Grant to non-national museum under current Funding Agreement
Department for Culture Media and Sport,Department for Culture Media and Sport,01/12/2011,Capital Grant Private Sector,GIA Museums & Galleries,Tyne and Wear Museums,0030024354,"251,500.00",Grant to non-national museum under current Funding Agreement
Department for Culture Media and Sport,Department for Culture Media and Sport,01/03/2012,Capital Grant Private Sector,GIA Museums & Galleries,Tyne and Wear Museums,0030025354,"251,500.00",Grant to non-national museum under current Funding Agreement
Department for Culture Media and Sport,Department for Culture Media and Sport,01/04/2011,Current Grants Private Sector,GIA Museums & Galleries,Tyne and Wear Museums,0030021819,"114,000.00",Grant to non-national museum under current Funding Agreement
Department for Culture Media and Sport,Department for Culture Media and Sport,03/05/2011,Current Grants Private Sector,GIA Museums & Galleries,Tyne and Wear Museums,0030022199,"114,000.00",Grant to non-national museum under current Funding Agreement
Department for Culture Media and Sport,Department for Culture Media and Sport,01/07/2011,Current Grants Private Sector,GIA Museums & Galleries,Tyne and Wear Museums,0030022758,"114,000.00",Grant to non-national museum under current Funding Agreement
Department for Culture Media and Sport,Department for Culture Media and Sport,01/08/2011,Current Grants Private Sector,GIA Museums & Galleries,Tyne and Wear Museums,0030023013,"114,000.00",Grant to non-national museum under current Funding Agreement
Department for Culture Media and Sport,Department for Culture Media and Sport,03/10/2011,Current Grants Private Sector,GIA Museums & Galleries,Tyne and Wear Museums,0030023630,"114,000.00",Grant to non-national museum under current Funding Agreement
Department for Culture Media and Sport,Department for Culture Media and Sport,01/11/2011,Current Grants Private Sector,GIA Museums & Galleries,Tyne and Wear Museums,0030024047,"114,000.00",Grant to non-national museum under current Funding Agreement
Department for Culture Media and Sport,Department for Culture Media and Sport,03/01/2012,Current Grants Private Sector,GIA Museums & Galleries,Tyne and Wear Museums,0030024692,"114,000.00",Grant to non-national museum under current Funding Agreement
Department for Culture Media and Sport,Department for Culture Media and Sport,01/02/2012,Current Grants Private Sector,GIA Museums & Galleries,Tyne and Wear Museums,0030024998,"114,000.00",Grant to non-national museum under current Funding Agreement
Department for Culture Media and Sport,Department for Culture Media and Sport,27/06/2011,VAT Recoverable Business Activ,Misc Balance Sheet,Ubiqus,0030022795,"35,260.00",Ceremonial - PA System
Department for Culture Media and Sport,Department for Culture Media and Sport,29/06/2011,VAT Recoverable Business Activ,Misc Balance Sheet,Ubiqus,0030022796,"5,796.23",Ceremonial - PA System
Department for Culture Media and Sport,Department for Culture Media and Sport,27/06/2011,Ceremonial Event Costs,State Ceremonials Prog Costs,Ubiqus,0030022795,"176,300.00",Ceremonial - PA System
Department for Culture Media and Sport,Department for Culture Media and Sport,29/06/2011,Ceremonial Event Costs,State Ceremonials Prog Costs,Ubiqus,0030022796,"28,981.16",Ceremonial - PA System
Department for Culture Media and Sport,Department for Culture Media and Sport,14/12/2011,Ceremonial Event Costs,State Ceremonials Prog Costs,Ubiqus,0030024644,"31,796.49",Ceremonial - PA System
Department for Culture Media and Sport,Department for Culture Media and Sport,21/04/2011,International Subscriptions,Architecture + heritage progs,UNESCO ,0030022004,"132,303.12",UK Contribution to World Heritage Fund
Department for Culture Media and Sport,Department for Culture Media and Sport,01/04/2011,Grant-in-Aid (DCMS NDPBs),GIA Sports bodies,United Kingdom Anti Doping Ltd,0030021789,"494,593.00",Grant in Aid payment to a DCMS sponsored Non Departmental Public Body
Department for Culture Media and Sport,Department for Culture Media and Sport,03/05/2011,Grant-in-Aid (DCMS NDPBs),GIA Sports bodies,United Kingdom Anti Doping Ltd,0030022203,"600,000.00",Grant in Aid payment to a DCMS sponsored Non Departmental Public Body
Department for Culture Media and Sport,Department for Culture Media and Sport,01/06/2011,Grant-in-Aid (DCMS NDPBs),GIA Sports bodies,United Kingdom Anti Doping Ltd,0030022481,"539,346.00",Grant in Aid payment to a DCMS sponsored Non Departmental Public Body
Department for Culture Media and Sport,Department for Culture Media and Sport,01/07/2011,Grant-in-Aid (DCMS NDPBs),GIA Sports bodies,United Kingdom Anti Doping Ltd,0030022792,"500,000.00",Grant in Aid payment to a DCMS sponsored Non Departmental Public Body
Department for Culture Media and Sport,Department for Culture Media and Sport,01/08/2011,Grant-in-Aid (DCMS NDPBs),GIA Sports bodies,United Kingdom Anti Doping Ltd,0030023095,"399,833.00",Grant in Aid payment to a DCMS sponsored Non Departmental Public Body
Department for Culture Media and Sport,Department for Culture Media and Sport,01/09/2011,Grant-in-Aid (DCMS NDPBs),GIA Sports bodies,United Kingdom Anti Doping Ltd,0030023375,"500,000.00",Grant in Aid payment to a DCMS sponsored Non Departmental Public Body
Department for Culture Media and Sport,Department for Culture Media and Sport,03/10/2011,Grant-in-Aid (DCMS NDPBs),GIA Sports bodies,United Kingdom Anti Doping Ltd,0030023663,"500,000.00",Grant in Aid payment to a DCMS sponsored Non Departmental Public Body
Department for Culture Media and Sport,Department for Culture Media and Sport,01/11/2011,Grant-in-Aid (DCMS NDPBs),GIA Sports bodies,United Kingdom Anti Doping Ltd,0030024063,"493,932.00",Grant in Aid payment to a DCMS sponsored Non Departmental Public Body
Department for Culture Media and Sport,Department for Culture Media and Sport,01/12/2011,Grant-in-Aid (DCMS NDPBs),GIA Sports bodies,United Kingdom Anti Doping Ltd,0030024390,"1,002,733.00",Grant in Aid payment to a DCMS sponsored Non Departmental Public Body
Department for Culture Media and Sport,Department for Culture Media and Sport,03/01/2012,Grant-in-Aid (DCMS NDPBs),GIA Sports bodies,United Kingdom Anti Doping Ltd,0030024773,"416,833.00",Grant in Aid payment to a DCMS sponsored Non Departmental Public Body
Department for Culture Media and Sport,Department for Culture Media and Sport,01/02/2012,Grant-in-Aid (DCMS NDPBs),GIA Sports bodies,United Kingdom Anti Doping Ltd,0030025031,"407,333.00",Grant in Aid payment to a DCMS sponsored Non Departmental Public Body
Department for Culture Media and Sport,Department for Culture Media and Sport,01/04/2011,Grant-in-Aid (DCMS NDPBs),GIA Sports bodies,United Kingdom Sports Council,0030021826,"5,887,220.00",Grant in Aid payment to a DCMS sponsored Non Departmental Public Body
Department for Culture Media and Sport,Department for Culture Media and Sport,03/05/2011,Grant-in-Aid (DCMS NDPBs),GIA Sports bodies,United Kingdom Sports Council,0030022184,"5,843,155.00",Grant in Aid payment to a DCMS sponsored Non Departmental Public Body
Department for Culture Media and Sport,Department for Culture Media and Sport,01/06/2011,Grant-in-Aid (DCMS NDPBs),GIA Sports bodies,United Kingdom Sports Council,0030022482,"4,251,563.00",Grant in Aid payment to a DCMS sponsored Non Departmental Public Body
Department for Culture Media and Sport,Department for Culture Media and Sport,01/07/2011,Grant-in-Aid (DCMS NDPBs),GIA Sports bodies,United Kingdom Sports Council,0030022793,"5,482,190.00",Grant in Aid payment to a DCMS sponsored Non Departmental Public Body
Department for Culture Media and Sport,Department for Culture Media and Sport,01/08/2011,Grant-in-Aid (DCMS NDPBs),GIA Sports bodies,United Kingdom Sports Council,0030023097,"5,318,000.00",Grant in Aid payment to a DCMS sponsored Non Departmental Public Body
Department for Culture Media and Sport,Department for Culture Media and Sport,01/09/2011,Grant-in-Aid (DCMS NDPBs),GIA Sports bodies,United Kingdom Sports Council,0030023378,"4,479,696.00",Grant in Aid payment to a DCMS sponsored Non Departmental Public Body
Department for Culture Media and Sport,Department for Culture Media and Sport,03/10/2011,Grant-in-Aid (DCMS NDPBs),GIA Sports bodies,United Kingdom Sports Council,0030023623,"4,573,969.00",Grant in Aid payment to a DCMS sponsored Non Departmental Public Body
Department for Culture Media and Sport,Department for Culture Media and Sport,01/11/2011,Grant-in-Aid (DCMS NDPBs),GIA Sports bodies,United Kingdom Sports Council,0030024062,"3,724,427.00",Grant in Aid payment to a DCMS sponsored Non Departmental Public Body
Department for Culture Media and Sport,Department for Culture Media and Sport,01/12/2011,Grant-in-Aid (DCMS NDPBs),GIA Sports bodies,United Kingdom Sports Council,0030024388,"5,806,394.00",Grant in Aid payment to a DCMS sponsored Non Departmental Public Body
Department for Culture Media and Sport,Department for Culture Media and Sport,03/01/2012,Grant-in-Aid (DCMS NDPBs),GIA Sports bodies,United Kingdom Sports Council,0030024772,"4,687,904.00",Grant in Aid payment to a DCMS sponsored Non Departmental Public Body
Department for Culture Media and Sport,Department for Culture Media and Sport,10/01/2012,Grant-in-Aid (DCMS NDPBs),GIA Sports bodies,United Kingdom Sports Council,0030024897,"500,000.00",Grant in Aid payment to a DCMS sponsored Non Departmental Public Body
Department for Culture Media and Sport,Department for Culture Media and Sport,01/02/2012,Grant-in-Aid (DCMS NDPBs),GIA Sports bodies,United Kingdom Sports Council,0030025029,"5,612,156.00",Grant in Aid payment to a DCMS sponsored Non Departmental Public Body
Department for Culture Media and Sport,Department for Culture Media and Sport,12/04/2011,Reimbursement of Agreed Costs,GOE managed programme costs,Universities South West,0030021999,"36,740.00",Inspire Programme Payment - South West
Department for Culture Media and Sport,Department for Culture Media and Sport,21/04/2011,Grant-in-Aid (DCMS NDPBs),GIA Mus Libs Archives x-sector,Victoria & Albert Museum,0030022136,"55,650.26",Grant in Aid payment to a DCMS sponsored Non Departmental Public Body
Department for Culture Media and Sport,Department for Culture Media and Sport,01/04/2011,Grant-in-Aid (DCMS NDPBs),GIA Museums & Galleries,Victoria & Albert Museum,0030021818,"3,446,250.00",Grant in Aid payment to a DCMS sponsored Non Departmental Public Body
Department for Culture Media and Sport,Department for Culture Media and Sport,03/05/2011,Grant-in-Aid (DCMS NDPBs),GIA Museums & Galleries,Victoria & Albert Museum,0030022146,"3,446,250.00",Grant in Aid payment to a DCMS sponsored Non Departmental Public Body
Department for Culture Media and Sport,Department for Culture Media and Sport,01/06/2011,Grant-in-Aid (DCMS NDPBs),GIA Museums & Galleries,Victoria & Albert Museum,0030022467,"3,446,250.00",Grant in Aid payment to a DCMS sponsored Non Departmental Public Body
Department for Culture Media and Sport,Department for Culture Media and Sport,01/07/2011,Grant-in-Aid (DCMS NDPBs),GIA Museums & Galleries,Victoria & Albert Museum,0030022749,"3,446,250.00",Grant in Aid payment to a DCMS sponsored Non Departmental Public Body
Department for Culture Media and Sport,Department for Culture Media and Sport,01/08/2011,Grant-in-Aid (DCMS NDPBs),GIA Museums & Galleries,Victoria & Albert Museum,0030023056,"3,446,250.00",Grant in Aid payment to a DCMS sponsored Non Departmental Public Body
Department for Culture Media and Sport,Department for Culture Media and Sport,01/09/2011,Grant-in-Aid (DCMS NDPBs),GIA Museums & Galleries,Victoria & Albert Museum,0030023346,"3,946,250.00",Grant in Aid payment to a DCMS sponsored Non Departmental Public Body
Department for Culture Media and Sport,Department for Culture Media and Sport,03/10/2011,Grant-in-Aid (DCMS NDPBs),GIA Museums & Galleries,Victoria & Albert Museum,0030023740,"3,446,250.00",Grant in Aid payment to a DCMS sponsored Non Departmental Public Body
Department for Culture Media and Sport,Department for Culture Media and Sport,01/11/2011,Grant-in-Aid (DCMS NDPBs),GIA Museums & Galleries,Victoria & Albert Museum,0030023982,"3,446,250.00",Grant in Aid payment to a DCMS sponsored Non Departmental Public Body
Department for Culture Media and Sport,Department for Culture Media and Sport,01/12/2011,Grant-in-Aid (DCMS NDPBs),GIA Museums & Galleries,Victoria & Albert Museum,0030024335,"3,446,250.00",Grant in Aid payment to a DCMS sponsored Non Departmental Public Body
Department for Culture Media and Sport,Department for Culture Media and Sport,03/01/2012,Grant-in-Aid (DCMS NDPBs),GIA Museums & Galleries,Victoria & Albert Museum,0030024715,"3,446,250.00",Grant in Aid payment to a DCMS sponsored Non Departmental Public Body
Department for Culture Media and Sport,Department for Culture Media and Sport,01/02/2012,Grant-in-Aid (DCMS NDPBs),GIA Museums & Galleries,Victoria & Albert Museum,0030025023,"3,446,250.00",Grant in Aid payment to a DCMS sponsored Non Departmental Public Body
Department for Culture Media and Sport,Department for Culture Media and Sport,01/04/2011,Grant-in-Aid (DCMS NDPBs),GIA Tourism bodies,Visit Britain,0030021787,"4,940,000.00",Grant in Aid payment to a DCMS sponsored Non Departmental Public Body
Department for Culture Media and Sport,Department for Culture Media and Sport,03/05/2011,Grant-in-Aid (DCMS NDPBs),GIA Tourism bodies,Visit Britain,0030022124,"2,430,000.00",Grant in Aid payment to a DCMS sponsored Non Departmental Public Body
Department for Culture Media and Sport,Department for Culture Media and Sport,01/06/2011,Grant-in-Aid (DCMS NDPBs),GIA Tourism bodies,Visit Britain,0030022449,"2,798,000.00",Grant in Aid payment to a DCMS sponsored Non Departmental Public Body
Department for Culture Media and Sport,Department for Culture Media and Sport,13/07/2011,Grant-in-Aid (DCMS NDPBs),GIA Tourism bodies,Visit Britain,0030022949,"1,940,000.00",Grant in Aid payment to a DCMS sponsored Non Departmental Public Body
Department for Culture Media and Sport,Department for Culture Media and Sport,01/08/2011,Grant-in-Aid (DCMS NDPBs),GIA Tourism bodies,Visit Britain,0030023021,"1,868,000.00",Grant in Aid payment to a DCMS sponsored Non Departmental Public Body
Department for Culture Media and Sport,Department for Culture Media and Sport,01/09/2011,Grant-in-Aid (DCMS NDPBs),GIA Tourism bodies,Visit Britain,0030023351,"2,771,000.00",Grant in Aid payment to a DCMS sponsored Non Departmental Public Body
Department for Culture Media and Sport,Department for Culture Media and Sport,03/10/2011,Grant-in-Aid (DCMS NDPBs),GIA Tourism bodies,Visit Britain,0030023619,"2,998,000.00",Grant in Aid payment to a DCMS sponsored Non Departmental Public Body
Department for Culture Media and Sport,Department for Culture Media and Sport,01/11/2011,Grant-in-Aid (DCMS NDPBs),GIA Tourism bodies,Visit Britain,0030023965,"3,816,000.00",Grant in Aid payment to a DCMS sponsored Non Departmental Public Body
Department for Culture Media and Sport,Department for Culture Media and Sport,01/12/2011,Grant-in-Aid (DCMS NDPBs),GIA Tourism bodies,Visit Britain,0030024316,"3,818,000.00",Grant in Aid payment to a DCMS sponsored Non Departmental Public Body
Department for Culture Media and Sport,Department for Culture Media and Sport,03/01/2012,Grant-in-Aid (DCMS NDPBs),GIA Tourism bodies,Visit Britain,0030024671,"2,936,000.00",Grant in Aid payment to a DCMS sponsored Non Departmental Public Body
Department for Culture Media and Sport,Department for Culture Media and Sport,01/02/2012,Grant-in-Aid (DCMS NDPBs),GIA Tourism bodies,Visit Britain,0030024997,"7,355,000.00",Grant in Aid payment to a DCMS sponsored Non Departmental Public Body
Department for Culture Media and Sport,Department for Culture Media and Sport,19/04/2011,Grant-in-Aid (DCMS NDPBs),GIA Mus Libs Archives x-sector,Wallace Collection,0030022112,"58,479.00",Grant in Aid payment to a DCMS sponsored Non Departmental Public Body
Department for Culture Media and Sport,Department for Culture Media and Sport,01/04/2011,Grant-in-Aid (DCMS NDPBs),GIA Museums & Galleries,Wallace Collection,0030021794,"251,159.00",Grant in Aid payment to a DCMS sponsored Non Departmental Public Body
Department for Culture Media and Sport,Department for Culture Media and Sport,03/05/2011,Grant-in-Aid (DCMS NDPBs),GIA Museums & Galleries,Wallace Collection,0030022200,"251,155.00",Grant in Aid payment to a DCMS sponsored Non Departmental Public Body
Department for Culture Media and Sport,Department for Culture Media and Sport,01/06/2011,Grant-in-Aid (DCMS NDPBs),GIA Museums & Galleries,Wallace Collection,0030022411,"251,155.00",Grant in Aid payment to a DCMS sponsored Non Departmental Public Body
Department for Culture Media and Sport,Department for Culture Media and Sport,01/07/2011,Grant-in-Aid (DCMS NDPBs),GIA Museums & Galleries,Wallace Collection,0030022741,"240,818.00",Grant in Aid payment to a DCMS sponsored Non Departmental Public Body
Department for Culture Media and Sport,Department for Culture Media and Sport,01/08/2011,Grant-in-Aid (DCMS NDPBs),GIA Museums & Galleries,Wallace Collection,0030023034,"240,818.00",Grant in Aid payment to a DCMS sponsored Non Departmental Public Body
Department for Culture Media and Sport,Department for Culture Media and Sport,01/09/2011,Grant-in-Aid (DCMS NDPBs),GIA Museums & Galleries,Wallace Collection,0030023270,"251,155.00",Grant in Aid payment to a DCMS sponsored Non Departmental Public Body
Department for Culture Media and Sport,Department for Culture Media and Sport,03/10/2011,Grant-in-Aid (DCMS NDPBs),GIA Museums & Galleries,Wallace Collection,0030023664,"251,155.00",Grant in Aid payment to a DCMS sponsored Non Departmental Public Body
Department for Culture Media and Sport,Department for Culture Media and Sport,01/11/2011,Grant-in-Aid (DCMS NDPBs),GIA Museums & Galleries,Wallace Collection,0030023964,"251,155.00",Grant in Aid payment to a DCMS sponsored Non Departmental Public Body
Department for Culture Media and Sport,Department for Culture Media and Sport,01/12/2011,Grant-in-Aid (DCMS NDPBs),GIA Museums & Galleries,Wallace Collection,0030024353,"240,819.00",Grant in Aid payment to a DCMS sponsored Non Departmental Public Body
Department for Culture Media and Sport,Department for Culture Media and Sport,03/01/2012,Grant-in-Aid (DCMS NDPBs),GIA Museums & Galleries,Wallace Collection,0030024690,"251,156.00",Grant in Aid payment to a DCMS sponsored Non Departmental Public Body
Department for Culture Media and Sport,Department for Culture Media and Sport,01/02/2012,Grant-in-Aid (DCMS NDPBs),GIA Museums & Galleries,Wallace Collection,0030024999,"251,152.00",Grant in Aid payment to a DCMS sponsored Non Departmental Public Body
Department for Culture Media and Sport,Department for Culture Media and Sport,01/03/2012,Grant-in-Aid (DCMS NDPBs),GIA Museums & Galleries,Wallace Collection,0030025330,"251,303.00",Grant in Aid payment to a DCMS sponsored Non Departmental Public Body
Department for Culture Media and Sport,Department for Culture Media and Sport,01/04/2011,Grant-in-Aid (DCMS NDPBs),GIA S4C Welsh Fourth Channel,Welsh Fourth Channel Authority,0030021788,"8,555,000.00",Grant in Aid payment to a DCMS sponsored Non Departmental Public Body
Department for Culture Media and Sport,Department for Culture Media and Sport,03/05/2011,Grant-in-Aid (DCMS NDPBs),GIA S4C Welsh Fourth Channel,Welsh Fourth Channel Authority,0030022202,"7,765,000.00",Grant in Aid payment to a DCMS sponsored Non Departmental Public Body
Department for Culture Media and Sport,Department for Culture Media and Sport,01/06/2011,Grant-in-Aid (DCMS NDPBs),GIA S4C Welsh Fourth Channel,Welsh Fourth Channel Authority,0030022489,"8,265,000.00",Grant in Aid payment to a DCMS sponsored Non Departmental Public Body
Department for Culture Media and Sport,Department for Culture Media and Sport,01/07/2011,Grant-in-Aid (DCMS NDPBs),GIA S4C Welsh Fourth Channel,Welsh Fourth Channel Authority,0030022826,"7,765,000.00",Grant in Aid payment to a DCMS sponsored Non Departmental Public Body
Department for Culture Media and Sport,Department for Culture Media and Sport,01/08/2011,Grant-in-Aid (DCMS NDPBs),GIA S4C Welsh Fourth Channel,Welsh Fourth Channel Authority,0030023094,"8,000,000.00",Grant in Aid payment to a DCMS sponsored Non Departmental Public Body
Department for Culture Media and Sport,Department for Culture Media and Sport,01/09/2011,Grant-in-Aid (DCMS NDPBs),GIA S4C Welsh Fourth Channel,Welsh Fourth Channel Authority,0030023381,"8,030,000.00",Grant in Aid payment to a DCMS sponsored Non Departmental Public Body
